Payment Date,Transaction Number,Net Amount,Supplier (Beneficiary) Name,Local Supplier Internal Reference,Directorate / Service Where Expenditure Incurred,Service Category Label,Service Category URI,SeRCOP Expenditure Category,SeRCOP Expenditure Code,Purpose of Spend,SeRCOP Detailed Expenditure Code,Capital/Revenue,Procurement Classification
02/01/2018,20147,1250.00,HOUSING REFUND PAYMENTS - BSS ONLY,379825,Housing Revenue Account,Housing Revenue Account,N/A,Supplies and Services,504,Miscellaneous Expenses,5034,Revenue,NON INDIVIDUAL
02/01/2018,1551867,310.13,HOUSING BENEFIT,299992,Finance,Housing Services,108,Transfer Payments,506,Housing Benefits,5048,Revenue,00.NON INFLUENCIBLE
02/01/2018,1551870,270.15,HOUSING BENEFIT,299992,Finance,Housing Services,108,Transfer Payments,506,Housing Benefits,5048,Revenue,00.NON INFLUENCIBLE
02/01/2018,1551876,5513.76,HOUSING BENEFIT,299992,Finance,Housing Services,108,Transfer Payments,506,Housing Benefits,5048,Revenue,00.NON INFLUENCIBLE
02/01/2018,1551877,2100.05,HOUSING BENEFIT,299992,Finance,Housing Services,108,Transfer Payments,506,Housing Benefits,5048,Revenue,00.NON INFLUENCIBLE
02/01/2018,1551878,984.06,HOUSING BENEFIT,299992,Finance,Housing Services,108,Transfer Payments,506,Housing Benefits,5048,Revenue,00.NON INFLUENCIBLE
02/01/2018,1551879,2494.91,HOUSING BENEFIT,299992,Finance,Housing Services,108,Transfer Payments,506,Housing Benefits,5048,Revenue,00.NON INFLUENCIBLE
02/01/2018,1551980,402.88,SWIFT - PREPAID CARDS,299980,"Health, Education, Care and Safeguarding",Children's & Education Services,103,Third Party Payments,505,Other Establishments,5041,Revenue,22.SUPPORT SERVICES
02/01/2018,1551994,-184.38,Redacted Personal Data,381223,"Health, Education, Care and Safeguarding",Adult Social Care,101,Capital,Capital,Capital,Capital,Revenue,NON INDIVIDUAL
02/01/2018,1551994,693.40,Redacted Personal Data,381223,"Health, Education, Care and Safeguarding",Adult Social Care,101,Third Party Payments,505,Other Establishments,5041,Revenue,NON INDIVIDUAL
02/01/2018,1551997,101.30,Redacted Personal Data,396068,"Health, Education, Care and Safeguarding",Adult Social Care,101,Third Party Payments,505,Other Establishments,5041,Revenue,NON INDIVIDUAL
02/01/2018,1551997,307.50,Redacted Personal Data,396068,"Health, Education, Care and Safeguarding",Adult Social Care,101,Third Party Payments,505,Other Establishments,5041,Revenue,NON INDIVIDUAL
02/01/2018,1551999,375.76,Redacted Personal Data,396017,"Health, Education, Care and Safeguarding",Adult Social Care,101,Third Party Payments,505,Other Establishments,5041,Revenue,NON INDIVIDUAL
02/01/2018,1552003,-8.72,Redacted Personal Data,387387,"Health, Education, Care and Safeguarding",Adult Social Care,101,Capital,Capital,Capital,Capital,Revenue,NON INDIVIDUAL
02/01/2018,1552003,395.07,Redacted Personal Data,387387,"Health, Education, Care and Safeguarding",Adult Social Care,101,Third Party Payments,505,Other Establishments,5041,Revenue,NON INDIVIDUAL
02/01/2018,1552007,855.36,Redacted Personal Data,395872,"Health, Education, Care and Safeguarding",Adult Social Care,101,Third Party Payments,505,Other Establishments,5041,Revenue,NON INDIVIDUAL
02/01/2018,1552011,294.21,Redacted Personal Data,395868,"Health, Education, Care and Safeguarding",Adult Social Care,101,Third Party Payments,505,Other Establishments,5041,Revenue,NON INDIVIDUAL
02/01/2018,1552013,494.96,Redacted Personal Data,395866,"Health, Education, Care and Safeguarding",Adult Social Care,101,Third Party Payments,505,Other Establishments,5041,Revenue,NON INDIVIDUAL
02/01/2018,1552015,-16.15,Redacted Personal Data,389532,"Health, Education, Care and Safeguarding",Adult Social Care,101,Capital,Capital,Capital,Capital,Revenue,NON INDIVIDUAL
02/01/2018,1552015,707.23,Redacted Personal Data,389532,"Health, Education, Care and Safeguarding",Adult Social Care,101,Third Party Payments,505,Other Establishments,5041,Revenue,NON INDIVIDUAL
02/01/2018,1552016,250.33,Redacted Personal Data,386015,"Health, Education, Care and Safeguarding",Adult Social Care,101,Third Party Payments,505,Other Establishments,5041,Revenue,NON INDIVIDUAL
02/01/2018,1552018,311.40,Redacted Personal Data,386572,"Health, Education, Care and Safeguarding",Adult Social Care,101,Third Party Payments,505,Other Establishments,5041,Revenue,NON INDIVIDUAL
02/01/2018,1552028,252.86,Redacted Personal Data,395824,"Health, Education, Care and Safeguarding",Adult Social Care,101,Third Party Payments,505,Other Establishments,5041,Revenue,NON INDIVIDUAL
02/01/2018,1552031,2919.65,Redacted Personal Data,387631,"Health, Education, Care and Safeguarding",Adult Social Care,101,Third Party Payments,505,Other Establishments,5041,Revenue,NON INDIVIDUAL
02/01/2018,1552035,280.00,Redacted Personal Data,395819,"Health, Education, Care and Safeguarding",Adult Social Care,101,Third Party Payments,505,Other Establishments,5041,Revenue,NON INDIVIDUAL
02/01/2018,1552040,1075.20,Redacted Personal Data,383506,"Health, Education, Care and Safeguarding",Adult Social Care,101,Third Party Payments,505,Other Establishments,5041,Revenue,NON INDIVIDUAL
02/01/2018,1552042,267.19,Redacted Personal Data,390114,"Health, Education, Care and Safeguarding",Adult Social Care,101,Third Party Payments,505,Other Establishments,5041,Revenue,NON INDIVIDUAL
02/01/2018,1552043,-1613.70,Redacted Personal Data,395814,"Health, Education, Care and Safeguarding",Adult Social Care,101,Third Party Payments,505,Other Establishments,5041,Revenue,NON INDIVIDUAL
02/01/2018,1552043,-35.74,Redacted Personal Data,395814,"Health, Education, Care and Safeguarding",Adult Social Care,101,Capital,Capital,Capital,Capital,Revenue,NON INDIVIDUAL
02/01/2018,1552043,56.70,Redacted Personal Data,395814,"Health, Education, Care and Safeguarding",Adult Social Care,101,Third Party Payments,505,Other Establishments,5041,Revenue,NON INDIVIDUAL
02/01/2018,1552043,2276.64,Redacted Personal Data,395814,"Health, Education, Care and Safeguarding",Adult Social Care,101,Third Party Payments,505,Other Establishments,5041,Revenue,NON INDIVIDUAL
02/01/2018,1552044,-67.77,Redacted Personal Data,395813,"Health, Education, Care and Safeguarding",Adult Social Care,101,Capital,Capital,Capital,Capital,Revenue,NON INDIVIDUAL
02/01/2018,1552044,1784.30,Redacted Personal Data,395813,"Health, Education, Care and Safeguarding",Adult Social Care,101,Third Party Payments,505,Other Establishments,5041,Revenue,NON INDIVIDUAL
02/01/2018,1552048,261.20,Redacted Personal Data,395808,"Health, Education, Care and Safeguarding",Adult Social Care,101,Third Party Payments,505,Other Establishments,5041,Revenue,NON INDIVIDUAL
02/01/2018,1552050,1719.70,Redacted Personal Data,395806,"Health, Education, Care and Safeguarding",Adult Social Care,101,Third Party Payments,505,Other Establishments,5041,Revenue,NON INDIVIDUAL
02/01/2018,1552059,370.00,Redacted Personal Data,395796,"Health, Education, Care and Safeguarding",Adult Social Care,101,Third Party Payments,505,Other Establishments,5041,Revenue,NON INDIVIDUAL
02/01/2018,1552061,-59.63,Redacted Personal Data,395793,"Health, Education, Care and Safeguarding",Adult Social Care,101,Capital,Capital,Capital,Capital,Revenue,NON INDIVIDUAL
02/01/2018,1552061,330.79,Redacted Personal Data,395793,"Health, Education, Care and Safeguarding",Adult Social Care,101,Third Party Payments,505,Other Establishments,5041,Revenue,NON INDIVIDUAL
02/01/2018,1552063,-113.59,Redacted Personal Data,395791,"Health, Education, Care and Safeguarding",Adult Social Care,101,Capital,Capital,Capital,Capital,Revenue,NON INDIVIDUAL
02/01/2018,1552063,1374.79,Redacted Personal Data,395791,"Health, Education, Care and Safeguarding",Adult Social Care,101,Third Party Payments,505,Other Establishments,5041,Revenue,NON INDIVIDUAL
02/01/2018,1552067,433.74,Redacted Personal Data,395787,"Health, Education, Care and Safeguarding",Adult Social Care,101,Third Party Payments,505,Other Establishments,5041,Revenue,NON INDIVIDUAL
02/01/2018,1552071,262.00,Redacted Personal Data,395782,"Health, Education, Care and Safeguarding",Adult Social Care,101,Third Party Payments,505,Other Establishments,5041,Revenue,NON INDIVIDUAL
02/01/2018,1552076,940.20,Redacted Personal Data,395776,"Health, Education, Care and Safeguarding",Adult Social Care,101,Third Party Payments,505,Other Establishments,5041,Revenue,NON INDIVIDUAL
02/01/2018,1552087,392.00,Redacted Personal Data,395765,"Health, Education, Care and Safeguarding",Adult Social Care,101,Third Party Payments,505,Other Establishments,5041,Revenue,NON INDIVIDUAL
02/01/2018,1552098,-74.85,Redacted Personal Data,381403,"Health, Education, Care and Safeguarding",Adult Social Care,101,Capital,Capital,Capital,Capital,Revenue,NON INDIVIDUAL
02/01/2018,1552098,2900.00,Redacted Personal Data,381403,"Health, Education, Care and Safeguarding",Adult Social Care,101,Third Party Payments,505,Other Establishments,5041,Revenue,NON INDIVIDUAL
02/01/2018,1552101,-8.77,Redacted Personal Data,395753,"Health, Education, Care and Safeguarding",Adult Social Care,101,Capital,Capital,Capital,Capital,Revenue,NON INDIVIDUAL
02/01/2018,1552101,265.00,Redacted Personal Data,395753,"Health, Education, Care and Safeguarding",Adult Social Care,101,Third Party Payments,505,Other Establishments,5041,Revenue,NON INDIVIDUAL
02/01/2018,1552109,-38.61,Redacted Personal Data,395743,"Health, Education, Care and Safeguarding",Adult Social Care,101,Capital,Capital,Capital,Capital,Revenue,NON INDIVIDUAL
02/01/2018,1552109,539.00,Redacted Personal Data,395743,"Health, Education, Care and Safeguarding",Adult Social Care,101,Third Party Payments,505,Other Establishments,5041,Revenue,NON INDIVIDUAL
02/01/2018,1552111,404.28,Redacted Personal Data,390088,"Health, Education, Care and Safeguarding",Adult Social Care,101,Third Party Payments,505,Other Establishments,5041,Revenue,NON INDIVIDUAL
02/01/2018,1552117,1290.14,Redacted Personal Data,377362,"Health, Education, Care and Safeguarding",Adult Social Care,101,Third Party Payments,505,Other Establishments,5041,Revenue,NON INDIVIDUAL
02/01/2018,1552120,560.00,Redacted Personal Data,386992,"Health, Education, Care and Safeguarding",Adult Social Care,101,Third Party Payments,505,Other Establishments,5041,Revenue,NON INDIVIDUAL
02/01/2018,1552121,-18.43,Redacted Personal Data,379583,"Health, Education, Care and Safeguarding",Adult Social Care,101,Capital,Capital,Capital,Capital,Revenue,NON INDIVIDUAL
02/01/2018,1552121,316.72,Redacted Personal Data,379583,"Health, Education, Care and Safeguarding",Adult Social Care,101,Third Party Payments,505,Other Establishments,5041,Revenue,NON INDIVIDUAL
02/01/2018,1552124,-28.77,Redacted Personal Data,369281,"Health, Education, Care and Safeguarding",Adult Social Care,101,Capital,Capital,Capital,Capital,Revenue,NON INDIVIDUAL
02/01/2018,1552124,337.57,Redacted Personal Data,369281,"Health, Education, Care and Safeguarding",Adult Social Care,101,Third Party Payments,505,Other Establishments,5041,Revenue,NON INDIVIDUAL
02/01/2018,1552128,-27.09,Redacted Personal Data,395735,"Health, Education, Care and Safeguarding",Adult Social Care,101,Capital,Capital,Capital,Capital,Revenue,NON INDIVIDUAL
02/01/2018,1552128,518.00,Redacted Personal Data,395735,"Health, Education, Care and Safeguarding",Adult Social Care,101,Third Party Payments,505,Other Establishments,5041,Revenue,NON INDIVIDUAL
02/01/2018,1552132,-1.34,Redacted Personal Data,375753,"Health, Education, Care and Safeguarding",Adult Social Care,101,Capital,Capital,Capital,Capital,Revenue,NON INDIVIDUAL
02/01/2018,1552132,442.68,Redacted Personal Data,375753,"Health, Education, Care and Safeguarding",Adult Social Care,101,Third Party Payments,505,Other Establishments,5041,Revenue,NON INDIVIDUAL
02/01/2018,1552133,-18.21,Redacted Personal Data,374241,"Health, Education, Care and Safeguarding",Adult Social Care,101,Capital,Capital,Capital,Capital,Revenue,NON INDIVIDUAL
02/01/2018,1552133,289.37,Redacted Personal Data,374241,"Health, Education, Care and Safeguarding",Adult Social Care,101,Third Party Payments,505,Other Establishments,5041,Revenue,NON INDIVIDUAL
02/01/2018,1552141,-11.76,Redacted Personal Data,386178,"Health, Education, Care and Safeguarding",Adult Social Care,101,Capital,Capital,Capital,Capital,Revenue,NON INDIVIDUAL
02/01/2018,1552141,297.21,Redacted Personal Data,386178,"Health, Education, Care and Safeguarding",Adult Social Care,101,Third Party Payments,505,Other Establishments,5041,Revenue,NON INDIVIDUAL
02/01/2018,1552144,-35.37,Redacted Personal Data,386762,"Health, Education, Care and Safeguarding",Adult Social Care,101,Capital,Capital,Capital,Capital,Revenue,NON INDIVIDUAL
02/01/2018,1552144,672.00,Redacted Personal Data,386762,"Health, Education, Care and Safeguarding",Adult Social Care,101,Third Party Payments,505,Other Establishments,5041,Revenue,NON INDIVIDUAL
02/01/2018,1552146,735.00,Redacted Personal Data,395719,"Health, Education, Care and Safeguarding",Adult Social Care,101,Third Party Payments,505,Other Establishments,5041,Revenue,NON INDIVIDUAL
02/01/2018,1552147,-70.62,Redacted Personal Data,395718,"Health, Education, Care and Safeguarding",Adult Social Care,101,Capital,Capital,Capital,Capital,Revenue,NON INDIVIDUAL
02/01/2018,1552147,2406.59,Redacted Personal Data,395718,"Health, Education, Care and Safeguarding",Adult Social Care,101,Third Party Payments,505,Other Establishments,5041,Revenue,NON INDIVIDUAL
02/01/2018,1552152,1770.72,Redacted Personal Data,336601,"Health, Education, Care and Safeguarding",Adult Social Care,101,Third Party Payments,505,Other Establishments,5041,Revenue,NON INDIVIDUAL
02/01/2018,1552153,280.00,Redacted Personal Data,387689,"Health, Education, Care and Safeguarding",Adult Social Care,101,Third Party Payments,505,Other Establishments,5041,Revenue,NON INDIVIDUAL
02/01/2018,1552154,-0.76,Redacted Personal Data,386090,"Health, Education, Care and Safeguarding",Adult Social Care,101,Capital,Capital,Capital,Capital,Revenue,NON INDIVIDUAL
02/01/2018,1552154,359.66,Redacted Personal Data,386090,"Health, Education, Care and Safeguarding",Adult Social Care,101,Third Party Payments,505,Other Establishments,5041,Revenue,NON INDIVIDUAL
02/01/2018,1552155,1008.71,Redacted Personal Data,385564,"Health, Education, Care and Safeguarding",Adult Social Care,101,Third Party Payments,505,Other Establishments,5041,Revenue,NON INDIVIDUAL
02/01/2018,1552156,-8.61,Redacted Personal Data,385669,"Health, Education, Care and Safeguarding",Adult Social Care,101,Capital,Capital,Capital,Capital,Revenue,NON INDIVIDUAL
02/01/2018,1552156,832.08,Redacted Personal Data,385669,"Health, Education, Care and Safeguarding",Adult Social Care,101,Third Party Payments,505,Other Establishments,5041,Revenue,NON INDIVIDUAL
02/01/2018,1552159,278.75,Redacted Personal Data,386997,"Health, Education, Care and Safeguarding",Adult Social Care,101,Third Party Payments,505,Other Establishments,5041,Revenue,NON INDIVIDUAL
02/01/2018,1552160,349.57,Redacted Personal Data,382749,"Health, Education, Care and Safeguarding",Adult Social Care,101,Third Party Payments,505,Other Establishments,5041,Revenue,NON INDIVIDUAL
02/01/2018,1552161,-26.74,Redacted Personal Data,368266,"Health, Education, Care and Safeguarding",Adult Social Care,101,Capital,Capital,Capital,Capital,Revenue,NON INDIVIDUAL
02/01/2018,1552161,405.18,Redacted Personal Data,368266,"Health, Education, Care and Safeguarding",Adult Social Care,101,Third Party Payments,505,Other Establishments,5041,Revenue,NON INDIVIDUAL
02/01/2018,1552162,538.64,Redacted Personal Data,395709,"Health, Education, Care and Safeguarding",Adult Social Care,101,Third Party Payments,505,Other Establishments,5041,Revenue,NON INDIVIDUAL
02/01/2018,1552174,392.30,Redacted Personal Data,395697,"Health, Education, Care and Safeguarding",Adult Social Care,101,Third Party Payments,505,Other Establishments,5041,Revenue,NON INDIVIDUAL
02/01/2018,1552177,685.10,Redacted Personal Data,395694,"Health, Education, Care and Safeguarding",Adult Social Care,101,Third Party Payments,505,Other Establishments,5041,Revenue,NON INDIVIDUAL
02/01/2018,1552183,497.93,Redacted Personal Data,385600,"Health, Education, Care and Safeguarding",Adult Social Care,101,Third Party Payments,505,Other Establishments,5041,Revenue,NON INDIVIDUAL
02/01/2018,1552187,490.00,Redacted Personal Data,395684,"Health, Education, Care and Safeguarding",Adult Social Care,101,Third Party Payments,505,Other Establishments,5041,Revenue,NON INDIVIDUAL
02/01/2018,1552188,-86.34,Redacted Personal Data,395683,"Health, Education, Care and Safeguarding",Adult Social Care,101,Capital,Capital,Capital,Capital,Revenue,NON INDIVIDUAL
02/01/2018,1552188,368.90,Redacted Personal Data,395683,"Health, Education, Care and Safeguarding",Adult Social Care,101,Third Party Payments,505,Other Establishments,5041,Revenue,NON INDIVIDUAL
02/01/2018,1552190,360.64,Redacted Personal Data,395681,"Health, Education, Care and Safeguarding",Adult Social Care,101,Third Party Payments,505,Other Establishments,5041,Revenue,NON INDIVIDUAL
02/01/2018,1552194,1054.00,Redacted Personal Data,395675,"Health, Education, Care and Safeguarding",Adult Social Care,101,Third Party Payments,505,Other Establishments,5041,Revenue,NON INDIVIDUAL
02/01/2018,1552199,264.60,Redacted Personal Data,395670,"Health, Education, Care and Safeguarding",Adult Social Care,101,Third Party Payments,505,Other Establishments,5041,Revenue,NON INDIVIDUAL
02/01/2018,1552207,321.25,Redacted Personal Data,381173,"Health, Education, Care and Safeguarding",Adult Social Care,101,Third Party Payments,505,Other Establishments,5041,Revenue,NON INDIVIDUAL
02/01/2018,1552210,1658.11,Redacted Personal Data,339103,"Health, Education, Care and Safeguarding",Adult Social Care,101,Third Party Payments,505,Other Establishments,5041,Revenue,NON INDIVIDUAL
02/01/2018,1552211,-12.73,Redacted Personal Data,384396,"Health, Education, Care and Safeguarding",Adult Social Care,101,Capital,Capital,Capital,Capital,Revenue,NON INDIVIDUAL
02/01/2018,1552211,266.91,Redacted Personal Data,384396,"Health, Education, Care and Safeguarding",Adult Social Care,101,Third Party Payments,505,Other Establishments,5041,Revenue,NON INDIVIDUAL
02/01/2018,1552213,341.92,Redacted Personal Data,351702,"Health, Education, Care and Safeguarding",Adult Social Care,101,Third Party Payments,505,Other Establishments,5041,Revenue,NON INDIVIDUAL
02/01/2018,1552215,-34.26,Redacted Personal Data,369792,"Health, Education, Care and Safeguarding",Adult Social Care,101,Capital,Capital,Capital,Capital,Revenue,NON INDIVIDUAL
02/01/2018,1552215,586.92,Redacted Personal Data,369792,"Health, Education, Care and Safeguarding",Adult Social Care,101,Third Party Payments,505,Other Establishments,5041,Revenue,NON INDIVIDUAL
02/01/2018,1552219,-19.07,Redacted Personal Data,387029,"Health, Education, Care and Safeguarding",Adult Social Care,101,Capital,Capital,Capital,Capital,Revenue,NON INDIVIDUAL
02/01/2018,1552219,956.96,Redacted Personal Data,387029,"Health, Education, Care and Safeguarding",Adult Social Care,101,Third Party Payments,505,Other Establishments,5041,Revenue,NON INDIVIDUAL
02/01/2018,1552221,-87.20,Redacted Personal Data,395734,"Health, Education, Care and Safeguarding",Adult Social Care,101,Capital,Capital,Capital,Capital,Revenue,NON INDIVIDUAL
02/01/2018,1552221,1858.37,Redacted Personal Data,395734,"Health, Education, Care and Safeguarding",Adult Social Care,101,Third Party Payments,505,Other Establishments,5041,Revenue,NON INDIVIDUAL
02/01/2018,1552226,-28.16,Redacted Personal Data,374395,"Health, Education, Care and Safeguarding",Adult Social Care,101,Capital,Capital,Capital,Capital,Revenue,NON INDIVIDUAL
02/01/2018,1552226,2387.56,Redacted Personal Data,374395,"Health, Education, Care and Safeguarding",Adult Social Care,101,Third Party Payments,505,Other Establishments,5041,Revenue,NON INDIVIDUAL
02/01/2018,1552227,252.80,Redacted Personal Data,381838,"Health, Education, Care and Safeguarding",Adult Social Care,101,Third Party Payments,505,Other Establishments,5041,Revenue,NON INDIVIDUAL
02/01/2018,1552233,275.00,Redacted Personal Data,395729,"Health, Education, Care and Safeguarding",Adult Social Care,101,Third Party Payments,505,Other Establishments,5041,Revenue,NON INDIVIDUAL
02/01/2018,1552235,290.00,Redacted Personal Data,395728,"Health, Education, Care and Safeguarding",Adult Social Care,101,Third Party Payments,505,Other Establishments,5041,Revenue,NON INDIVIDUAL
02/01/2018,1552237,300.16,Redacted Personal Data,385427,"Health, Education, Care and Safeguarding",Adult Social Care,101,Third Party Payments,505,Other Establishments,5041,Revenue,NON INDIVIDUAL
02/01/2018,1552241,415.50,Redacted Personal Data,389470,"Health, Education, Care and Safeguarding",Adult Social Care,101,Third Party Payments,505,Other Establishments,5041,Revenue,NON INDIVIDUAL
02/01/2018,1552243,610.77,Redacted Personal Data,388340,"Health, Education, Care and Safeguarding",Adult Social Care,101,Third Party Payments,505,Other Establishments,5041,Revenue,NON INDIVIDUAL
02/01/2018,1552244,441.00,Redacted Personal Data,379253,"Health, Education, Care and Safeguarding",Adult Social Care,101,Third Party Payments,505,Other Establishments,5041,Revenue,NON INDIVIDUAL
02/01/2018,1552246,828.17,Redacted Personal Data,387773,"Health, Education, Care and Safeguarding",Adult Social Care,101,Third Party Payments,505,Other Establishments,5041,Revenue,NON INDIVIDUAL
02/01/2018,1552247,270.00,Redacted Personal Data,388501,"Health, Education, Care and Safeguarding",Adult Social Care,101,Third Party Payments,505,Other Establishments,5041,Revenue,NON INDIVIDUAL
02/01/2018,1552248,627.13,Redacted Personal Data,395618,"Health, Education, Care and Safeguarding",Adult Social Care,101,Third Party Payments,505,Other Establishments,5041,Revenue,NON INDIVIDUAL
02/01/2018,1552249,-4.68,Redacted Personal Data,395617,"Health, Education, Care and Safeguarding",Adult Social Care,101,Capital,Capital,Capital,Capital,Revenue,NON INDIVIDUAL
02/01/2018,1552249,388.50,Redacted Personal Data,395617,"Health, Education, Care and Safeguarding",Adult Social Care,101,Third Party Payments,505,Other Establishments,5041,Revenue,NON INDIVIDUAL
02/01/2018,1552253,-0.68,Redacted Personal Data,395610,"Health, Education, Care and Safeguarding",Adult Social Care,101,Capital,Capital,Capital,Capital,Revenue,NON INDIVIDUAL
02/01/2018,1552253,884.88,Redacted Personal Data,395610,"Health, Education, Care and Safeguarding",Adult Social Care,101,Third Party Payments,505,Other Establishments,5041,Revenue,NON INDIVIDUAL
02/01/2018,1552254,254.88,Redacted Personal Data,395609,"Health, Education, Care and Safeguarding",Adult Social Care,101,Third Party Payments,505,Other Establishments,5041,Revenue,NON INDIVIDUAL
02/01/2018,1552255,309.00,Redacted Personal Data,395608,"Health, Education, Care and Safeguarding",Adult Social Care,101,Third Party Payments,505,Other Establishments,5041,Revenue,NON INDIVIDUAL
02/01/2018,1552259,-55.44,Redacted Personal Data,395601,"Health, Education, Care and Safeguarding",Adult Social Care,101,Capital,Capital,Capital,Capital,Revenue,NON INDIVIDUAL
02/01/2018,1552259,321.47,Redacted Personal Data,395601,"Health, Education, Care and Safeguarding",Adult Social Care,101,Third Party Payments,505,Other Establishments,5041,Revenue,NON INDIVIDUAL
02/01/2018,1552260,260.00,Redacted Personal Data,395600,"Health, Education, Care and Safeguarding",Adult Social Care,101,Third Party Payments,505,Other Establishments,5041,Revenue,NON INDIVIDUAL
02/01/2018,1552264,311.61,Redacted Personal Data,395596,"Health, Education, Care and Safeguarding",Adult Social Care,101,Third Party Payments,505,Other Establishments,5041,Revenue,NON INDIVIDUAL
02/01/2018,1552265,259.92,Redacted Personal Data,395595,"Health, Education, Care and Safeguarding",Adult Social Care,101,Third Party Payments,505,Other Establishments,5041,Revenue,NON INDIVIDUAL
02/01/2018,1552268,491.15,Redacted Personal Data,395592,"Health, Education, Care and Safeguarding",Adult Social Care,101,Third Party Payments,505,Other Establishments,5041,Revenue,NON INDIVIDUAL
02/01/2018,1552272,1518.83,LENORE SPECIALIST CARE LTD,395565,"Health, Education, Care and Safeguarding",Adult Social Care,101,Third Party Payments,505,Other Establishments,5041,Revenue,SUPPORT LIVING
02/01/2018,1552275,520.21,Redacted Personal Data,385051,"Health, Education, Care and Safeguarding",Adult Social Care,101,Third Party Payments,505,Other Establishments,5041,Revenue,NON INDIVIDUAL
02/01/2018,1552276,-7.31,Redacted Personal Data,385754,"Health, Education, Care and Safeguarding",Adult Social Care,101,Capital,Capital,Capital,Capital,Revenue,NON INDIVIDUAL
02/01/2018,1552276,961.88,Redacted Personal Data,385754,"Health, Education, Care and Safeguarding",Adult Social Care,101,Third Party Payments,505,Other Establishments,5041,Revenue,NON INDIVIDUAL
02/01/2018,1552283,255.50,Redacted Personal Data,386497,"Health, Education, Care and Safeguarding",Adult Social Care,101,Third Party Payments,505,Other Establishments,5041,Revenue,NON INDIVIDUAL
02/01/2018,1552284,-77.28,Redacted Personal Data,395554,"Health, Education, Care and Safeguarding",Adult Social Care,101,Capital,Capital,Capital,Capital,Revenue,NON INDIVIDUAL
02/01/2018,1552284,420.00,Redacted Personal Data,395554,"Health, Education, Care and Safeguarding",Adult Social Care,101,Third Party Payments,505,Other Establishments,5041,Revenue,NON INDIVIDUAL
02/01/2018,1552285,-67.34,Redacted Personal Data,389997,"Health, Education, Care and Safeguarding",Adult Social Care,101,Capital,Capital,Capital,Capital,Revenue,NON INDIVIDUAL
02/01/2018,1552285,1942.50,Redacted Personal Data,389997,"Health, Education, Care and Safeguarding",Adult Social Care,101,Third Party Payments,505,Other Establishments,5041,Revenue,NON INDIVIDUAL
02/01/2018,1552287,1311.29,Redacted Personal Data,364751,"Health, Education, Care and Safeguarding",Adult Social Care,101,Third Party Payments,505,Other Establishments,5041,Revenue,NON INDIVIDUAL
02/01/2018,1552291,502.05,Redacted Personal Data,395552,"Health, Education, Care and Safeguarding",Adult Social Care,101,Third Party Payments,505,Other Establishments,5041,Revenue,NON INDIVIDUAL
02/01/2018,1552292,332.01,Redacted Personal Data,371463,"Health, Education, Care and Safeguarding",Adult Social Care,101,Third Party Payments,505,Other Establishments,5041,Revenue,NON INDIVIDUAL
02/01/2018,1552299,1099.79,Redacted Personal Data,368592,"Health, Education, Care and Safeguarding",Adult Social Care,101,Third Party Payments,505,Other Establishments,5041,Revenue,NON INDIVIDUAL
02/01/2018,1552301,-2.28,Redacted Personal Data,386996,"Health, Education, Care and Safeguarding",Adult Social Care,101,Capital,Capital,Capital,Capital,Revenue,NON INDIVIDUAL
02/01/2018,1552301,303.90,Redacted Personal Data,386996,"Health, Education, Care and Safeguarding",Adult Social Care,101,Third Party Payments,505,Other Establishments,5041,Revenue,NON INDIVIDUAL
02/01/2018,1552302,737.00,Redacted Personal Data,326296,"Health, Education, Care and Safeguarding",Adult Social Care,101,Third Party Payments,505,Other Establishments,5041,Revenue,NON INDIVIDUAL
02/01/2018,1552304,565.11,Redacted Personal Data,382114,"Health, Education, Care and Safeguarding",Adult Social Care,101,Third Party Payments,505,Other Establishments,5041,Revenue,NON INDIVIDUAL
02/01/2018,1552309,417.07,Redacted Personal Data,374238,"Health, Education, Care and Safeguarding",Adult Social Care,101,Third Party Payments,505,Other Establishments,5041,Revenue,NON INDIVIDUAL
02/01/2018,1552315,267.72,Redacted Personal Data,386530,"Health, Education, Care and Safeguarding",Adult Social Care,101,Third Party Payments,505,Other Establishments,5041,Revenue,NON INDIVIDUAL
02/01/2018,1552322,924.06,Redacted Personal Data,395540,"Health, Education, Care and Safeguarding",Adult Social Care,101,Third Party Payments,505,Other Establishments,5041,Revenue,NON INDIVIDUAL
02/01/2018,1552323,-5.16,Redacted Personal Data,395539,"Health, Education, Care and Safeguarding",Adult Social Care,101,Capital,Capital,Capital,Capital,Revenue,NON INDIVIDUAL
02/01/2018,1552323,262.75,Redacted Personal Data,395539,"Health, Education, Care and Safeguarding",Adult Social Care,101,Third Party Payments,505,Other Establishments,5041,Revenue,NON INDIVIDUAL
02/01/2018,1552325,657.99,Redacted Personal Data,395525,"Health, Education, Care and Safeguarding",Adult Social Care,101,Third Party Payments,505,Other Establishments,5041,Revenue,NON INDIVIDUAL
02/01/2018,1552328,-86.27,Redacted Personal Data,395510,"Health, Education, Care and Safeguarding",Adult Social Care,101,Capital,Capital,Capital,Capital,Revenue,NON INDIVIDUAL
02/01/2018,1552328,458.50,Redacted Personal Data,395510,"Health, Education, Care and Safeguarding",Adult Social Care,101,Third Party Payments,505,Other Establishments,5041,Revenue,NON INDIVIDUAL
02/01/2018,1552331,-75.60,Redacted Personal Data,395507,"Health, Education, Care and Safeguarding",Adult Social Care,101,Capital,Capital,Capital,Capital,Revenue,NON INDIVIDUAL
02/01/2018,1552331,1843.28,Redacted Personal Data,395507,"Health, Education, Care and Safeguarding",Adult Social Care,101,Third Party Payments,505,Other Establishments,5041,Revenue,NON INDIVIDUAL
02/01/2018,1552336,-1524.00,Redacted Personal Data,395502,"Health, Education, Care and Safeguarding",Adult Social Care,101,Third Party Payments,505,Other Establishments,5041,Revenue,NON INDIVIDUAL
02/01/2018,1552336,4869.48,Redacted Personal Data,395502,"Health, Education, Care and Safeguarding",Adult Social Care,101,Third Party Payments,505,Other Establishments,5041,Revenue,NON INDIVIDUAL
02/01/2018,1552337,759.50,Redacted Personal Data,395501,"Health, Education, Care and Safeguarding",Adult Social Care,101,Third Party Payments,505,Other Establishments,5041,Revenue,NON INDIVIDUAL
02/01/2018,1552339,-64.78,Redacted Personal Data,395499,"Health, Education, Care and Safeguarding",Adult Social Care,101,Capital,Capital,Capital,Capital,Revenue,NON INDIVIDUAL
02/01/2018,1552339,1703.77,Redacted Personal Data,395499,"Health, Education, Care and Safeguarding",Adult Social Care,101,Third Party Payments,505,Other Establishments,5041,Revenue,NON INDIVIDUAL
02/01/2018,1552345,1488.50,Redacted Personal Data,395493,"Health, Education, Care and Safeguarding",Adult Social Care,101,Third Party Payments,505,Other Establishments,5041,Revenue,NON INDIVIDUAL
02/01/2018,1552349,922.46,Redacted Personal Data,385580,"Health, Education, Care and Safeguarding",Adult Social Care,101,Third Party Payments,505,Other Establishments,5041,Revenue,NON INDIVIDUAL
02/01/2018,1552350,329.00,Redacted Personal Data,360078,"Health, Education, Care and Safeguarding",Adult Social Care,101,Third Party Payments,505,Other Establishments,5041,Revenue,NON INDIVIDUAL
02/01/2018,1552351,590.34,Redacted Personal Data,395633,"Health, Education, Care and Safeguarding",Adult Social Care,101,Third Party Payments,505,Other Establishments,5041,Revenue,NON INDIVIDUAL
02/01/2018,1552359,333.00,Redacted Personal Data,395473,"Health, Education, Care and Safeguarding",Adult Social Care,101,Third Party Payments,505,Other Establishments,5041,Revenue,NON INDIVIDUAL
02/01/2018,1552361,1585.40,NE LIFESTYLES LTD,395210,"Health, Education, Care and Safeguarding",Adult Social Care,101,Third Party Payments,505,Private Contractors,5042,Revenue,22.RESIDENTIAL
02/01/2018,1552362,316.00,Redacted Personal Data,372033,"Health, Education, Care and Safeguarding",Adult Social Care,101,Third Party Payments,505,Other Establishments,5041,Revenue,00.NON INFLUENCIBLE
02/01/2018,1552363,-3252.40,Redacted Personal Data,395077,"Health, Education, Care and Safeguarding",Public Health,112,Third Party Payments,505,Other Establishments,5041,Revenue,22.RESIDENTIAL
02/01/2018,1552363,495.43,Redacted Personal Data,395077,"Health, Education, Care and Safeguarding",Adult Social Care,101,Third Party Payments,505,Private Contractors,5042,Revenue,22.RESIDENTIAL
02/01/2018,1552363,2972.58,Redacted Personal Data,395077,"Health, Education, Care and Safeguarding",Adult Social Care,101,Third Party Payments,505,Private Contractors,5042,Revenue,22.RESIDENTIAL
02/01/2018,1552364,155.05,Redacted Personal Data,395039,"Health, Education, Care and Safeguarding",Adult Social Care,101,Third Party Payments,505,Other Establishments,5041,Revenue,22.RESIDENTIAL
02/01/2018,1552364,646.00,Redacted Personal Data,395039,"Health, Education, Care and Safeguarding",Adult Social Care,101,Third Party Payments,505,Private Contractors,5042,Revenue,22.RESIDENTIAL
02/01/2018,1552365,470.26,Redacted Personal Data,394963,"Health, Education, Care and Safeguarding",Adult Social Care,101,Third Party Payments,505,Private Contractors,5042,Revenue,22.RESIDENTIAL
02/01/2018,1552367,890.12,BRIAR DENE,321950,"Health, Education, Care and Safeguarding",Adult Social Care,101,Third Party Payments,505,Private Contractors,5042,Revenue,22.RESIDENTIAL
02/01/2018,1552368,901.22,FOCUS SOCIAL CARE,391317,"Health, Education, Care and Safeguarding",Adult Social Care,101,Third Party Payments,505,Other Establishments,5041,Revenue,22.SUPPORT SERVICES
02/01/2018,1552368,1114.04,FOCUS SOCIAL CARE,391317,"Health, Education, Care and Safeguarding",Adult Social Care,101,Third Party Payments,505,Other Establishments,5041,Revenue,22.SUPPORT SERVICES
02/01/2018,1552369,-57.46,Redacted Personal Data,376386,"Health, Education, Care and Safeguarding",Adult Social Care,101,Income,509,Customer and Client Receipts,5064,Revenue,NON INDIVIDUAL
02/01/2018,1552369,-0.19,Redacted Personal Data,376386,"Health, Education, Care and Safeguarding",Adult Social Care,101,Income,509,Customer and Client Receipts,5064,Revenue,NON INDIVIDUAL
02/01/2018,1552369,316.00,Redacted Personal Data,376386,"Health, Education, Care and Safeguarding",Adult Social Care,101,Third Party Payments,505,Other Establishments,5041,Revenue,NON INDIVIDUAL
02/01/2018,1552369,316.00,Redacted Personal Data,376386,"Health, Education, Care and Safeguarding",Adult Social Care,101,Third Party Payments,505,Other Establishments,5041,Revenue,NON INDIVIDUAL
02/01/2018,1552370,559.39,Redacted Personal Data,394671,"Health, Education, Care and Safeguarding",Adult Social Care,101,Third Party Payments,505,Private Contractors,5042,Revenue,22.RESIDENTIAL
02/01/2018,1552371,-2600.25,EOTHEN HOMES LTD,276943,"Health, Education, Care and Safeguarding",Adult Social Care,101,Third Party Payments,505,Private Contractors,5042,Revenue,22.RESIDENTIAL
02/01/2018,1552371,520.05,EOTHEN HOMES LTD,276943,"Health, Education, Care and Safeguarding",Adult Social Care,101,Third Party Payments,505,Private Contractors,5042,Revenue,22.RESIDENTIAL
02/01/2018,1552371,520.05,EOTHEN HOMES LTD,276943,"Health, Education, Care and Safeguarding",Adult Social Care,101,Third Party Payments,505,Private Contractors,5042,Revenue,22.RESIDENTIAL
02/01/2018,1552371,520.05,EOTHEN HOMES LTD,276943,"Health, Education, Care and Safeguarding",Adult Social Care,101,Third Party Payments,505,Private Contractors,5042,Revenue,22.RESIDENTIAL
02/01/2018,1552371,520.05,EOTHEN HOMES LTD,276943,"Health, Education, Care and Safeguarding",Adult Social Care,101,Third Party Payments,505,Private Contractors,5042,Revenue,22.RESIDENTIAL
02/01/2018,1552371,520.05,EOTHEN HOMES LTD,276943,"Health, Education, Care and Safeguarding",Adult Social Care,101,Third Party Payments,505,Private Contractors,5042,Revenue,22.RESIDENTIAL
02/01/2018,1552371,520.05,EOTHEN HOMES LTD,276943,"Health, Education, Care and Safeguarding",Adult Social Care,101,Third Party Payments,505,Private Contractors,5042,Revenue,22.RESIDENTIAL
02/01/2018,1552371,520.05,EOTHEN HOMES LTD,276943,"Health, Education, Care and Safeguarding",Adult Social Care,101,Third Party Payments,505,Private Contractors,5042,Revenue,22.RESIDENTIAL
02/01/2018,1552371,520.05,EOTHEN HOMES LTD,276943,"Health, Education, Care and Safeguarding",Adult Social Care,101,Third Party Payments,505,Private Contractors,5042,Revenue,22.RESIDENTIAL
02/01/2018,1552371,538.64,EOTHEN HOMES LTD,276943,"Health, Education, Care and Safeguarding",Adult Social Care,101,Third Party Payments,505,Private Contractors,5042,Revenue,22.RESIDENTIAL
02/01/2018,1552371,538.64,EOTHEN HOMES LTD,276943,"Health, Education, Care and Safeguarding",Adult Social Care,101,Third Party Payments,505,Private Contractors,5042,Revenue,22.RESIDENTIAL
02/01/2018,1552371,538.64,EOTHEN HOMES LTD,276943,"Health, Education, Care and Safeguarding",Adult Social Care,101,Third Party Payments,505,Private Contractors,5042,Revenue,22.RESIDENTIAL
02/01/2018,1552371,538.64,EOTHEN HOMES LTD,276943,"Health, Education, Care and Safeguarding",Adult Social Care,101,Third Party Payments,505,Private Contractors,5042,Revenue,22.RESIDENTIAL
02/01/2018,1552371,538.64,EOTHEN HOMES LTD,276943,"Health, Education, Care and Safeguarding",Adult Social Care,101,Third Party Payments,505,Private Contractors,5042,Revenue,22.RESIDENTIAL
02/01/2018,1552371,538.64,EOTHEN HOMES LTD,276943,"Health, Education, Care and Safeguarding",Adult Social Care,101,Third Party Payments,505,Private Contractors,5042,Revenue,22.RESIDENTIAL
02/01/2018,1552371,538.64,EOTHEN HOMES LTD,276943,"Health, Education, Care and Safeguarding",Adult Social Care,101,Third Party Payments,505,Private Contractors,5042,Revenue,22.RESIDENTIAL
02/01/2018,1552371,538.64,EOTHEN HOMES LTD,276943,"Health, Education, Care and Safeguarding",Adult Social Care,101,Third Party Payments,505,Private Contractors,5042,Revenue,22.RESIDENTIAL
02/01/2018,1552371,538.64,EOTHEN HOMES LTD,276943,"Health, Education, Care and Safeguarding",Adult Social Care,101,Third Party Payments,505,Private Contractors,5042,Revenue,22.RESIDENTIAL
02/01/2018,1552371,538.64,EOTHEN HOMES LTD,276943,"Health, Education, Care and Safeguarding",Adult Social Care,101,Third Party Payments,505,Private Contractors,5042,Revenue,22.RESIDENTIAL
02/01/2018,1552371,538.64,EOTHEN HOMES LTD,276943,"Health, Education, Care and Safeguarding",Adult Social Care,101,Third Party Payments,505,Private Contractors,5042,Revenue,22.RESIDENTIAL
02/01/2018,1552371,538.64,EOTHEN HOMES LTD,276943,"Health, Education, Care and Safeguarding",Adult Social Care,101,Third Party Payments,505,Private Contractors,5042,Revenue,22.RESIDENTIAL
02/01/2018,1552371,538.64,EOTHEN HOMES LTD,276943,"Health, Education, Care and Safeguarding",Adult Social Care,101,Third Party Payments,505,Private Contractors,5042,Revenue,22.RESIDENTIAL
02/01/2018,1552371,3120.30,EOTHEN HOMES LTD,276943,"Health, Education, Care and Safeguarding",Adult Social Care,101,Third Party Payments,505,Private Contractors,5042,Revenue,22.RESIDENTIAL
02/01/2018,1552372,-2693.20,AKARI CARE HOMES LIMITED,387465,"Health, Education, Care and Safeguarding",Adult Social Care,101,Third Party Payments,505,Private Contractors,5042,Revenue,22.RESIDENTIAL
02/01/2018,1552372,-2005.91,AKARI CARE HOMES LIMITED,387465,"Health, Education, Care and Safeguarding",Adult Social Care,101,Third Party Payments,505,Private Contractors,5042,Revenue,22.RESIDENTIAL
02/01/2018,1552372,-1931.61,AKARI CARE HOMES LIMITED,387465,"Health, Education, Care and Safeguarding",Adult Social Care,101,Third Party Payments,505,Private Contractors,5042,Revenue,22.RESIDENTIAL
02/01/2018,1552372,-1007.29,AKARI CARE HOMES LIMITED,387465,"Health, Education, Care and Safeguarding",Adult Social Care,101,Third Party Payments,505,Other Establishments,5041,Revenue,22.RESIDENTIAL
02/01/2018,1552372,-297.17,AKARI CARE HOMES LIMITED,387465,"Health, Education, Care and Safeguarding",Adult Social Care,101,Third Party Payments,505,Private Contractors,5042,Revenue,22.RESIDENTIAL
02/01/2018,1552372,44.30,AKARI CARE HOMES LIMITED,387465,"Health, Education, Care and Safeguarding",Adult Social Care,101,Third Party Payments,505,Other Establishments,5041,Revenue,22.RESIDENTIAL
02/01/2018,1552372,155.05,AKARI CARE HOMES LIMITED,387465,"Health, Education, Care and Safeguarding",Adult Social Care,101,Third Party Payments,505,Other Establishments,5041,Revenue,22.RESIDENTIAL
02/01/2018,1552372,155.05,AKARI CARE HOMES LIMITED,387465,"Health, Education, Care and Safeguarding",Adult Social Care,101,Third Party Payments,505,Other Establishments,5041,Revenue,22.RESIDENTIAL
02/01/2018,1552372,155.05,AKARI CARE HOMES LIMITED,387465,"Health, Education, Care and Safeguarding",Adult Social Care,101,Third Party Payments,505,Other Establishments,5041,Revenue,22.RESIDENTIAL
02/01/2018,1552372,155.05,AKARI CARE HOMES LIMITED,387465,"Health, Education, Care and Safeguarding",Adult Social Care,101,Third Party Payments,505,Other Establishments,5041,Revenue,22.RESIDENTIAL
02/01/2018,1552372,155.05,AKARI CARE HOMES LIMITED,387465,"Health, Education, Care and Safeguarding",Adult Social Care,101,Third Party Payments,505,Other Establishments,5041,Revenue,22.RESIDENTIAL
02/01/2018,1552372,155.05,AKARI CARE HOMES LIMITED,387465,"Health, Education, Care and Safeguarding",Adult Social Care,101,Third Party Payments,505,Other Establishments,5041,Revenue,22.RESIDENTIAL
02/01/2018,1552372,155.05,AKARI CARE HOMES LIMITED,387465,"Health, Education, Care and Safeguarding",Adult Social Care,101,Third Party Payments,505,Other Establishments,5041,Revenue,22.RESIDENTIAL
02/01/2018,1552372,155.05,AKARI CARE HOMES LIMITED,387465,"Health, Education, Care and Safeguarding",Adult Social Care,101,Third Party Payments,505,Other Establishments,5041,Revenue,22.RESIDENTIAL
02/01/2018,1552372,155.05,AKARI CARE HOMES LIMITED,387465,"Health, Education, Care and Safeguarding",Adult Social Care,101,Third Party Payments,505,Other Establishments,5041,Revenue,22.RESIDENTIAL
02/01/2018,1552372,155.05,AKARI CARE HOMES LIMITED,387465,"Health, Education, Care and Safeguarding",Adult Social Care,101,Third Party Payments,505,Other Establishments,5041,Revenue,22.RESIDENTIAL
02/01/2018,1552372,155.05,AKARI CARE HOMES LIMITED,387465,"Health, Education, Care and Safeguarding",Adult Social Care,101,Third Party Payments,505,Other Establishments,5041,Revenue,22.RESIDENTIAL
02/01/2018,1552372,155.05,AKARI CARE HOMES LIMITED,387465,"Health, Education, Care and Safeguarding",Adult Social Care,101,Third Party Payments,505,Other Establishments,5041,Revenue,22.RESIDENTIAL
02/01/2018,1552372,155.05,AKARI CARE HOMES LIMITED,387465,"Health, Education, Care and Safeguarding",Adult Social Care,101,Third Party Payments,505,Other Establishments,5041,Revenue,22.RESIDENTIAL
02/01/2018,1552372,155.05,AKARI CARE HOMES LIMITED,387465,"Health, Education, Care and Safeguarding",Adult Social Care,101,Third Party Payments,505,Other Establishments,5041,Revenue,22.RESIDENTIAL
02/01/2018,1552372,155.05,AKARI CARE HOMES LIMITED,387465,"Health, Education, Care and Safeguarding",Adult Social Care,101,Third Party Payments,505,Other Establishments,5041,Revenue,22.RESIDENTIAL
02/01/2018,1552372,155.05,AKARI CARE HOMES LIMITED,387465,"Health, Education, Care and Safeguarding",Adult Social Care,101,Third Party Payments,505,Other Establishments,5041,Revenue,22.RESIDENTIAL
02/01/2018,1552372,155.05,AKARI CARE HOMES LIMITED,387465,"Health, Education, Care and Safeguarding",Adult Social Care,101,Third Party Payments,505,Other Establishments,5041,Revenue,22.RESIDENTIAL
02/01/2018,1552372,155.05,AKARI CARE HOMES LIMITED,387465,"Health, Education, Care and Safeguarding",Adult Social Care,101,Third Party Payments,505,Other Establishments,5041,Revenue,22.RESIDENTIAL
02/01/2018,1552372,155.05,AKARI CARE HOMES LIMITED,387465,"Health, Education, Care and Safeguarding",Adult Social Care,101,Third Party Payments,505,Other Establishments,5041,Revenue,22.RESIDENTIAL
02/01/2018,1552372,155.05,AKARI CARE HOMES LIMITED,387465,"Health, Education, Care and Safeguarding",Adult Social Care,101,Third Party Payments,505,Other Establishments,5041,Revenue,22.RESIDENTIAL
02/01/2018,1552372,155.05,AKARI CARE HOMES LIMITED,387465,"Health, Education, Care and Safeguarding",Adult Social Care,101,Third Party Payments,505,Other Establishments,5041,Revenue,22.RESIDENTIAL
02/01/2018,1552372,155.05,AKARI CARE HOMES LIMITED,387465,"Health, Education, Care and Safeguarding",Adult Social Care,101,Third Party Payments,505,Other Establishments,5041,Revenue,22.RESIDENTIAL
02/01/2018,1552372,155.05,AKARI CARE HOMES LIMITED,387465,"Health, Education, Care and Safeguarding",Adult Social Care,101,Third Party Payments,505,Other Establishments,5041,Revenue,22.RESIDENTIAL
02/01/2018,1552372,155.05,AKARI CARE HOMES LIMITED,387465,"Health, Education, Care and Safeguarding",Adult Social Care,101,Third Party Payments,505,Other Establishments,5041,Revenue,22.RESIDENTIAL
02/01/2018,1552372,155.05,AKARI CARE HOMES LIMITED,387465,"Health, Education, Care and Safeguarding",Adult Social Care,101,Third Party Payments,505,Other Establishments,5041,Revenue,22.RESIDENTIAL
02/01/2018,1552372,155.05,AKARI CARE HOMES LIMITED,387465,"Health, Education, Care and Safeguarding",Adult Social Care,101,Third Party Payments,505,Other Establishments,5041,Revenue,22.RESIDENTIAL
02/01/2018,1552372,155.05,AKARI CARE HOMES LIMITED,387465,"Health, Education, Care and Safeguarding",Adult Social Care,101,Third Party Payments,505,Other Establishments,5041,Revenue,22.RESIDENTIAL
02/01/2018,1552372,155.05,AKARI CARE HOMES LIMITED,387465,"Health, Education, Care and Safeguarding",Adult Social Care,101,Third Party Payments,505,Other Establishments,5041,Revenue,22.RESIDENTIAL
02/01/2018,1552372,155.05,AKARI CARE HOMES LIMITED,387465,"Health, Education, Care and Safeguarding",Adult Social Care,101,Third Party Payments,505,Other Establishments,5041,Revenue,22.RESIDENTIAL
02/01/2018,1552372,155.05,AKARI CARE HOMES LIMITED,387465,"Health, Education, Care and Safeguarding",Adult Social Care,101,Third Party Payments,505,Other Establishments,5041,Revenue,22.RESIDENTIAL
02/01/2018,1552372,155.05,AKARI CARE HOMES LIMITED,387465,"Health, Education, Care and Safeguarding",Adult Social Care,101,Third Party Payments,505,Other Establishments,5041,Revenue,22.RESIDENTIAL
02/01/2018,1552372,155.05,AKARI CARE HOMES LIMITED,387465,"Health, Education, Care and Safeguarding",Adult Social Care,101,Third Party Payments,505,Other Establishments,5041,Revenue,22.RESIDENTIAL
02/01/2018,1552372,155.05,AKARI CARE HOMES LIMITED,387465,"Health, Education, Care and Safeguarding",Adult Social Care,101,Third Party Payments,505,Other Establishments,5041,Revenue,22.RESIDENTIAL
02/01/2018,1552372,155.05,AKARI CARE HOMES LIMITED,387465,"Health, Education, Care and Safeguarding",Adult Social Care,101,Third Party Payments,505,Other Establishments,5041,Revenue,22.RESIDENTIAL
02/01/2018,1552372,155.05,AKARI CARE HOMES LIMITED,387465,"Health, Education, Care and Safeguarding",Adult Social Care,101,Third Party Payments,505,Other Establishments,5041,Revenue,22.RESIDENTIAL
02/01/2018,1552372,222.88,AKARI CARE HOMES LIMITED,387465,"Health, Education, Care and Safeguarding",Adult Social Care,101,Third Party Payments,505,Private Contractors,5042,Revenue,22.RESIDENTIAL
02/01/2018,1552372,243.65,AKARI CARE HOMES LIMITED,387465,"Health, Education, Care and Safeguarding",Adult Social Care,101,Third Party Payments,505,Other Establishments,5041,Revenue,22.RESIDENTIAL
02/01/2018,1552372,371.46,AKARI CARE HOMES LIMITED,387465,"Health, Education, Care and Safeguarding",Adult Social Care,101,Third Party Payments,505,Private Contractors,5042,Revenue,22.RESIDENTIAL
02/01/2018,1552372,371.46,AKARI CARE HOMES LIMITED,387465,"Health, Education, Care and Safeguarding",Adult Social Care,101,Third Party Payments,505,Private Contractors,5042,Revenue,22.RESIDENTIAL
02/01/2018,1552372,488.15,AKARI CARE HOMES LIMITED,387465,"Health, Education, Care and Safeguarding",Adult Social Care,101,Third Party Payments,505,Private Contractors,5042,Revenue,22.RESIDENTIAL
02/01/2018,1552372,488.15,AKARI CARE HOMES LIMITED,387465,"Health, Education, Care and Safeguarding",Adult Social Care,101,Third Party Payments,505,Private Contractors,5042,Revenue,22.RESIDENTIAL
02/01/2018,1552372,488.15,AKARI CARE HOMES LIMITED,387465,"Health, Education, Care and Safeguarding",Adult Social Care,101,Third Party Payments,505,Private Contractors,5042,Revenue,22.RESIDENTIAL
02/01/2018,1552372,488.15,AKARI CARE HOMES LIMITED,387465,"Health, Education, Care and Safeguarding",Adult Social Care,101,Third Party Payments,505,Private Contractors,5042,Revenue,22.RESIDENTIAL
02/01/2018,1552372,488.15,AKARI CARE HOMES LIMITED,387465,"Health, Education, Care and Safeguarding",Adult Social Care,101,Third Party Payments,505,Private Contractors,5042,Revenue,22.RESIDENTIAL
02/01/2018,1552372,488.15,AKARI CARE HOMES LIMITED,387465,"Health, Education, Care and Safeguarding",Adult Social Care,101,Third Party Payments,505,Private Contractors,5042,Revenue,22.RESIDENTIAL
02/01/2018,1552372,488.15,AKARI CARE HOMES LIMITED,387465,"Health, Education, Care and Safeguarding",Adult Social Care,101,Third Party Payments,505,Private Contractors,5042,Revenue,22.RESIDENTIAL
02/01/2018,1552372,488.15,AKARI CARE HOMES LIMITED,387465,"Health, Education, Care and Safeguarding",Adult Social Care,101,Third Party Payments,505,Private Contractors,5042,Revenue,22.RESIDENTIAL
02/01/2018,1552372,488.15,AKARI CARE HOMES LIMITED,387465,"Health, Education, Care and Safeguarding",Adult Social Care,101,Third Party Payments,505,Private Contractors,5042,Revenue,22.RESIDENTIAL
02/01/2018,1552372,488.15,AKARI CARE HOMES LIMITED,387465,"Health, Education, Care and Safeguarding",Adult Social Care,101,Third Party Payments,505,Private Contractors,5042,Revenue,22.RESIDENTIAL
02/01/2018,1552372,488.15,AKARI CARE HOMES LIMITED,387465,"Health, Education, Care and Safeguarding",Adult Social Care,101,Third Party Payments,505,Private Contractors,5042,Revenue,22.RESIDENTIAL
02/01/2018,1552372,488.15,AKARI CARE HOMES LIMITED,387465,"Health, Education, Care and Safeguarding",Adult Social Care,101,Third Party Payments,505,Private Contractors,5042,Revenue,22.RESIDENTIAL
02/01/2018,1552372,488.15,AKARI CARE HOMES LIMITED,387465,"Health, Education, Care and Safeguarding",Adult Social Care,101,Third Party Payments,505,Private Contractors,5042,Revenue,22.RESIDENTIAL
02/01/2018,1552372,488.15,AKARI CARE HOMES LIMITED,387465,"Health, Education, Care and Safeguarding",Adult Social Care,101,Third Party Payments,505,Private Contractors,5042,Revenue,22.RESIDENTIAL
02/01/2018,1552372,488.15,AKARI CARE HOMES LIMITED,387465,"Health, Education, Care and Safeguarding",Adult Social Care,101,Third Party Payments,505,Private Contractors,5042,Revenue,22.RESIDENTIAL
02/01/2018,1552372,488.15,AKARI CARE HOMES LIMITED,387465,"Health, Education, Care and Safeguarding",Adult Social Care,101,Third Party Payments,505,Private Contractors,5042,Revenue,22.RESIDENTIAL
02/01/2018,1552372,488.15,AKARI CARE HOMES LIMITED,387465,"Health, Education, Care and Safeguarding",Adult Social Care,101,Third Party Payments,505,Private Contractors,5042,Revenue,22.RESIDENTIAL
02/01/2018,1552372,488.15,AKARI CARE HOMES LIMITED,387465,"Health, Education, Care and Safeguarding",Adult Social Care,101,Third Party Payments,505,Private Contractors,5042,Revenue,22.RESIDENTIAL
02/01/2018,1552372,488.15,AKARI CARE HOMES LIMITED,387465,"Health, Education, Care and Safeguarding",Adult Social Care,101,Third Party Payments,505,Private Contractors,5042,Revenue,22.RESIDENTIAL
02/01/2018,1552372,488.15,AKARI CARE HOMES LIMITED,387465,"Health, Education, Care and Safeguarding",Adult Social Care,101,Third Party Payments,505,Private Contractors,5042,Revenue,22.RESIDENTIAL
02/01/2018,1552372,488.15,AKARI CARE HOMES LIMITED,387465,"Health, Education, Care and Safeguarding",Adult Social Care,101,Third Party Payments,505,Private Contractors,5042,Revenue,22.RESIDENTIAL
02/01/2018,1552372,488.15,AKARI CARE HOMES LIMITED,387465,"Health, Education, Care and Safeguarding",Adult Social Care,101,Third Party Payments,505,Private Contractors,5042,Revenue,22.RESIDENTIAL
02/01/2018,1552372,488.15,AKARI CARE HOMES LIMITED,387465,"Health, Education, Care and Safeguarding",Adult Social Care,101,Third Party Payments,505,Private Contractors,5042,Revenue,22.RESIDENTIAL
02/01/2018,1552372,488.15,AKARI CARE HOMES LIMITED,387465,"Health, Education, Care and Safeguarding",Adult Social Care,101,Third Party Payments,505,Private Contractors,5042,Revenue,22.RESIDENTIAL
02/01/2018,1552372,488.15,AKARI CARE HOMES LIMITED,387465,"Health, Education, Care and Safeguarding",Adult Social Care,101,Third Party Payments,505,Private Contractors,5042,Revenue,22.RESIDENTIAL
02/01/2018,1552372,508.70,AKARI CARE HOMES LIMITED,387465,"Health, Education, Care and Safeguarding",Adult Social Care,101,Third Party Payments,505,Private Contractors,5042,Revenue,22.RESIDENTIAL
02/01/2018,1552372,508.70,AKARI CARE HOMES LIMITED,387465,"Health, Education, Care and Safeguarding",Adult Social Care,101,Third Party Payments,505,Private Contractors,5042,Revenue,22.RESIDENTIAL
02/01/2018,1552372,508.70,AKARI CARE HOMES LIMITED,387465,"Health, Education, Care and Safeguarding",Adult Social Care,101,Third Party Payments,505,Private Contractors,5042,Revenue,22.RESIDENTIAL
02/01/2018,1552372,508.70,AKARI CARE HOMES LIMITED,387465,"Health, Education, Care and Safeguarding",Adult Social Care,101,Third Party Payments,505,Private Contractors,5042,Revenue,22.RESIDENTIAL
02/01/2018,1552372,508.70,AKARI CARE HOMES LIMITED,387465,"Health, Education, Care and Safeguarding",Adult Social Care,101,Third Party Payments,505,Private Contractors,5042,Revenue,22.RESIDENTIAL
02/01/2018,1552372,508.70,AKARI CARE HOMES LIMITED,387465,"Health, Education, Care and Safeguarding",Adult Social Care,101,Third Party Payments,505,Private Contractors,5042,Revenue,22.RESIDENTIAL
02/01/2018,1552372,508.70,AKARI CARE HOMES LIMITED,387465,"Health, Education, Care and Safeguarding",Adult Social Care,101,Third Party Payments,505,Private Contractors,5042,Revenue,22.RESIDENTIAL
02/01/2018,1552372,508.70,AKARI CARE HOMES LIMITED,387465,"Health, Education, Care and Safeguarding",Adult Social Care,101,Third Party Payments,505,Private Contractors,5042,Revenue,22.RESIDENTIAL
02/01/2018,1552372,508.70,AKARI CARE HOMES LIMITED,387465,"Health, Education, Care and Safeguarding",Adult Social Care,101,Third Party Payments,505,Private Contractors,5042,Revenue,22.RESIDENTIAL
02/01/2018,1552372,508.70,AKARI CARE HOMES LIMITED,387465,"Health, Education, Care and Safeguarding",Adult Social Care,101,Third Party Payments,505,Private Contractors,5042,Revenue,22.RESIDENTIAL
02/01/2018,1552372,508.70,AKARI CARE HOMES LIMITED,387465,"Health, Education, Care and Safeguarding",Adult Social Care,101,Third Party Payments,505,Private Contractors,5042,Revenue,22.RESIDENTIAL
02/01/2018,1552372,508.70,AKARI CARE HOMES LIMITED,387465,"Health, Education, Care and Safeguarding",Adult Social Care,101,Third Party Payments,505,Private Contractors,5042,Revenue,22.RESIDENTIAL
02/01/2018,1552372,508.70,AKARI CARE HOMES LIMITED,387465,"Health, Education, Care and Safeguarding",Adult Social Care,101,Third Party Payments,505,Private Contractors,5042,Revenue,22.RESIDENTIAL
02/01/2018,1552372,508.70,AKARI CARE HOMES LIMITED,387465,"Health, Education, Care and Safeguarding",Adult Social Care,101,Third Party Payments,505,Private Contractors,5042,Revenue,22.RESIDENTIAL
02/01/2018,1552372,508.70,AKARI CARE HOMES LIMITED,387465,"Health, Education, Care and Safeguarding",Adult Social Care,101,Third Party Payments,505,Private Contractors,5042,Revenue,22.RESIDENTIAL
02/01/2018,1552372,508.70,AKARI CARE HOMES LIMITED,387465,"Health, Education, Care and Safeguarding",Adult Social Care,101,Third Party Payments,505,Private Contractors,5042,Revenue,22.RESIDENTIAL
02/01/2018,1552372,511.67,AKARI CARE HOMES LIMITED,387465,"Health, Education, Care and Safeguarding",Adult Social Care,101,Third Party Payments,505,Private Contractors,5042,Revenue,22.RESIDENTIAL
02/01/2018,1552372,511.67,AKARI CARE HOMES LIMITED,387465,"Health, Education, Care and Safeguarding",Adult Social Care,101,Third Party Payments,505,Private Contractors,5042,Revenue,22.RESIDENTIAL
02/01/2018,1552372,520.05,AKARI CARE HOMES LIMITED,387465,"Health, Education, Care and Safeguarding",Adult Social Care,101,Third Party Payments,505,Private Contractors,5042,Revenue,22.RESIDENTIAL
02/01/2018,1552372,520.05,AKARI CARE HOMES LIMITED,387465,"Health, Education, Care and Safeguarding",Adult Social Care,101,Third Party Payments,505,Private Contractors,5042,Revenue,22.RESIDENTIAL
02/01/2018,1552372,520.05,AKARI CARE HOMES LIMITED,387465,"Health, Education, Care and Safeguarding",Adult Social Care,101,Third Party Payments,505,Private Contractors,5042,Revenue,22.RESIDENTIAL
02/01/2018,1552372,520.05,AKARI CARE HOMES LIMITED,387465,"Health, Education, Care and Safeguarding",Adult Social Care,101,Third Party Payments,505,Private Contractors,5042,Revenue,22.RESIDENTIAL
02/01/2018,1552372,520.05,AKARI CARE HOMES LIMITED,387465,"Health, Education, Care and Safeguarding",Adult Social Care,101,Third Party Payments,505,Private Contractors,5042,Revenue,22.RESIDENTIAL
02/01/2018,1552372,520.05,AKARI CARE HOMES LIMITED,387465,"Health, Education, Care and Safeguarding",Adult Social Care,101,Third Party Payments,505,Private Contractors,5042,Revenue,22.RESIDENTIAL
02/01/2018,1552372,520.05,AKARI CARE HOMES LIMITED,387465,"Health, Education, Care and Safeguarding",Adult Social Care,101,Third Party Payments,505,Private Contractors,5042,Revenue,22.RESIDENTIAL
02/01/2018,1552372,520.05,AKARI CARE HOMES LIMITED,387465,"Health, Education, Care and Safeguarding",Adult Social Care,101,Third Party Payments,505,Private Contractors,5042,Revenue,22.RESIDENTIAL
02/01/2018,1552372,520.05,AKARI CARE HOMES LIMITED,387465,"Health, Education, Care and Safeguarding",Adult Social Care,101,Third Party Payments,505,Private Contractors,5042,Revenue,22.RESIDENTIAL
02/01/2018,1552372,520.05,AKARI CARE HOMES LIMITED,387465,"Health, Education, Care and Safeguarding",Adult Social Care,101,Third Party Payments,505,Private Contractors,5042,Revenue,22.RESIDENTIAL
02/01/2018,1552372,520.05,AKARI CARE HOMES LIMITED,387465,"Health, Education, Care and Safeguarding",Adult Social Care,101,Third Party Payments,505,Private Contractors,5042,Revenue,22.RESIDENTIAL
02/01/2018,1552372,520.05,AKARI CARE HOMES LIMITED,387465,"Health, Education, Care and Safeguarding",Adult Social Care,101,Third Party Payments,505,Private Contractors,5042,Revenue,22.RESIDENTIAL
02/01/2018,1552372,520.05,AKARI CARE HOMES LIMITED,387465,"Health, Education, Care and Safeguarding",Adult Social Care,101,Third Party Payments,505,Private Contractors,5042,Revenue,22.RESIDENTIAL
02/01/2018,1552372,520.05,AKARI CARE HOMES LIMITED,387465,"Health, Education, Care and Safeguarding",Adult Social Care,101,Third Party Payments,505,Private Contractors,5042,Revenue,22.RESIDENTIAL
02/01/2018,1552372,520.05,AKARI CARE HOMES LIMITED,387465,"Health, Education, Care and Safeguarding",Adult Social Care,101,Third Party Payments,505,Private Contractors,5042,Revenue,22.RESIDENTIAL
02/01/2018,1552372,520.05,AKARI CARE HOMES LIMITED,387465,"Health, Education, Care and Safeguarding",Adult Social Care,101,Third Party Payments,505,Private Contractors,5042,Revenue,22.RESIDENTIAL
02/01/2018,1552372,520.05,AKARI CARE HOMES LIMITED,387465,"Health, Education, Care and Safeguarding",Adult Social Care,101,Third Party Payments,505,Private Contractors,5042,Revenue,22.RESIDENTIAL
02/01/2018,1552372,520.05,AKARI CARE HOMES LIMITED,387465,"Health, Education, Care and Safeguarding",Adult Social Care,101,Third Party Payments,505,Private Contractors,5042,Revenue,22.RESIDENTIAL
02/01/2018,1552372,520.05,AKARI CARE HOMES LIMITED,387465,"Health, Education, Care and Safeguarding",Adult Social Care,101,Third Party Payments,505,Private Contractors,5042,Revenue,22.RESIDENTIAL
02/01/2018,1552372,520.05,AKARI CARE HOMES LIMITED,387465,"Health, Education, Care and Safeguarding",Adult Social Care,101,Third Party Payments,505,Private Contractors,5042,Revenue,22.RESIDENTIAL
02/01/2018,1552372,520.05,AKARI CARE HOMES LIMITED,387465,"Health, Education, Care and Safeguarding",Adult Social Care,101,Third Party Payments,505,Private Contractors,5042,Revenue,22.RESIDENTIAL
02/01/2018,1552372,520.05,AKARI CARE HOMES LIMITED,387465,"Health, Education, Care and Safeguarding",Adult Social Care,101,Third Party Payments,505,Private Contractors,5042,Revenue,22.RESIDENTIAL
02/01/2018,1552372,520.05,AKARI CARE HOMES LIMITED,387465,"Health, Education, Care and Safeguarding",Adult Social Care,101,Third Party Payments,505,Private Contractors,5042,Revenue,22.RESIDENTIAL
02/01/2018,1552372,520.05,AKARI CARE HOMES LIMITED,387465,"Health, Education, Care and Safeguarding",Adult Social Care,101,Third Party Payments,505,Private Contractors,5042,Revenue,22.RESIDENTIAL
02/01/2018,1552372,520.05,AKARI CARE HOMES LIMITED,387465,"Health, Education, Care and Safeguarding",Adult Social Care,101,Third Party Payments,505,Private Contractors,5042,Revenue,22.RESIDENTIAL
02/01/2018,1552372,520.05,AKARI CARE HOMES LIMITED,387465,"Health, Education, Care and Safeguarding",Adult Social Care,101,Third Party Payments,505,Private Contractors,5042,Revenue,22.RESIDENTIAL
02/01/2018,1552372,520.05,AKARI CARE HOMES LIMITED,387465,"Health, Education, Care and Safeguarding",Adult Social Care,101,Third Party Payments,505,Private Contractors,5042,Revenue,22.RESIDENTIAL
02/01/2018,1552372,520.05,AKARI CARE HOMES LIMITED,387465,"Health, Education, Care and Safeguarding",Adult Social Care,101,Third Party Payments,505,Private Contractors,5042,Revenue,22.RESIDENTIAL
02/01/2018,1552372,520.05,AKARI CARE HOMES LIMITED,387465,"Health, Education, Care and Safeguarding",Adult Social Care,101,Third Party Payments,505,Private Contractors,5042,Revenue,22.RESIDENTIAL
02/01/2018,1552372,520.05,AKARI CARE HOMES LIMITED,387465,"Health, Education, Care and Safeguarding",Adult Social Care,101,Third Party Payments,505,Private Contractors,5042,Revenue,22.RESIDENTIAL
02/01/2018,1552372,520.05,AKARI CARE HOMES LIMITED,387465,"Health, Education, Care and Safeguarding",Adult Social Care,101,Third Party Payments,505,Private Contractors,5042,Revenue,22.RESIDENTIAL
02/01/2018,1552372,520.05,AKARI CARE HOMES LIMITED,387465,"Health, Education, Care and Safeguarding",Adult Social Care,101,Third Party Payments,505,Private Contractors,5042,Revenue,22.RESIDENTIAL
02/01/2018,1552372,520.05,AKARI CARE HOMES LIMITED,387465,"Health, Education, Care and Safeguarding",Adult Social Care,101,Third Party Payments,505,Private Contractors,5042,Revenue,22.RESIDENTIAL
02/01/2018,1552372,520.05,AKARI CARE HOMES LIMITED,387465,"Health, Education, Care and Safeguarding",Adult Social Care,101,Third Party Payments,505,Private Contractors,5042,Revenue,22.RESIDENTIAL
02/01/2018,1552372,520.05,AKARI CARE HOMES LIMITED,387465,"Health, Education, Care and Safeguarding",Adult Social Care,101,Third Party Payments,505,Private Contractors,5042,Revenue,22.RESIDENTIAL
02/01/2018,1552372,520.05,AKARI CARE HOMES LIMITED,387465,"Health, Education, Care and Safeguarding",Adult Social Care,101,Third Party Payments,505,Private Contractors,5042,Revenue,22.RESIDENTIAL
02/01/2018,1552372,520.05,AKARI CARE HOMES LIMITED,387465,"Health, Education, Care and Safeguarding",Adult Social Care,101,Third Party Payments,505,Private Contractors,5042,Revenue,22.RESIDENTIAL
02/01/2018,1552372,520.05,AKARI CARE HOMES LIMITED,387465,"Health, Education, Care and Safeguarding",Adult Social Care,101,Third Party Payments,505,Private Contractors,5042,Revenue,22.RESIDENTIAL
02/01/2018,1552372,520.05,AKARI CARE HOMES LIMITED,387465,"Health, Education, Care and Safeguarding",Adult Social Care,101,Third Party Payments,505,Private Contractors,5042,Revenue,22.RESIDENTIAL
02/01/2018,1552372,520.05,AKARI CARE HOMES LIMITED,387465,"Health, Education, Care and Safeguarding",Adult Social Care,101,Third Party Payments,505,Private Contractors,5042,Revenue,22.RESIDENTIAL
02/01/2018,1552372,520.05,AKARI CARE HOMES LIMITED,387465,"Health, Education, Care and Safeguarding",Adult Social Care,101,Third Party Payments,505,Private Contractors,5042,Revenue,22.RESIDENTIAL
02/01/2018,1552372,520.05,AKARI CARE HOMES LIMITED,387465,"Health, Education, Care and Safeguarding",Adult Social Care,101,Third Party Payments,505,Private Contractors,5042,Revenue,22.RESIDENTIAL
02/01/2018,1552372,520.05,AKARI CARE HOMES LIMITED,387465,"Health, Education, Care and Safeguarding",Adult Social Care,101,Third Party Payments,505,Private Contractors,5042,Revenue,22.RESIDENTIAL
02/01/2018,1552372,520.05,AKARI CARE HOMES LIMITED,387465,"Health, Education, Care and Safeguarding",Adult Social Care,101,Third Party Payments,505,Private Contractors,5042,Revenue,22.RESIDENTIAL
02/01/2018,1552372,520.05,AKARI CARE HOMES LIMITED,387465,"Health, Education, Care and Safeguarding",Adult Social Care,101,Third Party Payments,505,Private Contractors,5042,Revenue,22.RESIDENTIAL
02/01/2018,1552385,155.05,ORCHARD CARE HOMES.COM,387538,"Health, Education, Care and Safeguarding",Adult Social Care,101,Third Party Payments,505,Other Establishments,5041,Revenue,22.RESIDENTIAL
02/01/2018,1552385,155.05,ORCHARD CARE HOMES.COM,387538,"Health, Education, Care and Safeguarding",Adult Social Care,101,Third Party Payments,505,Other Establishments,5041,Revenue,22.RESIDENTIAL
02/01/2018,1552385,155.05,ORCHARD CARE HOMES.COM,387538,"Health, Education, Care and Safeguarding",Adult Social Care,101,Third Party Payments,505,Other Establishments,5041,Revenue,22.RESIDENTIAL
02/01/2018,1552385,155.05,ORCHARD CARE HOMES.COM,387538,"Health, Education, Care and Safeguarding",Adult Social Care,101,Third Party Payments,505,Other Establishments,5041,Revenue,22.RESIDENTIAL
02/01/2018,1552385,520.05,ORCHARD CARE HOMES.COM,387538,"Health, Education, Care and Safeguarding",Adult Social Care,101,Third Party Payments,505,Private Contractors,5042,Revenue,22.RESIDENTIAL
02/01/2018,1552385,520.05,ORCHARD CARE HOMES.COM,387538,"Health, Education, Care and Safeguarding",Adult Social Care,101,Third Party Payments,505,Private Contractors,5042,Revenue,22.RESIDENTIAL
02/01/2018,1552385,538.64,ORCHARD CARE HOMES.COM,387538,"Health, Education, Care and Safeguarding",Adult Social Care,101,Third Party Payments,505,Private Contractors,5042,Revenue,22.RESIDENTIAL
02/01/2018,1552385,538.64,ORCHARD CARE HOMES.COM,387538,"Health, Education, Care and Safeguarding",Adult Social Care,101,Third Party Payments,505,Private Contractors,5042,Revenue,22.RESIDENTIAL
02/01/2018,1552385,538.64,ORCHARD CARE HOMES.COM,387538,"Health, Education, Care and Safeguarding",Adult Social Care,101,Third Party Payments,505,Private Contractors,5042,Revenue,22.RESIDENTIAL
02/01/2018,1552385,538.64,ORCHARD CARE HOMES.COM,387538,"Health, Education, Care and Safeguarding",Adult Social Care,101,Third Party Payments,505,Private Contractors,5042,Revenue,22.RESIDENTIAL
02/01/2018,1552385,538.64,ORCHARD CARE HOMES.COM,387538,"Health, Education, Care and Safeguarding",Adult Social Care,101,Third Party Payments,505,Private Contractors,5042,Revenue,22.RESIDENTIAL
02/01/2018,1552385,538.64,ORCHARD CARE HOMES.COM,387538,"Health, Education, Care and Safeguarding",Adult Social Care,101,Third Party Payments,505,Private Contractors,5042,Revenue,22.RESIDENTIAL
02/01/2018,1552385,538.64,ORCHARD CARE HOMES.COM,387538,"Health, Education, Care and Safeguarding",Adult Social Care,101,Third Party Payments,505,Private Contractors,5042,Revenue,22.RESIDENTIAL
02/01/2018,1552385,538.64,ORCHARD CARE HOMES.COM,387538,"Health, Education, Care and Safeguarding",Adult Social Care,101,Third Party Payments,505,Private Contractors,5042,Revenue,22.RESIDENTIAL
02/01/2018,1552385,538.64,ORCHARD CARE HOMES.COM,387538,"Health, Education, Care and Safeguarding",Adult Social Care,101,Third Party Payments,505,Private Contractors,5042,Revenue,22.RESIDENTIAL
02/01/2018,1552385,538.64,ORCHARD CARE HOMES.COM,387538,"Health, Education, Care and Safeguarding",Adult Social Care,101,Third Party Payments,505,Private Contractors,5042,Revenue,22.RESIDENTIAL
02/01/2018,1552385,538.64,ORCHARD CARE HOMES.COM,387538,"Health, Education, Care and Safeguarding",Adult Social Care,101,Third Party Payments,505,Private Contractors,5042,Revenue,22.RESIDENTIAL
02/01/2018,1552385,538.64,ORCHARD CARE HOMES.COM,387538,"Health, Education, Care and Safeguarding",Adult Social Care,101,Third Party Payments,505,Private Contractors,5042,Revenue,22.RESIDENTIAL
02/01/2018,1552385,538.64,ORCHARD CARE HOMES.COM,387538,"Health, Education, Care and Safeguarding",Adult Social Care,101,Third Party Payments,505,Private Contractors,5042,Revenue,22.RESIDENTIAL
02/01/2018,1552385,538.64,ORCHARD CARE HOMES.COM,387538,"Health, Education, Care and Safeguarding",Adult Social Care,101,Third Party Payments,505,Private Contractors,5042,Revenue,22.RESIDENTIAL
02/01/2018,1552385,538.64,ORCHARD CARE HOMES.COM,387538,"Health, Education, Care and Safeguarding",Adult Social Care,101,Third Party Payments,505,Private Contractors,5042,Revenue,22.RESIDENTIAL
02/01/2018,1552385,538.64,ORCHARD CARE HOMES.COM,387538,"Health, Education, Care and Safeguarding",Adult Social Care,101,Third Party Payments,505,Private Contractors,5042,Revenue,22.RESIDENTIAL
02/01/2018,1552385,538.64,ORCHARD CARE HOMES.COM,387538,"Health, Education, Care and Safeguarding",Adult Social Care,101,Third Party Payments,505,Private Contractors,5042,Revenue,22.RESIDENTIAL
02/01/2018,1552385,538.64,ORCHARD CARE HOMES.COM,387538,"Health, Education, Care and Safeguarding",Adult Social Care,101,Third Party Payments,505,Private Contractors,5042,Revenue,22.RESIDENTIAL
02/01/2018,1552385,538.64,ORCHARD CARE HOMES.COM,387538,"Health, Education, Care and Safeguarding",Adult Social Care,101,Third Party Payments,505,Private Contractors,5042,Revenue,22.RESIDENTIAL
02/01/2018,1552385,538.64,ORCHARD CARE HOMES.COM,387538,"Health, Education, Care and Safeguarding",Adult Social Care,101,Third Party Payments,505,Private Contractors,5042,Revenue,22.RESIDENTIAL
02/01/2018,1552385,538.64,ORCHARD CARE HOMES.COM,387538,"Health, Education, Care and Safeguarding",Adult Social Care,101,Third Party Payments,505,Private Contractors,5042,Revenue,22.RESIDENTIAL
02/01/2018,1552385,723.69,ORCHARD CARE HOMES.COM,387538,"Health, Education, Care and Safeguarding",Public Health,112,Third Party Payments,505,Other Establishments,5041,Revenue,22.RESIDENTIAL
02/01/2018,1552385,723.69,ORCHARD CARE HOMES.COM,387538,"Health, Education, Care and Safeguarding",Public Health,112,Third Party Payments,505,Other Establishments,5041,Revenue,22.RESIDENTIAL
02/01/2018,1552385,723.69,ORCHARD CARE HOMES.COM,387538,"Health, Education, Care and Safeguarding",Public Health,112,Third Party Payments,505,Other Establishments,5041,Revenue,22.RESIDENTIAL
02/01/2018,1552372,520.05,AKARI CARE HOMES LIMITED,387465,"Health, Education, Care and Safeguarding",Adult Social Care,101,Third Party Payments,505,Private Contractors,5042,Revenue,22.RESIDENTIAL
02/01/2018,1552372,520.05,AKARI CARE HOMES LIMITED,387465,"Health, Education, Care and Safeguarding",Adult Social Care,101,Third Party Payments,505,Private Contractors,5042,Revenue,22.RESIDENTIAL
02/01/2018,1552372,520.05,AKARI CARE HOMES LIMITED,387465,"Health, Education, Care and Safeguarding",Adult Social Care,101,Third Party Payments,505,Private Contractors,5042,Revenue,22.RESIDENTIAL
02/01/2018,1552372,538.64,AKARI CARE HOMES LIMITED,387465,"Health, Education, Care and Safeguarding",Adult Social Care,101,Third Party Payments,505,Private Contractors,5042,Revenue,22.RESIDENTIAL
02/01/2018,1552372,538.64,AKARI CARE HOMES LIMITED,387465,"Health, Education, Care and Safeguarding",Adult Social Care,101,Third Party Payments,505,Private Contractors,5042,Revenue,22.RESIDENTIAL
02/01/2018,1552372,538.64,AKARI CARE HOMES LIMITED,387465,"Health, Education, Care and Safeguarding",Adult Social Care,101,Third Party Payments,505,Private Contractors,5042,Revenue,22.RESIDENTIAL
02/01/2018,1552372,538.64,AKARI CARE HOMES LIMITED,387465,"Health, Education, Care and Safeguarding",Adult Social Care,101,Third Party Payments,505,Private Contractors,5042,Revenue,22.RESIDENTIAL
02/01/2018,1552372,538.64,AKARI CARE HOMES LIMITED,387465,"Health, Education, Care and Safeguarding",Adult Social Care,101,Third Party Payments,505,Private Contractors,5042,Revenue,22.RESIDENTIAL
02/01/2018,1552372,538.64,AKARI CARE HOMES LIMITED,387465,"Health, Education, Care and Safeguarding",Adult Social Care,101,Third Party Payments,505,Private Contractors,5042,Revenue,22.RESIDENTIAL
02/01/2018,1552372,538.64,AKARI CARE HOMES LIMITED,387465,"Health, Education, Care and Safeguarding",Adult Social Care,101,Third Party Payments,505,Private Contractors,5042,Revenue,22.RESIDENTIAL
02/01/2018,1552372,538.64,AKARI CARE HOMES LIMITED,387465,"Health, Education, Care and Safeguarding",Adult Social Care,101,Third Party Payments,505,Private Contractors,5042,Revenue,22.RESIDENTIAL
02/01/2018,1552372,538.64,AKARI CARE HOMES LIMITED,387465,"Health, Education, Care and Safeguarding",Adult Social Care,101,Third Party Payments,505,Private Contractors,5042,Revenue,22.RESIDENTIAL
02/01/2018,1552372,538.64,AKARI CARE HOMES LIMITED,387465,"Health, Education, Care and Safeguarding",Adult Social Care,101,Third Party Payments,505,Private Contractors,5042,Revenue,22.RESIDENTIAL
02/01/2018,1552372,538.64,AKARI CARE HOMES LIMITED,387465,"Health, Education, Care and Safeguarding",Adult Social Care,101,Third Party Payments,505,Private Contractors,5042,Revenue,22.RESIDENTIAL
02/01/2018,1552372,538.64,AKARI CARE HOMES LIMITED,387465,"Health, Education, Care and Safeguarding",Adult Social Care,101,Third Party Payments,505,Private Contractors,5042,Revenue,22.RESIDENTIAL
02/01/2018,1552372,538.64,AKARI CARE HOMES LIMITED,387465,"Health, Education, Care and Safeguarding",Adult Social Care,101,Third Party Payments,505,Private Contractors,5042,Revenue,22.RESIDENTIAL
02/01/2018,1552372,538.64,AKARI CARE HOMES LIMITED,387465,"Health, Education, Care and Safeguarding",Adult Social Care,101,Third Party Payments,505,Private Contractors,5042,Revenue,22.RESIDENTIAL
02/01/2018,1552372,538.64,AKARI CARE HOMES LIMITED,387465,"Health, Education, Care and Safeguarding",Adult Social Care,101,Third Party Payments,505,Private Contractors,5042,Revenue,22.RESIDENTIAL
02/01/2018,1552372,538.64,AKARI CARE HOMES LIMITED,387465,"Health, Education, Care and Safeguarding",Adult Social Care,101,Third Party Payments,505,Private Contractors,5042,Revenue,22.RESIDENTIAL
02/01/2018,1552372,538.64,AKARI CARE HOMES LIMITED,387465,"Health, Education, Care and Safeguarding",Adult Social Care,101,Third Party Payments,505,Private Contractors,5042,Revenue,22.RESIDENTIAL
02/01/2018,1552372,538.64,AKARI CARE HOMES LIMITED,387465,"Health, Education, Care and Safeguarding",Adult Social Care,101,Third Party Payments,505,Private Contractors,5042,Revenue,22.RESIDENTIAL
02/01/2018,1552372,538.64,AKARI CARE HOMES LIMITED,387465,"Health, Education, Care and Safeguarding",Adult Social Care,101,Third Party Payments,505,Private Contractors,5042,Revenue,22.RESIDENTIAL
02/01/2018,1552372,538.64,AKARI CARE HOMES LIMITED,387465,"Health, Education, Care and Safeguarding",Adult Social Care,101,Third Party Payments,505,Private Contractors,5042,Revenue,22.RESIDENTIAL
02/01/2018,1552372,538.64,AKARI CARE HOMES LIMITED,387465,"Health, Education, Care and Safeguarding",Adult Social Care,101,Third Party Payments,505,Private Contractors,5042,Revenue,22.RESIDENTIAL
02/01/2018,1552372,538.64,AKARI CARE HOMES LIMITED,387465,"Health, Education, Care and Safeguarding",Adult Social Care,101,Third Party Payments,505,Private Contractors,5042,Revenue,22.RESIDENTIAL
02/01/2018,1552372,538.64,AKARI CARE HOMES LIMITED,387465,"Health, Education, Care and Safeguarding",Adult Social Care,101,Third Party Payments,505,Private Contractors,5042,Revenue,22.RESIDENTIAL
02/01/2018,1552372,538.64,AKARI CARE HOMES LIMITED,387465,"Health, Education, Care and Safeguarding",Adult Social Care,101,Third Party Payments,505,Private Contractors,5042,Revenue,22.RESIDENTIAL
02/01/2018,1552372,538.86,AKARI CARE HOMES LIMITED,387465,"Health, Education, Care and Safeguarding",Adult Social Care,101,Third Party Payments,505,Private Contractors,5042,Revenue,22.RESIDENTIAL
02/01/2018,1552372,538.86,AKARI CARE HOMES LIMITED,387465,"Health, Education, Care and Safeguarding",Adult Social Care,101,Third Party Payments,505,Private Contractors,5042,Revenue,22.RESIDENTIAL
02/01/2018,1552372,538.86,AKARI CARE HOMES LIMITED,387465,"Health, Education, Care and Safeguarding",Adult Social Care,101,Third Party Payments,505,Private Contractors,5042,Revenue,22.RESIDENTIAL
02/01/2018,1552372,538.86,AKARI CARE HOMES LIMITED,387465,"Health, Education, Care and Safeguarding",Adult Social Care,101,Third Party Payments,505,Private Contractors,5042,Revenue,22.RESIDENTIAL
02/01/2018,1552372,538.86,AKARI CARE HOMES LIMITED,387465,"Health, Education, Care and Safeguarding",Adult Social Care,101,Third Party Payments,505,Private Contractors,5042,Revenue,22.RESIDENTIAL
02/01/2018,1552372,643.20,AKARI CARE HOMES LIMITED,387465,"Health, Education, Care and Safeguarding",Adult Social Care,101,Third Party Payments,505,Other Establishments,5041,Revenue,22.RESIDENTIAL
02/01/2018,1552372,643.20,AKARI CARE HOMES LIMITED,387465,"Health, Education, Care and Safeguarding",Adult Social Care,101,Third Party Payments,505,Other Establishments,5041,Revenue,22.RESIDENTIAL
02/01/2018,1552372,668.10,AKARI CARE HOMES LIMITED,387465,"Health, Education, Care and Safeguarding",Public Health,112,Third Party Payments,505,Other Establishments,5041,Revenue,22.RESIDENTIAL
02/01/2018,1552372,673.20,AKARI CARE HOMES LIMITED,387465,"Health, Education, Care and Safeguarding",Public Health,112,Third Party Payments,505,Other Establishments,5041,Revenue,22.RESIDENTIAL
02/01/2018,1552372,673.20,AKARI CARE HOMES LIMITED,387465,"Health, Education, Care and Safeguarding",Public Health,112,Third Party Payments,505,Other Establishments,5041,Revenue,22.RESIDENTIAL
02/01/2018,1552372,673.20,AKARI CARE HOMES LIMITED,387465,"Health, Education, Care and Safeguarding",Public Health,112,Third Party Payments,505,Other Establishments,5041,Revenue,22.RESIDENTIAL
02/01/2018,1552372,673.20,AKARI CARE HOMES LIMITED,387465,"Health, Education, Care and Safeguarding",Public Health,112,Third Party Payments,505,Other Establishments,5041,Revenue,22.RESIDENTIAL
02/01/2018,1552372,673.20,AKARI CARE HOMES LIMITED,387465,"Health, Education, Care and Safeguarding",Public Health,112,Third Party Payments,505,Other Establishments,5041,Revenue,22.RESIDENTIAL
02/01/2018,1552372,673.20,AKARI CARE HOMES LIMITED,387465,"Health, Education, Care and Safeguarding",Public Health,112,Third Party Payments,505,Other Establishments,5041,Revenue,22.RESIDENTIAL
02/01/2018,1552372,675.05,AKARI CARE HOMES LIMITED,387465,"Health, Education, Care and Safeguarding",Public Health,112,Third Party Payments,505,Other Establishments,5041,Revenue,22.RESIDENTIAL
02/01/2018,1552372,675.10,AKARI CARE HOMES LIMITED,387465,"Health, Education, Care and Safeguarding",Adult Social Care,101,Third Party Payments,505,Other Establishments,5041,Revenue,22.RESIDENTIAL
02/01/2018,1552372,675.10,AKARI CARE HOMES LIMITED,387465,"Health, Education, Care and Safeguarding",Adult Social Care,101,Third Party Payments,505,Other Establishments,5041,Revenue,22.RESIDENTIAL
02/01/2018,1552372,675.10,AKARI CARE HOMES LIMITED,387465,"Health, Education, Care and Safeguarding",Adult Social Care,101,Third Party Payments,505,Other Establishments,5041,Revenue,22.RESIDENTIAL
02/01/2018,1552372,675.10,AKARI CARE HOMES LIMITED,387465,"Health, Education, Care and Safeguarding",Adult Social Care,101,Third Party Payments,505,Other Establishments,5041,Revenue,22.RESIDENTIAL
02/01/2018,1552372,675.10,AKARI CARE HOMES LIMITED,387465,"Health, Education, Care and Safeguarding",Public Health,112,Third Party Payments,505,Other Establishments,5041,Revenue,22.RESIDENTIAL
02/01/2018,1552372,675.10,AKARI CARE HOMES LIMITED,387465,"Health, Education, Care and Safeguarding",Public Health,112,Third Party Payments,505,Other Establishments,5041,Revenue,22.RESIDENTIAL
02/01/2018,1552372,696.72,AKARI CARE HOMES LIMITED,387465,"Health, Education, Care and Safeguarding",Public Health,112,Third Party Payments,505,Other Establishments,5041,Revenue,22.RESIDENTIAL
02/01/2018,1552372,705.10,AKARI CARE HOMES LIMITED,387465,"Health, Education, Care and Safeguarding",Adult Social Care,101,Third Party Payments,505,Other Establishments,5041,Revenue,22.RESIDENTIAL
02/01/2018,1552372,705.10,AKARI CARE HOMES LIMITED,387465,"Health, Education, Care and Safeguarding",Adult Social Care,101,Third Party Payments,505,Other Establishments,5041,Revenue,22.RESIDENTIAL
02/01/2018,1552372,705.10,AKARI CARE HOMES LIMITED,387465,"Health, Education, Care and Safeguarding",Adult Social Care,101,Third Party Payments,505,Other Establishments,5041,Revenue,22.RESIDENTIAL
02/01/2018,1552372,705.10,AKARI CARE HOMES LIMITED,387465,"Health, Education, Care and Safeguarding",Adult Social Care,101,Third Party Payments,505,Other Establishments,5041,Revenue,22.RESIDENTIAL
02/01/2018,1552372,705.10,AKARI CARE HOMES LIMITED,387465,"Health, Education, Care and Safeguarding",Adult Social Care,101,Third Party Payments,505,Other Establishments,5041,Revenue,22.RESIDENTIAL
02/01/2018,1552372,705.10,AKARI CARE HOMES LIMITED,387465,"Health, Education, Care and Safeguarding",Public Health,112,Third Party Payments,505,Other Establishments,5041,Revenue,22.RESIDENTIAL
02/01/2018,1552372,705.10,AKARI CARE HOMES LIMITED,387465,"Health, Education, Care and Safeguarding",Public Health,112,Third Party Payments,505,Other Establishments,5041,Revenue,22.RESIDENTIAL
02/01/2018,1552372,705.10,AKARI CARE HOMES LIMITED,387465,"Health, Education, Care and Safeguarding",Public Health,112,Third Party Payments,505,Other Establishments,5041,Revenue,22.RESIDENTIAL
02/01/2018,1552372,705.10,AKARI CARE HOMES LIMITED,387465,"Health, Education, Care and Safeguarding",Public Health,112,Third Party Payments,505,Other Establishments,5041,Revenue,22.RESIDENTIAL
02/01/2018,1552372,705.10,AKARI CARE HOMES LIMITED,387465,"Health, Education, Care and Safeguarding",Public Health,112,Third Party Payments,505,Other Establishments,5041,Revenue,22.RESIDENTIAL
02/01/2018,1552372,705.10,AKARI CARE HOMES LIMITED,387465,"Health, Education, Care and Safeguarding",Public Health,112,Third Party Payments,505,Other Establishments,5041,Revenue,22.RESIDENTIAL
02/01/2018,1552372,705.10,AKARI CARE HOMES LIMITED,387465,"Health, Education, Care and Safeguarding",Public Health,112,Third Party Payments,505,Other Establishments,5041,Revenue,22.RESIDENTIAL
02/01/2018,1552372,705.10,AKARI CARE HOMES LIMITED,387465,"Health, Education, Care and Safeguarding",Public Health,112,Third Party Payments,505,Other Establishments,5041,Revenue,22.RESIDENTIAL
02/01/2018,1552372,705.10,AKARI CARE HOMES LIMITED,387465,"Health, Education, Care and Safeguarding",Public Health,112,Third Party Payments,505,Other Establishments,5041,Revenue,22.RESIDENTIAL
02/01/2018,1552372,723.91,AKARI CARE HOMES LIMITED,387465,"Health, Education, Care and Safeguarding",Public Health,112,Third Party Payments,505,Other Establishments,5041,Revenue,22.RESIDENTIAL
02/01/2018,1552372,723.91,AKARI CARE HOMES LIMITED,387465,"Health, Education, Care and Safeguarding",Public Health,112,Third Party Payments,505,Other Establishments,5041,Revenue,22.RESIDENTIAL
02/01/2018,1552372,723.91,AKARI CARE HOMES LIMITED,387465,"Health, Education, Care and Safeguarding",Public Health,112,Third Party Payments,505,Other Establishments,5041,Revenue,22.RESIDENTIAL
02/01/2018,1552372,762.05,AKARI CARE HOMES LIMITED,387465,"Health, Education, Care and Safeguarding",Public Health,112,Third Party Payments,505,Other Establishments,5041,Revenue,22.RESIDENTIAL
02/01/2018,1552372,767.09,AKARI CARE HOMES LIMITED,387465,"Health, Education, Care and Safeguarding",Adult Social Care,101,Third Party Payments,505,Private Contractors,5042,Revenue,22.RESIDENTIAL
02/01/2018,1552372,1040.10,AKARI CARE HOMES LIMITED,387465,"Health, Education, Care and Safeguarding",Adult Social Care,101,Third Party Payments,505,Private Contractors,5042,Revenue,22.RESIDENTIAL
02/01/2018,1552372,1308.66,AKARI CARE HOMES LIMITED,387465,"Health, Education, Care and Safeguarding",Adult Social Care,101,Third Party Payments,505,Private Contractors,5042,Revenue,22.RESIDENTIAL
02/01/2018,1552372,1337.27,AKARI CARE HOMES LIMITED,387465,"Health, Education, Care and Safeguarding",Adult Social Care,101,Third Party Payments,505,Private Contractors,5042,Revenue,22.RESIDENTIAL
02/01/2018,1552372,1337.27,AKARI CARE HOMES LIMITED,387465,"Health, Education, Care and Safeguarding",Adult Social Care,101,Third Party Payments,505,Private Contractors,5042,Revenue,22.RESIDENTIAL
02/01/2018,1552372,1385.07,AKARI CARE HOMES LIMITED,387465,"Health, Education, Care and Safeguarding",Adult Social Care,101,Third Party Payments,505,Private Contractors,5042,Revenue,22.RESIDENTIAL
02/01/2018,1552372,1538.97,AKARI CARE HOMES LIMITED,387465,"Health, Education, Care and Safeguarding",Adult Social Care,101,Third Party Payments,505,Private Contractors,5042,Revenue,22.RESIDENTIAL
02/01/2018,1552373,500.00,Redacted Personal Data,394653,"Health, Education, Care and Safeguarding",Adult Social Care,101,Third Party Payments,505,Private Contractors,5042,Revenue,22.RESIDENTIAL
02/01/2018,1552374,485.63,CREATIVE SUPPORT LTD,359340,"Health, Education, Care and Safeguarding",Adult Social Care,101,Third Party Payments,505,Private Contractors,5042,Revenue,22.HOMECARE
02/01/2018,1552374,523.35,CREATIVE SUPPORT LTD,359340,"Health, Education, Care and Safeguarding",Adult Social Care,101,Third Party Payments,505,Private Contractors,5042,Revenue,22.HOMECARE
02/01/2018,1552374,536.75,CREATIVE SUPPORT LTD,359340,"Health, Education, Care and Safeguarding",Adult Social Care,101,Third Party Payments,505,Private Contractors,5042,Revenue,22.HOMECARE
02/01/2018,1552374,550.15,CREATIVE SUPPORT LTD,359340,"Health, Education, Care and Safeguarding",Adult Social Care,101,Third Party Payments,505,Private Contractors,5042,Revenue,22.HOMECARE
02/01/2018,1552374,603.75,CREATIVE SUPPORT LTD,359340,"Health, Education, Care and Safeguarding",Adult Social Care,101,Third Party Payments,505,Private Contractors,5042,Revenue,22.HOMECARE
02/01/2018,1552374,668.81,CREATIVE SUPPORT LTD,359340,"Health, Education, Care and Safeguarding",Adult Social Care,101,Third Party Payments,505,Private Contractors,5042,Revenue,22.HOMECARE
02/01/2018,1552374,991.90,CREATIVE SUPPORT LTD,359340,"Health, Education, Care and Safeguarding",Adult Social Care,101,Third Party Payments,505,Private Contractors,5042,Revenue,22.HOMECARE
02/01/2018,1552374,1946.00,CREATIVE SUPPORT LTD,359340,"Health, Education, Care and Safeguarding",Adult Social Care,101,Third Party Payments,505,Private Contractors,5042,Revenue,22.HOMECARE
02/01/2018,1552375,841.96,WILKINSON PARK,322345,"Health, Education, Care and Safeguarding",Adult Social Care,101,Third Party Payments,505,Private Contractors,5042,Revenue,22.RESIDENTIAL
02/01/2018,1552375,925.41,WILKINSON PARK,322345,"Health, Education, Care and Safeguarding",Adult Social Care,101,Third Party Payments,505,Private Contractors,5042,Revenue,22.RESIDENTIAL
02/01/2018,1552375,1275.00,WILKINSON PARK,322345,"Health, Education, Care and Safeguarding",Adult Social Care,101,Third Party Payments,505,Private Contractors,5042,Revenue,22.RESIDENTIAL
02/01/2018,1552375,1297.00,WILKINSON PARK,322345,"Health, Education, Care and Safeguarding",Adult Social Care,101,Third Party Payments,505,Private Contractors,5042,Revenue,22.RESIDENTIAL
02/01/2018,1552375,1633.10,WILKINSON PARK,322345,"Health, Education, Care and Safeguarding",Adult Social Care,101,Third Party Payments,505,Private Contractors,5042,Revenue,22.RESIDENTIAL
02/01/2018,1552376,155.05,HC ONE LIMITED - ASHINGTON GRANGE,394401,"Health, Education, Care and Safeguarding",Adult Social Care,101,Third Party Payments,505,Other Establishments,5041,Revenue,22.RESIDENTIAL
02/01/2018,1552376,545.50,HC ONE LIMITED - ASHINGTON GRANGE,394401,"Health, Education, Care and Safeguarding",Adult Social Care,101,Third Party Payments,505,Private Contractors,5042,Revenue,22.RESIDENTIAL
02/01/2018,1552377,523.60,Redacted Personal Data,394343,"Health, Education, Care and Safeguarding",Adult Social Care,101,Third Party Payments,505,Private Contractors,5042,Revenue,22.RESIDENTIAL
02/01/2018,1552378,69.36,LEONARD CHESHIRE DISABILITY,375897,"Health, Education, Care and Safeguarding",Public Health,112,Third Party Payments,505,Other Establishments,5041,Revenue,22.SUPPORT SERVICES
02/01/2018,1552378,1683.68,LEONARD CHESHIRE DISABILITY,375897,"Health, Education, Care and Safeguarding",Adult Social Care,101,Third Party Payments,505,Other Establishments,5041,Revenue,22.SUPPORT SERVICES
02/01/2018,1552379,814.96,Redacted Personal Data,389516,"Health, Education, Care and Safeguarding",Adult Social Care,101,Third Party Payments,505,Other Establishments,5041,Revenue,00.NON INFLUENCIBLE
02/01/2018,1552380,-37.80,Redacted Personal Data,394022,"Health, Education, Care and Safeguarding",Adult Social Care,101,Income,509,Customer and Client Receipts,5064,Revenue,NON INDIVIDUAL
02/01/2018,1552380,316.00,Redacted Personal Data,394022,"Health, Education, Care and Safeguarding",Adult Social Care,101,Third Party Payments,505,Other Establishments,5041,Revenue,NON INDIVIDUAL
02/01/2018,1552380,353.00,Redacted Personal Data,394022,"Health, Education, Care and Safeguarding",Adult Social Care,101,Third Party Payments,505,Other Establishments,5041,Revenue,NON INDIVIDUAL
02/01/2018,1552383,914.60,BARCHESTER HEALTHCARE T/A LONGUEVILLE COURT,393767,"Health, Education, Care and Safeguarding",Public Health,112,Third Party Payments,505,Other Establishments,5041,Revenue,22.RESIDENTIAL
02/01/2018,1552384,1356.71,AUGUSTA CARE LTD,393744,"Health, Education, Care and Safeguarding",Adult Social Care,101,Third Party Payments,505,Private Contractors,5042,Revenue,22.RESIDENTIAL
02/01/2018,1552385,155.05,ORCHARD CARE HOMES.COM,387538,"Health, Education, Care and Safeguarding",Adult Social Care,101,Third Party Payments,505,Other Establishments,5041,Revenue,22.RESIDENTIAL
02/01/2018,1552385,155.05,ORCHARD CARE HOMES.COM,387538,"Health, Education, Care and Safeguarding",Adult Social Care,101,Third Party Payments,505,Other Establishments,5041,Revenue,22.RESIDENTIAL
02/01/2018,1552385,155.05,ORCHARD CARE HOMES.COM,387538,"Health, Education, Care and Safeguarding",Adult Social Care,101,Third Party Payments,505,Other Establishments,5041,Revenue,22.RESIDENTIAL
02/01/2018,1552385,155.05,ORCHARD CARE HOMES.COM,387538,"Health, Education, Care and Safeguarding",Adult Social Care,101,Third Party Payments,505,Other Establishments,5041,Revenue,22.RESIDENTIAL
02/01/2018,1552385,155.05,ORCHARD CARE HOMES.COM,387538,"Health, Education, Care and Safeguarding",Adult Social Care,101,Third Party Payments,505,Other Establishments,5041,Revenue,22.RESIDENTIAL
02/01/2018,1552385,155.05,ORCHARD CARE HOMES.COM,387538,"Health, Education, Care and Safeguarding",Adult Social Care,101,Third Party Payments,505,Other Establishments,5041,Revenue,22.RESIDENTIAL
02/01/2018,1552385,155.05,ORCHARD CARE HOMES.COM,387538,"Health, Education, Care and Safeguarding",Adult Social Care,101,Third Party Payments,505,Other Establishments,5041,Revenue,22.RESIDENTIAL
02/01/2018,1552385,155.05,ORCHARD CARE HOMES.COM,387538,"Health, Education, Care and Safeguarding",Adult Social Care,101,Third Party Payments,505,Other Establishments,5041,Revenue,22.RESIDENTIAL
02/01/2018,1552385,723.69,ORCHARD CARE HOMES.COM,387538,"Health, Education, Care and Safeguarding",Public Health,112,Third Party Payments,505,Other Establishments,5041,Revenue,22.RESIDENTIAL
02/01/2018,1552385,723.69,ORCHARD CARE HOMES.COM,387538,"Health, Education, Care and Safeguarding",Public Health,112,Third Party Payments,505,Other Establishments,5041,Revenue,22.RESIDENTIAL
02/01/2018,1552385,723.69,ORCHARD CARE HOMES.COM,387538,"Health, Education, Care and Safeguarding",Public Health,112,Third Party Payments,505,Other Establishments,5041,Revenue,22.RESIDENTIAL
02/01/2018,1552388,-57.46,Redacted Personal Data,393492,"Health, Education, Care and Safeguarding",Adult Social Care,101,Income,509,Customer and Client Receipts,5064,Revenue,NON INDIVIDUAL
02/01/2018,1552388,316.00,Redacted Personal Data,393492,"Health, Education, Care and Safeguarding",Adult Social Care,101,Third Party Payments,505,Other Establishments,5041,Revenue,NON INDIVIDUAL
02/01/2018,1552388,316.00,Redacted Personal Data,393492,"Health, Education, Care and Safeguarding",Adult Social Care,101,Third Party Payments,505,Other Establishments,5041,Revenue,NON INDIVIDUAL
02/01/2018,1552389,423.00,DEAFBLIND ENABLEMENT LTD,390700,"Health, Education, Care and Safeguarding",Adult Social Care,101,Third Party Payments,505,Other Establishments,5041,Revenue,22.SUPPORT SERVICES
02/01/2018,1552390,1438.35,THE WHITE HORSE CARE TRUST,393309,"Health, Education, Care and Safeguarding",Adult Social Care,101,Third Party Payments,505,Private Contractors,5042,Revenue,22.RESIDENTIAL
02/01/2018,1552391,-2692.80,NORTHRIDGE HEALTHCARE LTD,393276,"Health, Education, Care and Safeguarding",Adult Social Care,101,Third Party Payments,505,Other Establishments,5041,Revenue,22.RESIDENTIAL
02/01/2018,1552391,155.05,NORTHRIDGE HEALTHCARE LTD,393276,"Health, Education, Care and Safeguarding",Adult Social Care,101,Third Party Payments,505,Other Establishments,5041,Revenue,22.RESIDENTIAL
02/01/2018,1552391,488.15,NORTHRIDGE HEALTHCARE LTD,393276,"Health, Education, Care and Safeguarding",Adult Social Care,101,Third Party Payments,505,Private Contractors,5042,Revenue,22.RESIDENTIAL
02/01/2018,1552391,643.20,NORTHRIDGE HEALTHCARE LTD,393276,"Health, Education, Care and Safeguarding",Adult Social Care,101,Third Party Payments,505,Other Establishments,5041,Revenue,22.RESIDENTIAL
02/01/2018,1552391,673.20,NORTHRIDGE HEALTHCARE LTD,393276,"Health, Education, Care and Safeguarding",Adult Social Care,101,Third Party Payments,505,Other Establishments,5041,Revenue,22.RESIDENTIAL
02/01/2018,1552391,673.20,NORTHRIDGE HEALTHCARE LTD,393276,"Health, Education, Care and Safeguarding",Public Health,112,Third Party Payments,505,Other Establishments,5041,Revenue,22.RESIDENTIAL
02/01/2018,1552391,673.20,NORTHRIDGE HEALTHCARE LTD,393276,"Health, Education, Care and Safeguarding",Public Health,112,Third Party Payments,505,Other Establishments,5041,Revenue,22.RESIDENTIAL
02/01/2018,1552391,1154.06,NORTHRIDGE HEALTHCARE LTD,393276,"Health, Education, Care and Safeguarding",Adult Social Care,101,Third Party Payments,505,Other Establishments,5041,Revenue,22.RESIDENTIAL
02/01/2018,1552391,4200.00,NORTHRIDGE HEALTHCARE LTD,393276,"Health, Education, Care and Safeguarding",Adult Social Care,101,Third Party Payments,505,Private Contractors,5042,Revenue,22.RESIDENTIAL
02/01/2018,1552392,605.00,ARCADIA CARE HOMES,393208,"Health, Education, Care and Safeguarding",Adult Social Care,101,Third Party Payments,505,Private Contractors,5042,Revenue,22.RESIDENTIAL
02/01/2018,1552393,294.23,MEADOW WELL CONNECTED,355522,"Health, Education, Care and Safeguarding",Adult Social Care,101,Third Party Payments,505,Other Establishments,5041,Revenue,22.SUPPORT SERVICES
02/01/2018,1552394,500.62,HELEN MCARDLE CARE,392923,"Health, Education, Care and Safeguarding",Adult Social Care,101,Third Party Payments,505,Private Contractors,5042,Revenue,22.RESIDENTIAL
02/01/2018,1552395,554.55,HELEN MCARDLE CARE,392922,"Health, Education, Care and Safeguarding",Adult Social Care,101,Third Party Payments,505,Private Contractors,5042,Revenue,22.RESIDENTIAL
02/01/2018,1552397,777.00,CARE UK MENTAL HEALTH PARTNERSHIPS LTD,333648,"Health, Education, Care and Safeguarding",Adult Social Care,101,Third Party Payments,505,Private Contractors,5042,Revenue,22.RESIDENTIAL
02/01/2018,1552397,777.00,CARE UK MENTAL HEALTH PARTNERSHIPS LTD,333648,"Health, Education, Care and Safeguarding",Adult Social Care,101,Third Party Payments,505,Private Contractors,5042,Revenue,22.RESIDENTIAL
02/01/2018,1552399,-10.65,Redacted Personal Data,379947,"Health, Education, Care and Safeguarding",Adult Social Care,101,Capital,Capital,Capital,Capital,Revenue,00.GRANT
02/01/2018,1552399,560.60,Redacted Personal Data,379947,"Health, Education, Care and Safeguarding",Adult Social Care,101,Third Party Payments,505,Other Establishments,5041,Revenue,00.GRANT
02/01/2018,1552400,-84.19,Redacted Personal Data,371324,"Health, Education, Care and Safeguarding",Adult Social Care,101,Capital,Capital,Capital,Capital,Revenue,00.NON INFLUENCIBLE
02/01/2018,1552400,1739.96,Redacted Personal Data,371324,"Health, Education, Care and Safeguarding",Adult Social Care,101,Third Party Payments,505,Other Establishments,5041,Revenue,00.NON INFLUENCIBLE
02/01/2018,1552401,273.80,UNITED RESPONSE,330350,"Health, Education, Care and Safeguarding",Adult Social Care,101,Third Party Payments,505,Private Contractors,5042,Revenue,22.SUPPORT SERVICES
02/01/2018,1552401,292.60,UNITED RESPONSE,330350,"Health, Education, Care and Safeguarding",Adult Social Care,101,Third Party Payments,505,Private Contractors,5042,Revenue,22.SUPPORT SERVICES
02/01/2018,1552401,803.36,UNITED RESPONSE,330350,"Health, Education, Care and Safeguarding",Adult Social Care,101,Third Party Payments,505,Private Contractors,5042,Revenue,22.SUPPORT SERVICES
02/01/2018,1552401,803.36,UNITED RESPONSE,330350,"Health, Education, Care and Safeguarding",Adult Social Care,101,Third Party Payments,505,Private Contractors,5042,Revenue,22.SUPPORT SERVICES
02/01/2018,1552401,803.36,UNITED RESPONSE,330350,"Health, Education, Care and Safeguarding",Adult Social Care,101,Third Party Payments,505,Private Contractors,5042,Revenue,22.SUPPORT SERVICES
02/01/2018,1552401,864.39,UNITED RESPONSE,330350,"Health, Education, Care and Safeguarding",Adult Social Care,101,Third Party Payments,505,Private Contractors,5042,Revenue,22.SUPPORT SERVICES
02/01/2018,1552401,909.15,UNITED RESPONSE,330350,"Health, Education, Care and Safeguarding",Adult Social Care,101,Third Party Payments,505,Private Contractors,5042,Revenue,22.SUPPORT SERVICES
02/01/2018,1552401,947.04,UNITED RESPONSE,330350,"Health, Education, Care and Safeguarding",Adult Social Care,101,Third Party Payments,505,Private Contractors,5042,Revenue,22.SUPPORT SERVICES
02/01/2018,1552401,947.04,UNITED RESPONSE,330350,"Health, Education, Care and Safeguarding",Adult Social Care,101,Third Party Payments,505,Private Contractors,5042,Revenue,22.SUPPORT SERVICES
02/01/2018,1552401,991.80,UNITED RESPONSE,330350,"Health, Education, Care and Safeguarding",Adult Social Care,101,Third Party Payments,505,Private Contractors,5042,Revenue,22.SUPPORT SERVICES
02/01/2018,1552401,1029.69,UNITED RESPONSE,330350,"Health, Education, Care and Safeguarding",Adult Social Care,101,Third Party Payments,505,Private Contractors,5042,Revenue,22.SUPPORT SERVICES
02/01/2018,1552401,1039.40,UNITED RESPONSE,330350,"Health, Education, Care and Safeguarding",Adult Social Care,101,Third Party Payments,505,Private Contractors,5042,Revenue,22.SUPPORT SERVICES
02/01/2018,1552401,1136.44,UNITED RESPONSE,330350,"Health, Education, Care and Safeguarding",Adult Social Care,101,Third Party Payments,505,Private Contractors,5042,Revenue,22.SUPPORT SERVICES
02/01/2018,1552401,1214.04,UNITED RESPONSE,330350,"Health, Education, Care and Safeguarding",Adult Social Care,101,Third Party Payments,505,Private Contractors,5042,Revenue,22.SUPPORT SERVICES
02/01/2018,1552401,1230.01,UNITED RESPONSE,330350,"Health, Education, Care and Safeguarding",Adult Social Care,101,Third Party Payments,505,Private Contractors,5042,Revenue,22.SUPPORT SERVICES
02/01/2018,1552401,1230.01,UNITED RESPONSE,330350,"Health, Education, Care and Safeguarding",Adult Social Care,101,Third Party Payments,505,Private Contractors,5042,Revenue,22.SUPPORT SERVICES
02/01/2018,1552401,1230.01,UNITED RESPONSE,330350,"Health, Education, Care and Safeguarding",Adult Social Care,101,Third Party Payments,505,Private Contractors,5042,Revenue,22.SUPPORT SERVICES
02/01/2018,1552401,1384.39,UNITED RESPONSE,330350,"Health, Education, Care and Safeguarding",Adult Social Care,101,Third Party Payments,505,Private Contractors,5042,Revenue,22.SUPPORT SERVICES
02/01/2018,1552401,1392.66,UNITED RESPONSE,330350,"Health, Education, Care and Safeguarding",Adult Social Care,101,Third Party Payments,505,Private Contractors,5042,Revenue,22.SUPPORT SERVICES
02/01/2018,1552401,1520.90,UNITED RESPONSE,330350,"Health, Education, Care and Safeguarding",Adult Social Care,101,Third Party Payments,505,Private Contractors,5042,Revenue,22.SUPPORT SERVICES
02/01/2018,1552401,1534.54,UNITED RESPONSE,330350,"Health, Education, Care and Safeguarding",Adult Social Care,101,Third Party Payments,505,Private Contractors,5042,Revenue,22.SUPPORT SERVICES
02/01/2018,1552401,1633.64,UNITED RESPONSE,330350,"Health, Education, Care and Safeguarding",Adult Social Care,101,Third Party Payments,505,Private Contractors,5042,Revenue,22.SUPPORT SERVICES
02/01/2018,1552401,1702.31,UNITED RESPONSE,330350,"Health, Education, Care and Safeguarding",Adult Social Care,101,Third Party Payments,505,Private Contractors,5042,Revenue,22.SUPPORT SERVICES
02/01/2018,1552401,1734.89,UNITED RESPONSE,330350,"Health, Education, Care and Safeguarding",Adult Social Care,101,Third Party Payments,505,Private Contractors,5042,Revenue,22.SUPPORT SERVICES
02/01/2018,1552401,1762.20,UNITED RESPONSE,330350,"Health, Education, Care and Safeguarding",Adult Social Care,101,Third Party Payments,505,Private Contractors,5042,Revenue,22.SUPPORT SERVICES
02/01/2018,1552401,1765.90,UNITED RESPONSE,330350,"Health, Education, Care and Safeguarding",Adult Social Care,101,Third Party Payments,505,Private Contractors,5042,Revenue,22.SUPPORT SERVICES
02/01/2018,1552401,1782.20,UNITED RESPONSE,330350,"Health, Education, Care and Safeguarding",Adult Social Care,101,Third Party Payments,505,Private Contractors,5042,Revenue,22.SUPPORT SERVICES
02/01/2018,1552401,1788.85,UNITED RESPONSE,330350,"Health, Education, Care and Safeguarding",Public Health,112,Third Party Payments,505,Private Contractors,5042,Revenue,22.SUPPORT SERVICES
02/01/2018,1552401,1816.34,UNITED RESPONSE,330350,"Health, Education, Care and Safeguarding",Adult Social Care,101,Third Party Payments,505,Private Contractors,5042,Revenue,22.SUPPORT SERVICES
02/01/2018,1552401,2013.85,UNITED RESPONSE,330350,"Health, Education, Care and Safeguarding",Adult Social Care,101,Third Party Payments,505,Private Contractors,5042,Revenue,22.SUPPORT SERVICES
02/01/2018,1552401,2179.15,UNITED RESPONSE,330350,"Health, Education, Care and Safeguarding",Adult Social Care,101,Third Party Payments,505,Private Contractors,5042,Revenue,22.SUPPORT SERVICES
02/01/2018,1552401,2582.82,UNITED RESPONSE,330350,"Health, Education, Care and Safeguarding",Adult Social Care,101,Third Party Payments,505,Private Contractors,5042,Revenue,22.SUPPORT SERVICES
02/01/2018,1552401,2909.28,UNITED RESPONSE,330350,"Health, Education, Care and Safeguarding",Adult Social Care,101,Third Party Payments,505,Other Establishments,5041,Revenue,22.SUPPORT SERVICES
02/01/2018,1552401,3306.00,UNITED RESPONSE,330350,"Health, Education, Care and Safeguarding",Adult Social Care,101,Third Party Payments,505,Private Contractors,5042,Revenue,22.SUPPORT SERVICES
02/01/2018,1552401,3580.40,UNITED RESPONSE,330350,"Health, Education, Care and Safeguarding",Adult Social Care,101,Third Party Payments,505,Other Establishments,5041,Revenue,22.SUPPORT SERVICES
02/01/2018,1552401,3600.10,UNITED RESPONSE,330350,"Health, Education, Care and Safeguarding",Public Health,112,Third Party Payments,505,Private Contractors,5042,Revenue,22.SUPPORT SERVICES
02/01/2018,1552401,3621.24,UNITED RESPONSE,330350,"Health, Education, Care and Safeguarding",Adult Social Care,101,Third Party Payments,505,Private Contractors,5042,Revenue,22.SUPPORT SERVICES
02/01/2018,1552401,3798.90,UNITED RESPONSE,330350,"Health, Education, Care and Safeguarding",Adult Social Care,101,Third Party Payments,505,Private Contractors,5042,Revenue,22.SUPPORT SERVICES
02/01/2018,1552403,948.75,AUTISM CARE (UK) LIMITED,387636,"Health, Education, Care and Safeguarding",Adult Social Care,101,Third Party Payments,505,Private Contractors,5042,Revenue,22.RESIDENTIAL
02/01/2018,1552403,2389.50,AUTISM CARE (UK) LIMITED,387636,"Health, Education, Care and Safeguarding",Adult Social Care,101,Third Party Payments,505,Private Contractors,5042,Revenue,22.RESIDENTIAL
02/01/2018,1552403,2488.50,AUTISM CARE (UK) LIMITED,387636,"Health, Education, Care and Safeguarding",Adult Social Care,101,Third Party Payments,505,Private Contractors,5042,Revenue,22.RESIDENTIAL
02/01/2018,1552403,2581.00,AUTISM CARE (UK) LIMITED,387636,"Health, Education, Care and Safeguarding",Adult Social Care,101,Third Party Payments,505,Private Contractors,5042,Revenue,22.RESIDENTIAL
02/01/2018,1552403,6184.01,AUTISM CARE (UK) LIMITED,387636,"Health, Education, Care and Safeguarding",Public Health,112,Third Party Payments,505,Private Contractors,5042,Revenue,22.RESIDENTIAL
02/01/2018,1552404,1963.92,WAYMARKS LTD,386037,"Health, Education, Care and Safeguarding",Adult Social Care,101,Third Party Payments,505,Other Establishments,5041,Revenue,22.SUPPORT SERVICES
02/01/2018,1552405,627.15,EXECUTIVE CARE GROUP RE PEMBROKE CARE HOME,375477,"Health, Education, Care and Safeguarding",Adult Social Care,101,Third Party Payments,505,Private Contractors,5042,Revenue,22.RESIDENTIAL
02/01/2018,1552406,584.59,EXECUTIVE CARE GROUP,358649,"Health, Education, Care and Safeguarding",Adult Social Care,101,Third Party Payments,505,Private Contractors,5042,Revenue,22.RESIDENTIAL
02/01/2018,1552407,2636.20,Redacted Personal Data,368587,"Health, Education, Care and Safeguarding",Adult Social Care,101,Third Party Payments,505,Other Establishments,5041,Revenue,NON INDIVIDUAL
02/01/2018,1552408,410.22,Redacted Personal Data,392105,"Health, Education, Care and Safeguarding",Adult Social Care,101,Third Party Payments,505,Other Establishments,5041,Revenue,22.SUPPORT SERVICES
02/01/2018,1552409,316.00,Redacted Personal Data,392025,"Health, Education, Care and Safeguarding",Adult Social Care,101,Third Party Payments,505,Other Establishments,5041,Revenue,00.NON INFLUENCIBLE
02/01/2018,1552411,-954.20,STONHAM HOUSING ASSOCIATION,303595,"Health, Education, Care and Safeguarding",Adult Social Care,101,Third Party Payments,505,Private Contractors,5042,Revenue,22.SUPPORT SERVICES
02/01/2018,1552411,395.49,STONHAM HOUSING ASSOCIATION,303595,"Health, Education, Care and Safeguarding",Adult Social Care,101,Third Party Payments,505,Private Contractors,5042,Revenue,22.SUPPORT SERVICES
02/01/2018,1552412,378.00,PCA INDEPENDENT LIVING SOLUTIONS LLP,387634,"Health, Education, Care and Safeguarding",Adult Social Care,101,Third Party Payments,505,Other Establishments,5041,Revenue,22.DAY CARE SERVICES
02/01/2018,1552413,-100.65,HOMES TOGETHER LTD,356831,"Health, Education, Care and Safeguarding",Adult Social Care,101,Income,509,Customer and Client Receipts,5064,Revenue,00.NON INFLUENCIBLE
02/01/2018,1552413,290.22,HOMES TOGETHER LTD,356831,"Health, Education, Care and Safeguarding",Adult Social Care,101,Third Party Payments,505,Private Contractors,5042,Revenue,00.NON INFLUENCIBLE
02/01/2018,1552413,1302.45,HOMES TOGETHER LTD,356831,"Health, Education, Care and Safeguarding",Adult Social Care,101,Third Party Payments,505,Private Contractors,5042,Revenue,00.NON INFLUENCIBLE
02/01/2018,1552414,155.05,Redacted Personal Data,391906,"Health, Education, Care and Safeguarding",Adult Social Care,101,Third Party Payments,505,Other Establishments,5041,Revenue,22.RESIDENTIAL
02/01/2018,1552414,483.64,Redacted Personal Data,391906,"Health, Education, Care and Safeguarding",Adult Social Care,101,Third Party Payments,505,Private Contractors,5042,Revenue,22.RESIDENTIAL
02/01/2018,1552415,825.10,EQUAL PARTNERSHIPS LTD,391549,"Health, Education, Care and Safeguarding",Adult Social Care,101,Third Party Payments,505,Other Establishments,5041,Revenue,22.SUPPORT SERVICES
02/01/2018,1552415,1036.83,EQUAL PARTNERSHIPS LTD,391549,"Health, Education, Care and Safeguarding",Adult Social Care,101,Third Party Payments,505,Other Establishments,5041,Revenue,22.SUPPORT SERVICES
02/01/2018,1552415,1086.40,EQUAL PARTNERSHIPS LTD,391549,"Health, Education, Care and Safeguarding",Adult Social Care,101,Third Party Payments,505,Other Establishments,5041,Revenue,22.SUPPORT SERVICES
02/01/2018,1552416,-2600.25,HELEN MCARDLE CARE,391638,"Health, Education, Care and Safeguarding",Adult Social Care,101,Third Party Payments,505,Private Contractors,5042,Revenue,22.RESIDENTIAL
02/01/2018,1552416,520.05,HELEN MCARDLE CARE,391638,"Health, Education, Care and Safeguarding",Adult Social Care,101,Third Party Payments,505,Private Contractors,5042,Revenue,22.RESIDENTIAL
02/01/2018,1552416,520.05,HELEN MCARDLE CARE,391638,"Health, Education, Care and Safeguarding",Adult Social Care,101,Third Party Payments,505,Private Contractors,5042,Revenue,22.RESIDENTIAL
02/01/2018,1552416,538.64,HELEN MCARDLE CARE,391638,"Health, Education, Care and Safeguarding",Adult Social Care,101,Third Party Payments,505,Private Contractors,5042,Revenue,22.RESIDENTIAL
02/01/2018,1552416,538.64,HELEN MCARDLE CARE,391638,"Health, Education, Care and Safeguarding",Adult Social Care,101,Third Party Payments,505,Private Contractors,5042,Revenue,22.RESIDENTIAL
02/01/2018,1552416,538.64,HELEN MCARDLE CARE,391638,"Health, Education, Care and Safeguarding",Adult Social Care,101,Third Party Payments,505,Private Contractors,5042,Revenue,22.RESIDENTIAL
02/01/2018,1552417,-73.80,Redacted Personal Data,353764,"Health, Education, Care and Safeguarding",Adult Social Care,101,Capital,Capital,Capital,Capital,Revenue,NON INDIVIDUAL
02/01/2018,1552417,3025.96,Redacted Personal Data,353764,"Health, Education, Care and Safeguarding",Adult Social Care,101,Third Party Payments,505,Other Establishments,5041,Revenue,NON INDIVIDUAL
02/01/2018,1552418,465.16,RENAL HEALTH LIMITED,391424,"Health, Education, Care and Safeguarding",Adult Social Care,101,Third Party Payments,505,Private Contractors,5042,Revenue,22.RESIDENTIAL
02/01/2018,1552418,465.16,RENAL HEALTH LIMITED,391424,"Health, Education, Care and Safeguarding",Adult Social Care,101,Third Party Payments,505,Private Contractors,5042,Revenue,22.RESIDENTIAL
02/01/2018,1552418,465.16,RENAL HEALTH LIMITED,391424,"Health, Education, Care and Safeguarding",Adult Social Care,101,Third Party Payments,505,Private Contractors,5042,Revenue,22.RESIDENTIAL
02/01/2018,1552418,465.16,RENAL HEALTH LIMITED,391424,"Health, Education, Care and Safeguarding",Adult Social Care,101,Third Party Payments,505,Private Contractors,5042,Revenue,22.RESIDENTIAL
02/01/2018,1552418,465.16,RENAL HEALTH LIMITED,391424,"Health, Education, Care and Safeguarding",Adult Social Care,101,Third Party Payments,505,Private Contractors,5042,Revenue,22.RESIDENTIAL
02/01/2018,1552418,465.16,RENAL HEALTH LIMITED,391424,"Health, Education, Care and Safeguarding",Adult Social Care,101,Third Party Payments,505,Private Contractors,5042,Revenue,22.RESIDENTIAL
02/01/2018,1552418,524.61,RENAL HEALTH LIMITED,391424,"Health, Education, Care and Safeguarding",Adult Social Care,101,Third Party Payments,505,Private Contractors,5042,Revenue,22.RESIDENTIAL
02/01/2018,1552418,524.61,RENAL HEALTH LIMITED,391424,"Health, Education, Care and Safeguarding",Adult Social Care,101,Third Party Payments,505,Private Contractors,5042,Revenue,22.RESIDENTIAL
02/01/2018,1552418,524.61,RENAL HEALTH LIMITED,391424,"Health, Education, Care and Safeguarding",Adult Social Care,101,Third Party Payments,505,Private Contractors,5042,Revenue,22.RESIDENTIAL
02/01/2018,1552418,524.61,RENAL HEALTH LIMITED,391424,"Health, Education, Care and Safeguarding",Adult Social Care,101,Third Party Payments,505,Private Contractors,5042,Revenue,22.RESIDENTIAL
02/01/2018,1552418,524.61,RENAL HEALTH LIMITED,391424,"Health, Education, Care and Safeguarding",Adult Social Care,101,Third Party Payments,505,Private Contractors,5042,Revenue,22.RESIDENTIAL
02/01/2018,1552418,524.61,RENAL HEALTH LIMITED,391424,"Health, Education, Care and Safeguarding",Adult Social Care,101,Third Party Payments,505,Private Contractors,5042,Revenue,22.RESIDENTIAL
02/01/2018,1552418,524.61,RENAL HEALTH LIMITED,391424,"Health, Education, Care and Safeguarding",Adult Social Care,101,Third Party Payments,505,Private Contractors,5042,Revenue,22.RESIDENTIAL
02/01/2018,1552418,524.61,RENAL HEALTH LIMITED,391424,"Health, Education, Care and Safeguarding",Adult Social Care,101,Third Party Payments,505,Private Contractors,5042,Revenue,22.RESIDENTIAL
02/01/2018,1552418,524.61,RENAL HEALTH LIMITED,391424,"Health, Education, Care and Safeguarding",Adult Social Care,101,Third Party Payments,505,Private Contractors,5042,Revenue,22.RESIDENTIAL
02/01/2018,1552419,362.30,HOME FARM TRUST LTD,391420,"Health, Education, Care and Safeguarding",Adult Social Care,101,Third Party Payments,505,Other Establishments,5041,Revenue,22.SUPPORT SERVICES
02/01/2018,1552419,402.50,HOME FARM TRUST LTD,391420,"Health, Education, Care and Safeguarding",Adult Social Care,101,Third Party Payments,505,Other Establishments,5041,Revenue,22.SUPPORT SERVICES
02/01/2018,1552419,402.50,HOME FARM TRUST LTD,391420,"Health, Education, Care and Safeguarding",Adult Social Care,101,Third Party Payments,505,Other Establishments,5041,Revenue,22.SUPPORT SERVICES
02/01/2018,1552423,488.15,WALLDENE COURT - ANCHOR TRUST,323724,"Health, Education, Care and Safeguarding",Adult Social Care,101,Third Party Payments,505,Private Contractors,5042,Revenue,22.RESIDENTIAL
02/01/2018,1552423,488.15,WALLDENE COURT - ANCHOR TRUST,323724,"Health, Education, Care and Safeguarding",Adult Social Care,101,Third Party Payments,505,Private Contractors,5042,Revenue,22.RESIDENTIAL
02/01/2018,1552423,508.70,WALLDENE COURT - ANCHOR TRUST,323724,"Health, Education, Care and Safeguarding",Adult Social Care,101,Third Party Payments,505,Private Contractors,5042,Revenue,22.RESIDENTIAL
02/01/2018,1552423,508.70,WALLDENE COURT - ANCHOR TRUST,323724,"Health, Education, Care and Safeguarding",Adult Social Care,101,Third Party Payments,505,Private Contractors,5042,Revenue,22.RESIDENTIAL
02/01/2018,1552423,508.70,WALLDENE COURT - ANCHOR TRUST,323724,"Health, Education, Care and Safeguarding",Adult Social Care,101,Third Party Payments,505,Private Contractors,5042,Revenue,22.RESIDENTIAL
02/01/2018,1552423,508.70,WALLDENE COURT - ANCHOR TRUST,323724,"Health, Education, Care and Safeguarding",Adult Social Care,101,Third Party Payments,505,Private Contractors,5042,Revenue,22.RESIDENTIAL
02/01/2018,1552423,508.70,WALLDENE COURT - ANCHOR TRUST,323724,"Health, Education, Care and Safeguarding",Adult Social Care,101,Third Party Payments,505,Private Contractors,5042,Revenue,22.RESIDENTIAL
02/01/2018,1552423,508.70,WALLDENE COURT - ANCHOR TRUST,323724,"Health, Education, Care and Safeguarding",Adult Social Care,101,Third Party Payments,505,Private Contractors,5042,Revenue,22.RESIDENTIAL
02/01/2018,1552423,508.70,WALLDENE COURT - ANCHOR TRUST,323724,"Health, Education, Care and Safeguarding",Adult Social Care,101,Third Party Payments,505,Private Contractors,5042,Revenue,22.RESIDENTIAL
02/01/2018,1552423,508.70,WALLDENE COURT - ANCHOR TRUST,323724,"Health, Education, Care and Safeguarding",Adult Social Care,101,Third Party Payments,505,Private Contractors,5042,Revenue,22.RESIDENTIAL
02/01/2018,1552423,508.70,WALLDENE COURT - ANCHOR TRUST,323724,"Health, Education, Care and Safeguarding",Adult Social Care,101,Third Party Payments,505,Private Contractors,5042,Revenue,22.RESIDENTIAL
02/01/2018,1552423,673.20,WALLDENE COURT - ANCHOR TRUST,323724,"Health, Education, Care and Safeguarding",Adult Social Care,101,Third Party Payments,505,Other Establishments,5041,Revenue,22.RESIDENTIAL
02/01/2018,1552423,673.20,WALLDENE COURT - ANCHOR TRUST,323724,"Health, Education, Care and Safeguarding",Public Health,112,Third Party Payments,505,Other Establishments,5041,Revenue,22.RESIDENTIAL
02/01/2018,1552423,673.20,WALLDENE COURT - ANCHOR TRUST,323724,"Health, Education, Care and Safeguarding",Public Health,112,Third Party Payments,505,Other Establishments,5041,Revenue,22.RESIDENTIAL
02/01/2018,1552423,673.20,WALLDENE COURT - ANCHOR TRUST,323724,"Health, Education, Care and Safeguarding",Public Health,112,Third Party Payments,505,Other Establishments,5041,Revenue,22.RESIDENTIAL
02/01/2018,1552423,673.20,WALLDENE COURT - ANCHOR TRUST,323724,"Health, Education, Care and Safeguarding",Public Health,112,Third Party Payments,505,Other Establishments,5041,Revenue,22.RESIDENTIAL
02/01/2018,1552423,673.20,WALLDENE COURT - ANCHOR TRUST,323724,"Health, Education, Care and Safeguarding",Public Health,112,Third Party Payments,505,Other Establishments,5041,Revenue,22.RESIDENTIAL
02/01/2018,1552425,1890.90,EQUAL PARTNERSHIPS LTD,390887,"Health, Education, Care and Safeguarding",Adult Social Care,101,Third Party Payments,505,Other Establishments,5041,Revenue,NON INDIVIDUAL
02/01/2018,1552426,520.05,ST MARTINS CARE LIMITED,383318,"Health, Education, Care and Safeguarding",Adult Social Care,101,Third Party Payments,505,Private Contractors,5042,Revenue,22.RESIDENTIAL
02/01/2018,1552426,520.05,ST MARTINS CARE LIMITED,383318,"Health, Education, Care and Safeguarding",Adult Social Care,101,Third Party Payments,505,Private Contractors,5042,Revenue,22.RESIDENTIAL
02/01/2018,1552426,520.05,ST MARTINS CARE LIMITED,383318,"Health, Education, Care and Safeguarding",Adult Social Care,101,Third Party Payments,505,Private Contractors,5042,Revenue,22.RESIDENTIAL
02/01/2018,1552426,520.05,ST MARTINS CARE LIMITED,383318,"Health, Education, Care and Safeguarding",Adult Social Care,101,Third Party Payments,505,Private Contractors,5042,Revenue,22.RESIDENTIAL
02/01/2018,1552426,520.05,ST MARTINS CARE LIMITED,383318,"Health, Education, Care and Safeguarding",Adult Social Care,101,Third Party Payments,505,Private Contractors,5042,Revenue,22.RESIDENTIAL
02/01/2018,1552426,520.05,ST MARTINS CARE LIMITED,383318,"Health, Education, Care and Safeguarding",Adult Social Care,101,Third Party Payments,505,Private Contractors,5042,Revenue,22.RESIDENTIAL
02/01/2018,1552426,520.05,ST MARTINS CARE LIMITED,383318,"Health, Education, Care and Safeguarding",Adult Social Care,101,Third Party Payments,505,Private Contractors,5042,Revenue,22.RESIDENTIAL
02/01/2018,1552426,520.05,ST MARTINS CARE LIMITED,383318,"Health, Education, Care and Safeguarding",Adult Social Care,101,Third Party Payments,505,Private Contractors,5042,Revenue,22.RESIDENTIAL
02/01/2018,1552426,520.05,ST MARTINS CARE LIMITED,383318,"Health, Education, Care and Safeguarding",Adult Social Care,101,Third Party Payments,505,Private Contractors,5042,Revenue,22.RESIDENTIAL
02/01/2018,1552426,520.05,ST MARTINS CARE LIMITED,383318,"Health, Education, Care and Safeguarding",Adult Social Care,101,Third Party Payments,505,Private Contractors,5042,Revenue,22.RESIDENTIAL
02/01/2018,1552426,520.05,ST MARTINS CARE LIMITED,383318,"Health, Education, Care and Safeguarding",Adult Social Care,101,Third Party Payments,505,Private Contractors,5042,Revenue,22.RESIDENTIAL
02/01/2018,1552426,520.05,ST MARTINS CARE LIMITED,383318,"Health, Education, Care and Safeguarding",Adult Social Care,101,Third Party Payments,505,Private Contractors,5042,Revenue,22.RESIDENTIAL
02/01/2018,1552445,538.64,CRAMLINGTON HOUSE LTD,389741,"Health, Education, Care and Safeguarding",Adult Social Care,101,Third Party Payments,505,Private Contractors,5042,Revenue,22.RESIDENTIAL
02/01/2018,1552445,538.64,CRAMLINGTON HOUSE LTD,389741,"Health, Education, Care and Safeguarding",Adult Social Care,101,Third Party Payments,505,Private Contractors,5042,Revenue,22.RESIDENTIAL
02/01/2018,1552445,538.64,CRAMLINGTON HOUSE LTD,389741,"Health, Education, Care and Safeguarding",Adult Social Care,101,Third Party Payments,505,Private Contractors,5042,Revenue,22.RESIDENTIAL
02/01/2018,1552445,3120.30,CRAMLINGTON HOUSE LTD,389741,"Health, Education, Care and Safeguarding",Adult Social Care,101,Third Party Payments,505,Private Contractors,5042,Revenue,22.RESIDENTIAL
02/01/2018,1552449,-0.37,Redacted Personal Data,395488,"Health, Education, Care and Safeguarding",Adult Social Care,101,Capital,Capital,Capital,Capital,Revenue,NON INDIVIDUAL
02/01/2018,1552449,263.50,Redacted Personal Data,395488,"Health, Education, Care and Safeguarding",Adult Social Care,101,Third Party Payments,505,Other Establishments,5041,Revenue,NON INDIVIDUAL
02/01/2018,1552419,402.50,HOME FARM TRUST LTD,391420,"Health, Education, Care and Safeguarding",Adult Social Care,101,Third Party Payments,505,Other Establishments,5041,Revenue,22.SUPPORT SERVICES
02/01/2018,1552419,452.35,HOME FARM TRUST LTD,391420,"Health, Education, Care and Safeguarding",Adult Social Care,101,Third Party Payments,505,Other Establishments,5041,Revenue,22.SUPPORT SERVICES
02/01/2018,1552419,460.61,HOME FARM TRUST LTD,391420,"Health, Education, Care and Safeguarding",Adult Social Care,101,Third Party Payments,505,Other Establishments,5041,Revenue,22.SUPPORT SERVICES
02/01/2018,1552419,460.61,HOME FARM TRUST LTD,391420,"Health, Education, Care and Safeguarding",Adult Social Care,101,Third Party Payments,505,Other Establishments,5041,Revenue,22.SUPPORT SERVICES
02/01/2018,1552419,460.61,HOME FARM TRUST LTD,391420,"Health, Education, Care and Safeguarding",Adult Social Care,101,Third Party Payments,505,Other Establishments,5041,Revenue,22.SUPPORT SERVICES
02/01/2018,1552419,500.81,HOME FARM TRUST LTD,391420,"Health, Education, Care and Safeguarding",Adult Social Care,101,Third Party Payments,505,Other Establishments,5041,Revenue,22.SUPPORT SERVICES
02/01/2018,1552419,500.81,HOME FARM TRUST LTD,391420,"Health, Education, Care and Safeguarding",Adult Social Care,101,Third Party Payments,505,Other Establishments,5041,Revenue,22.SUPPORT SERVICES
02/01/2018,1552419,562.80,HOME FARM TRUST LTD,391420,"Health, Education, Care and Safeguarding",Adult Social Care,101,Third Party Payments,505,Other Establishments,5041,Revenue,22.SUPPORT SERVICES
02/01/2018,1552419,594.61,HOME FARM TRUST LTD,391420,"Health, Education, Care and Safeguarding",Adult Social Care,101,Third Party Payments,505,Other Establishments,5041,Revenue,22.SUPPORT SERVICES
02/01/2018,1552420,1243.88,SELF NORTH EAST LTD,391376,"Health, Education, Care and Safeguarding",Adult Social Care,101,Third Party Payments,505,Private Contractors,5042,Revenue,22.RESIDENTIAL
02/01/2018,1552421,650.15,CRAEGMOOR HEALTHCARE,320607,"Health, Education, Care and Safeguarding",Adult Social Care,101,Third Party Payments,505,Private Contractors,5042,Revenue,22.RESIDENTIAL
02/01/2018,1552423,155.05,WALLDENE COURT - ANCHOR TRUST,323724,"Health, Education, Care and Safeguarding",Adult Social Care,101,Third Party Payments,505,Other Establishments,5041,Revenue,22.RESIDENTIAL
02/01/2018,1552423,155.05,WALLDENE COURT - ANCHOR TRUST,323724,"Health, Education, Care and Safeguarding",Adult Social Care,101,Third Party Payments,505,Other Establishments,5041,Revenue,22.RESIDENTIAL
02/01/2018,1552423,155.05,WALLDENE COURT - ANCHOR TRUST,323724,"Health, Education, Care and Safeguarding",Adult Social Care,101,Third Party Payments,505,Other Establishments,5041,Revenue,22.RESIDENTIAL
02/01/2018,1552423,155.05,WALLDENE COURT - ANCHOR TRUST,323724,"Health, Education, Care and Safeguarding",Adult Social Care,101,Third Party Payments,505,Other Establishments,5041,Revenue,22.RESIDENTIAL
02/01/2018,1552423,155.05,WALLDENE COURT - ANCHOR TRUST,323724,"Health, Education, Care and Safeguarding",Adult Social Care,101,Third Party Payments,505,Other Establishments,5041,Revenue,22.RESIDENTIAL
02/01/2018,1552423,488.15,WALLDENE COURT - ANCHOR TRUST,323724,"Health, Education, Care and Safeguarding",Adult Social Care,101,Third Party Payments,505,Private Contractors,5042,Revenue,22.RESIDENTIAL
02/01/2018,1552423,488.15,WALLDENE COURT - ANCHOR TRUST,323724,"Health, Education, Care and Safeguarding",Adult Social Care,101,Third Party Payments,505,Private Contractors,5042,Revenue,22.RESIDENTIAL
02/01/2018,1552423,488.15,WALLDENE COURT - ANCHOR TRUST,323724,"Health, Education, Care and Safeguarding",Adult Social Care,101,Third Party Payments,505,Private Contractors,5042,Revenue,22.RESIDENTIAL
02/01/2018,1552423,488.15,WALLDENE COURT - ANCHOR TRUST,323724,"Health, Education, Care and Safeguarding",Adult Social Care,101,Third Party Payments,505,Private Contractors,5042,Revenue,22.RESIDENTIAL
02/01/2018,1552423,488.15,WALLDENE COURT - ANCHOR TRUST,323724,"Health, Education, Care and Safeguarding",Adult Social Care,101,Third Party Payments,505,Private Contractors,5042,Revenue,22.RESIDENTIAL
02/01/2018,1552423,488.15,WALLDENE COURT - ANCHOR TRUST,323724,"Health, Education, Care and Safeguarding",Adult Social Care,101,Third Party Payments,505,Private Contractors,5042,Revenue,22.RESIDENTIAL
02/01/2018,1552423,488.15,WALLDENE COURT - ANCHOR TRUST,323724,"Health, Education, Care and Safeguarding",Adult Social Care,101,Third Party Payments,505,Private Contractors,5042,Revenue,22.RESIDENTIAL
02/01/2018,1552423,488.15,WALLDENE COURT - ANCHOR TRUST,323724,"Health, Education, Care and Safeguarding",Adult Social Care,101,Third Party Payments,505,Private Contractors,5042,Revenue,22.RESIDENTIAL
02/01/2018,1552423,488.15,WALLDENE COURT - ANCHOR TRUST,323724,"Health, Education, Care and Safeguarding",Adult Social Care,101,Third Party Payments,505,Private Contractors,5042,Revenue,22.RESIDENTIAL
02/01/2018,1552423,488.15,WALLDENE COURT - ANCHOR TRUST,323724,"Health, Education, Care and Safeguarding",Adult Social Care,101,Third Party Payments,505,Private Contractors,5042,Revenue,22.RESIDENTIAL
02/01/2018,1552423,488.15,WALLDENE COURT - ANCHOR TRUST,323724,"Health, Education, Care and Safeguarding",Adult Social Care,101,Third Party Payments,505,Private Contractors,5042,Revenue,22.RESIDENTIAL
02/01/2018,1552423,488.15,WALLDENE COURT - ANCHOR TRUST,323724,"Health, Education, Care and Safeguarding",Adult Social Care,101,Third Party Payments,505,Private Contractors,5042,Revenue,22.RESIDENTIAL
02/01/2018,1552423,488.15,WALLDENE COURT - ANCHOR TRUST,323724,"Health, Education, Care and Safeguarding",Adult Social Care,101,Third Party Payments,505,Private Contractors,5042,Revenue,22.RESIDENTIAL
02/01/2018,1552423,488.15,WALLDENE COURT - ANCHOR TRUST,323724,"Health, Education, Care and Safeguarding",Adult Social Care,101,Third Party Payments,505,Private Contractors,5042,Revenue,22.RESIDENTIAL
02/01/2018,1552426,520.05,ST MARTINS CARE LIMITED,383318,"Health, Education, Care and Safeguarding",Adult Social Care,101,Third Party Payments,505,Private Contractors,5042,Revenue,22.RESIDENTIAL
02/01/2018,1552426,520.05,ST MARTINS CARE LIMITED,383318,"Health, Education, Care and Safeguarding",Adult Social Care,101,Third Party Payments,505,Private Contractors,5042,Revenue,22.RESIDENTIAL
02/01/2018,1552426,520.05,ST MARTINS CARE LIMITED,383318,"Health, Education, Care and Safeguarding",Adult Social Care,101,Third Party Payments,505,Private Contractors,5042,Revenue,22.RESIDENTIAL
02/01/2018,1552426,520.05,ST MARTINS CARE LIMITED,383318,"Health, Education, Care and Safeguarding",Adult Social Care,101,Third Party Payments,505,Private Contractors,5042,Revenue,22.RESIDENTIAL
02/01/2018,1552426,520.05,ST MARTINS CARE LIMITED,383318,"Health, Education, Care and Safeguarding",Adult Social Care,101,Third Party Payments,505,Private Contractors,5042,Revenue,22.RESIDENTIAL
02/01/2018,1552426,538.64,ST MARTINS CARE LIMITED,383318,"Health, Education, Care and Safeguarding",Adult Social Care,101,Third Party Payments,505,Private Contractors,5042,Revenue,22.RESIDENTIAL
02/01/2018,1552426,538.64,ST MARTINS CARE LIMITED,383318,"Health, Education, Care and Safeguarding",Adult Social Care,101,Third Party Payments,505,Private Contractors,5042,Revenue,22.RESIDENTIAL
02/01/2018,1552426,538.64,ST MARTINS CARE LIMITED,383318,"Health, Education, Care and Safeguarding",Adult Social Care,101,Third Party Payments,505,Private Contractors,5042,Revenue,22.RESIDENTIAL
02/01/2018,1552426,538.64,ST MARTINS CARE LIMITED,383318,"Health, Education, Care and Safeguarding",Adult Social Care,101,Third Party Payments,505,Private Contractors,5042,Revenue,22.RESIDENTIAL
02/01/2018,1552426,538.64,ST MARTINS CARE LIMITED,383318,"Health, Education, Care and Safeguarding",Adult Social Care,101,Third Party Payments,505,Private Contractors,5042,Revenue,22.RESIDENTIAL
02/01/2018,1552426,538.64,ST MARTINS CARE LIMITED,383318,"Health, Education, Care and Safeguarding",Adult Social Care,101,Third Party Payments,505,Private Contractors,5042,Revenue,22.RESIDENTIAL
02/01/2018,1552426,538.64,ST MARTINS CARE LIMITED,383318,"Health, Education, Care and Safeguarding",Adult Social Care,101,Third Party Payments,505,Private Contractors,5042,Revenue,22.RESIDENTIAL
02/01/2018,1552426,538.64,ST MARTINS CARE LIMITED,383318,"Health, Education, Care and Safeguarding",Adult Social Care,101,Third Party Payments,505,Private Contractors,5042,Revenue,22.RESIDENTIAL
02/01/2018,1552426,538.64,ST MARTINS CARE LIMITED,383318,"Health, Education, Care and Safeguarding",Adult Social Care,101,Third Party Payments,505,Private Contractors,5042,Revenue,22.RESIDENTIAL
02/01/2018,1552426,538.64,ST MARTINS CARE LIMITED,383318,"Health, Education, Care and Safeguarding",Adult Social Care,101,Third Party Payments,505,Private Contractors,5042,Revenue,22.RESIDENTIAL
02/01/2018,1552426,538.64,ST MARTINS CARE LIMITED,383318,"Health, Education, Care and Safeguarding",Adult Social Care,101,Third Party Payments,505,Private Contractors,5042,Revenue,22.RESIDENTIAL
02/01/2018,1552426,538.64,ST MARTINS CARE LIMITED,383318,"Health, Education, Care and Safeguarding",Adult Social Care,101,Third Party Payments,505,Private Contractors,5042,Revenue,22.RESIDENTIAL
02/01/2018,1552426,538.64,ST MARTINS CARE LIMITED,383318,"Health, Education, Care and Safeguarding",Adult Social Care,101,Third Party Payments,505,Private Contractors,5042,Revenue,22.RESIDENTIAL
02/01/2018,1552426,538.64,ST MARTINS CARE LIMITED,383318,"Health, Education, Care and Safeguarding",Adult Social Care,101,Third Party Payments,505,Private Contractors,5042,Revenue,22.RESIDENTIAL
02/01/2018,1552426,538.64,ST MARTINS CARE LIMITED,383318,"Health, Education, Care and Safeguarding",Adult Social Care,101,Third Party Payments,505,Private Contractors,5042,Revenue,22.RESIDENTIAL
02/01/2018,1552426,538.64,ST MARTINS CARE LIMITED,383318,"Health, Education, Care and Safeguarding",Adult Social Care,101,Third Party Payments,505,Private Contractors,5042,Revenue,22.RESIDENTIAL
02/01/2018,1552426,538.64,ST MARTINS CARE LIMITED,383318,"Health, Education, Care and Safeguarding",Adult Social Care,101,Third Party Payments,505,Private Contractors,5042,Revenue,22.RESIDENTIAL
02/01/2018,1552428,329.00,NEW PROSPECTS - ISF FUND,389249,"Health, Education, Care and Safeguarding",Adult Social Care,101,Third Party Payments,505,Other Establishments,5041,Revenue,22.SUPPORT SERVICES
02/01/2018,1552429,-12876.75,NEW PROSPECTS ASSOCIATION LIMITED,203069,"Health, Education, Care and Safeguarding",Adult Social Care,101,Third Party Payments,505,Private Contractors,5042,Revenue,22.DAY CARE SERVICES
02/01/2018,1552429,267.00,NEW PROSPECTS ASSOCIATION LIMITED,203069,"Health, Education, Care and Safeguarding",Adult Social Care,101,Third Party Payments,505,Private Contractors,5042,Revenue,22.DAY CARE SERVICES
02/01/2018,1552429,271.32,NEW PROSPECTS ASSOCIATION LIMITED,203069,"Health, Education, Care and Safeguarding",Adult Social Care,101,Third Party Payments,505,Private Contractors,5042,Revenue,22.DAY CARE SERVICES
02/01/2018,1552429,287.03,NEW PROSPECTS ASSOCIATION LIMITED,203069,"Health, Education, Care and Safeguarding",Adult Social Care,101,Third Party Payments,505,Private Contractors,5042,Revenue,22.DAY CARE SERVICES
02/01/2018,1552429,367.13,NEW PROSPECTS ASSOCIATION LIMITED,203069,"Health, Education, Care and Safeguarding",Adult Social Care,101,Third Party Payments,505,Private Contractors,5042,Revenue,22.DAY CARE SERVICES
02/01/2018,1552429,377.81,NEW PROSPECTS ASSOCIATION LIMITED,203069,"Health, Education, Care and Safeguarding",Adult Social Care,101,Third Party Payments,505,Private Contractors,5042,Revenue,22.DAY CARE SERVICES
02/01/2018,1552429,560.70,NEW PROSPECTS ASSOCIATION LIMITED,203069,"Health, Education, Care and Safeguarding",Adult Social Care,101,Third Party Payments,505,Private Contractors,5042,Revenue,22.DAY CARE SERVICES
02/01/2018,1552429,623.85,NEW PROSPECTS ASSOCIATION LIMITED,203069,"Health, Education, Care and Safeguarding",Adult Social Care,101,Third Party Payments,505,Private Contractors,5042,Revenue,22.DAY CARE SERVICES
02/01/2018,1552429,634.19,NEW PROSPECTS ASSOCIATION LIMITED,203069,"Health, Education, Care and Safeguarding",Adult Social Care,101,Third Party Payments,505,Private Contractors,5042,Revenue,22.DAY CARE SERVICES
02/01/2018,1552429,662.65,NEW PROSPECTS ASSOCIATION LIMITED,203069,"Health, Education, Care and Safeguarding",Adult Social Care,101,Third Party Payments,505,Private Contractors,5042,Revenue,22.DAY CARE SERVICES
02/01/2018,1552429,669.35,NEW PROSPECTS ASSOCIATION LIMITED,203069,"Health, Education, Care and Safeguarding",Adult Social Care,101,Third Party Payments,505,Private Contractors,5042,Revenue,22.DAY CARE SERVICES
02/01/2018,1552429,689.54,NEW PROSPECTS ASSOCIATION LIMITED,203069,"Health, Education, Care and Safeguarding",Adult Social Care,101,Third Party Payments,505,Private Contractors,5042,Revenue,22.DAY CARE SERVICES
02/01/2018,1552429,694.49,NEW PROSPECTS ASSOCIATION LIMITED,203069,"Health, Education, Care and Safeguarding",Adult Social Care,101,Third Party Payments,505,Private Contractors,5042,Revenue,22.DAY CARE SERVICES
02/01/2018,1552429,707.55,NEW PROSPECTS ASSOCIATION LIMITED,203069,"Health, Education, Care and Safeguarding",Adult Social Care,101,Third Party Payments,505,Private Contractors,5042,Revenue,22.DAY CARE SERVICES
02/01/2018,1552429,712.34,NEW PROSPECTS ASSOCIATION LIMITED,203069,"Health, Education, Care and Safeguarding",Adult Social Care,101,Third Party Payments,505,Private Contractors,5042,Revenue,22.DAY CARE SERVICES
02/01/2018,1552429,712.34,NEW PROSPECTS ASSOCIATION LIMITED,203069,"Health, Education, Care and Safeguarding",Adult Social Care,101,Third Party Payments,505,Private Contractors,5042,Revenue,22.DAY CARE SERVICES
02/01/2018,1552429,725.23,NEW PROSPECTS ASSOCIATION LIMITED,203069,"Health, Education, Care and Safeguarding",Adult Social Care,101,Third Party Payments,505,Private Contractors,5042,Revenue,22.DAY CARE SERVICES
02/01/2018,1552429,744.45,NEW PROSPECTS ASSOCIATION LIMITED,203069,"Health, Education, Care and Safeguarding",Adult Social Care,101,Third Party Payments,505,Private Contractors,5042,Revenue,22.DAY CARE SERVICES
02/01/2018,1552429,745.64,NEW PROSPECTS ASSOCIATION LIMITED,203069,"Health, Education, Care and Safeguarding",Adult Social Care,101,Third Party Payments,505,Private Contractors,5042,Revenue,22.DAY CARE SERVICES
02/01/2018,1552429,745.64,NEW PROSPECTS ASSOCIATION LIMITED,203069,"Health, Education, Care and Safeguarding",Adult Social Care,101,Third Party Payments,505,Private Contractors,5042,Revenue,22.DAY CARE SERVICES
02/01/2018,1552429,758.60,NEW PROSPECTS ASSOCIATION LIMITED,203069,"Health, Education, Care and Safeguarding",Adult Social Care,101,Third Party Payments,505,Private Contractors,5042,Revenue,22.DAY CARE SERVICES
02/01/2018,1552429,785.84,NEW PROSPECTS ASSOCIATION LIMITED,203069,"Health, Education, Care and Safeguarding",Adult Social Care,101,Third Party Payments,505,Private Contractors,5042,Revenue,22.DAY CARE SERVICES
02/01/2018,1552429,836.22,NEW PROSPECTS ASSOCIATION LIMITED,203069,"Health, Education, Care and Safeguarding",Adult Social Care,101,Third Party Payments,505,Private Contractors,5042,Revenue,22.DAY CARE SERVICES
02/01/2018,1552429,838.25,NEW PROSPECTS ASSOCIATION LIMITED,203069,"Health, Education, Care and Safeguarding",Adult Social Care,101,Third Party Payments,505,Private Contractors,5042,Revenue,22.DAY CARE SERVICES
02/01/2018,1552429,852.84,NEW PROSPECTS ASSOCIATION LIMITED,203069,"Health, Education, Care and Safeguarding",Adult Social Care,101,Third Party Payments,505,Private Contractors,5042,Revenue,22.DAY CARE SERVICES
02/01/2018,1552429,865.05,NEW PROSPECTS ASSOCIATION LIMITED,203069,"Health, Education, Care and Safeguarding",Adult Social Care,101,Third Party Payments,505,Private Contractors,5042,Revenue,22.DAY CARE SERVICES
02/01/2018,1552429,872.50,NEW PROSPECTS ASSOCIATION LIMITED,203069,"Health, Education, Care and Safeguarding",Adult Social Care,101,Third Party Payments,505,Private Contractors,5042,Revenue,22.DAY CARE SERVICES
02/01/2018,1552429,950.60,NEW PROSPECTS ASSOCIATION LIMITED,203069,"Health, Education, Care and Safeguarding",Adult Social Care,101,Third Party Payments,505,Private Contractors,5042,Revenue,22.DAY CARE SERVICES
02/01/2018,1552429,983.67,NEW PROSPECTS ASSOCIATION LIMITED,203069,"Health, Education, Care and Safeguarding",Adult Social Care,101,Third Party Payments,505,Private Contractors,5042,Revenue,22.DAY CARE SERVICES
02/01/2018,1552429,983.67,NEW PROSPECTS ASSOCIATION LIMITED,203069,"Health, Education, Care and Safeguarding",Adult Social Care,101,Third Party Payments,505,Private Contractors,5042,Revenue,22.DAY CARE SERVICES
02/01/2018,1552429,997.07,NEW PROSPECTS ASSOCIATION LIMITED,203069,"Health, Education, Care and Safeguarding",Adult Social Care,101,Third Party Payments,505,Private Contractors,5042,Revenue,22.DAY CARE SERVICES
02/01/2018,1552429,1033.30,NEW PROSPECTS ASSOCIATION LIMITED,203069,"Health, Education, Care and Safeguarding",Adult Social Care,101,Third Party Payments,505,Private Contractors,5042,Revenue,22.DAY CARE SERVICES
02/01/2018,1552429,1047.44,NEW PROSPECTS ASSOCIATION LIMITED,203069,"Health, Education, Care and Safeguarding",Adult Social Care,101,Third Party Payments,505,Private Contractors,5042,Revenue,22.DAY CARE SERVICES
02/01/2018,1552429,1160.60,NEW PROSPECTS ASSOCIATION LIMITED,203069,"Health, Education, Care and Safeguarding",Adult Social Care,101,Third Party Payments,505,Private Contractors,5042,Revenue,22.DAY CARE SERVICES
02/01/2018,1552429,1219.00,NEW PROSPECTS ASSOCIATION LIMITED,203069,"Health, Education, Care and Safeguarding",Adult Social Care,101,Third Party Payments,505,Private Contractors,5042,Revenue,22.DAY CARE SERVICES
02/01/2018,1552429,1301.30,NEW PROSPECTS ASSOCIATION LIMITED,203069,"Health, Education, Care and Safeguarding",Adult Social Care,101,Third Party Payments,505,Private Contractors,5042,Revenue,22.DAY CARE SERVICES
02/01/2018,1552429,1341.50,NEW PROSPECTS ASSOCIATION LIMITED,203069,"Health, Education, Care and Safeguarding",Adult Social Care,101,Third Party Payments,505,Private Contractors,5042,Revenue,22.DAY CARE SERVICES
02/01/2018,1552429,1437.10,NEW PROSPECTS ASSOCIATION LIMITED,203069,"Health, Education, Care and Safeguarding",Adult Social Care,101,Third Party Payments,505,Private Contractors,5042,Revenue,22.DAY CARE SERVICES
02/01/2018,1552429,1505.58,NEW PROSPECTS ASSOCIATION LIMITED,203069,"Health, Education, Care and Safeguarding",Adult Social Care,101,Third Party Payments,505,Private Contractors,5042,Revenue,22.DAY CARE SERVICES
02/01/2018,1552429,1505.58,NEW PROSPECTS ASSOCIATION LIMITED,203069,"Health, Education, Care and Safeguarding",Adult Social Care,101,Third Party Payments,505,Private Contractors,5042,Revenue,22.DAY CARE SERVICES
02/01/2018,1552429,1525.91,NEW PROSPECTS ASSOCIATION LIMITED,203069,"Health, Education, Care and Safeguarding",Adult Social Care,101,Third Party Payments,505,Private Contractors,5042,Revenue,22.DAY CARE SERVICES
02/01/2018,1552429,1570.33,NEW PROSPECTS ASSOCIATION LIMITED,203069,"Health, Education, Care and Safeguarding",Adult Social Care,101,Third Party Payments,505,Private Contractors,5042,Revenue,22.DAY CARE SERVICES
02/01/2018,1552429,1790.00,NEW PROSPECTS ASSOCIATION LIMITED,203069,"Health, Education, Care and Safeguarding",Adult Social Care,101,Third Party Payments,505,Private Contractors,5042,Revenue,22.DAY CARE SERVICES
02/01/2018,1552429,1862.00,NEW PROSPECTS ASSOCIATION LIMITED,203069,"Health, Education, Care and Safeguarding",Adult Social Care,101,Third Party Payments,505,Private Contractors,5042,Revenue,22.DAY CARE SERVICES
02/01/2018,1552429,1901.20,NEW PROSPECTS ASSOCIATION LIMITED,203069,"Health, Education, Care and Safeguarding",Adult Social Care,101,Third Party Payments,505,Private Contractors,5042,Revenue,22.DAY CARE SERVICES
02/01/2018,1552429,2492.35,NEW PROSPECTS ASSOCIATION LIMITED,203069,"Health, Education, Care and Safeguarding",Adult Social Care,101,Third Party Payments,505,Private Contractors,5042,Revenue,22.DAY CARE SERVICES
02/01/2018,1552430,1101.96,RODWELL FARM NURSING HOME LTD,390686,"Health, Education, Care and Safeguarding",Adult Social Care,101,Third Party Payments,505,Private Contractors,5042,Revenue,22.RESIDENTIAL
02/01/2018,1552432,250.82,EVERLASTING CARE LTD,363743,"Health, Education, Care and Safeguarding",Adult Social Care,101,Third Party Payments,505,Other Establishments,5041,Revenue,22.HOMECARE
02/01/2018,1552433,3273.27,THE DAVID LEWIS CENTRE,390402,"Health, Education, Care and Safeguarding",Adult Social Care,101,Third Party Payments,505,Private Contractors,5042,Revenue,18.CONFERENCING
02/01/2018,1552434,525.00,PATHWAYS CARE GROUP,390437,"Health, Education, Care and Safeguarding",Adult Social Care,101,Third Party Payments,505,Private Contractors,5042,Revenue,22.RESIDENTIAL
02/01/2018,1552437,522.64,CHARLOTTE STRAKER PROJECT,340178,"Health, Education, Care and Safeguarding",Adult Social Care,101,Third Party Payments,505,Private Contractors,5042,Revenue,22.RESIDENTIAL
02/01/2018,1552438,155.05,DAV HOMES LTD,390262,"Health, Education, Care and Safeguarding",Adult Social Care,101,Third Party Payments,505,Other Establishments,5041,Revenue,22.RESIDENTIAL
02/01/2018,1552438,155.05,DAV HOMES LTD,390262,"Health, Education, Care and Safeguarding",Adult Social Care,101,Third Party Payments,505,Other Establishments,5041,Revenue,22.RESIDENTIAL
02/01/2018,1552438,155.05,DAV HOMES LTD,390262,"Health, Education, Care and Safeguarding",Adult Social Care,101,Third Party Payments,505,Other Establishments,5041,Revenue,22.RESIDENTIAL
02/01/2018,1552438,155.05,DAV HOMES LTD,390262,"Health, Education, Care and Safeguarding",Adult Social Care,101,Third Party Payments,505,Other Establishments,5041,Revenue,22.RESIDENTIAL
02/01/2018,1552438,155.05,DAV HOMES LTD,390262,"Health, Education, Care and Safeguarding",Adult Social Care,101,Third Party Payments,505,Other Establishments,5041,Revenue,22.RESIDENTIAL
02/01/2018,1552438,155.05,DAV HOMES LTD,390262,"Health, Education, Care and Safeguarding",Adult Social Care,101,Third Party Payments,505,Other Establishments,5041,Revenue,22.RESIDENTIAL
02/01/2018,1552438,155.05,DAV HOMES LTD,390262,"Health, Education, Care and Safeguarding",Adult Social Care,101,Third Party Payments,505,Other Establishments,5041,Revenue,22.RESIDENTIAL
02/01/2018,1552438,155.05,DAV HOMES LTD,390262,"Health, Education, Care and Safeguarding",Adult Social Care,101,Third Party Payments,505,Other Establishments,5041,Revenue,22.RESIDENTIAL
02/01/2018,1552438,213.32,DAV HOMES LTD,390262,"Health, Education, Care and Safeguarding",Adult Social Care,101,Third Party Payments,505,Other Establishments,5041,Revenue,22.RESIDENTIAL
02/01/2018,1552438,520.05,DAV HOMES LTD,390262,"Health, Education, Care and Safeguarding",Adult Social Care,101,Third Party Payments,505,Private Contractors,5042,Revenue,22.RESIDENTIAL
02/01/2018,1552438,520.05,DAV HOMES LTD,390262,"Health, Education, Care and Safeguarding",Adult Social Care,101,Third Party Payments,505,Private Contractors,5042,Revenue,22.RESIDENTIAL
02/01/2018,1552438,520.05,DAV HOMES LTD,390262,"Health, Education, Care and Safeguarding",Adult Social Care,101,Third Party Payments,505,Private Contractors,5042,Revenue,22.RESIDENTIAL
02/01/2018,1552438,520.05,DAV HOMES LTD,390262,"Health, Education, Care and Safeguarding",Adult Social Care,101,Third Party Payments,505,Private Contractors,5042,Revenue,22.RESIDENTIAL
02/01/2018,1552438,520.05,DAV HOMES LTD,390262,"Health, Education, Care and Safeguarding",Adult Social Care,101,Third Party Payments,505,Private Contractors,5042,Revenue,22.RESIDENTIAL
02/01/2018,1552438,525.00,DAV HOMES LTD,390262,"Health, Education, Care and Safeguarding",Public Health,112,Third Party Payments,505,Other Establishments,5041,Revenue,22.RESIDENTIAL
02/01/2018,1552438,538.64,DAV HOMES LTD,390262,"Health, Education, Care and Safeguarding",Adult Social Care,101,Third Party Payments,505,Private Contractors,5042,Revenue,22.RESIDENTIAL
02/01/2018,1552438,538.64,DAV HOMES LTD,390262,"Health, Education, Care and Safeguarding",Adult Social Care,101,Third Party Payments,505,Private Contractors,5042,Revenue,22.RESIDENTIAL
02/01/2018,1552438,538.64,DAV HOMES LTD,390262,"Health, Education, Care and Safeguarding",Adult Social Care,101,Third Party Payments,505,Private Contractors,5042,Revenue,22.RESIDENTIAL
02/01/2018,1552438,538.64,DAV HOMES LTD,390262,"Health, Education, Care and Safeguarding",Adult Social Care,101,Third Party Payments,505,Private Contractors,5042,Revenue,22.RESIDENTIAL
02/01/2018,1552438,538.64,DAV HOMES LTD,390262,"Health, Education, Care and Safeguarding",Adult Social Care,101,Third Party Payments,505,Private Contractors,5042,Revenue,22.RESIDENTIAL
02/01/2018,1552438,538.64,DAV HOMES LTD,390262,"Health, Education, Care and Safeguarding",Adult Social Care,101,Third Party Payments,505,Private Contractors,5042,Revenue,22.RESIDENTIAL
02/01/2018,1552438,538.64,DAV HOMES LTD,390262,"Health, Education, Care and Safeguarding",Adult Social Care,101,Third Party Payments,505,Private Contractors,5042,Revenue,22.RESIDENTIAL
02/01/2018,1552438,538.64,DAV HOMES LTD,390262,"Health, Education, Care and Safeguarding",Adult Social Care,101,Third Party Payments,505,Private Contractors,5042,Revenue,22.RESIDENTIAL
02/01/2018,1552438,538.64,DAV HOMES LTD,390262,"Health, Education, Care and Safeguarding",Adult Social Care,101,Third Party Payments,505,Private Contractors,5042,Revenue,22.RESIDENTIAL
02/01/2018,1552438,538.64,DAV HOMES LTD,390262,"Health, Education, Care and Safeguarding",Adult Social Care,101,Third Party Payments,505,Private Contractors,5042,Revenue,22.RESIDENTIAL
02/01/2018,1552438,538.64,DAV HOMES LTD,390262,"Health, Education, Care and Safeguarding",Adult Social Care,101,Third Party Payments,505,Private Contractors,5042,Revenue,22.RESIDENTIAL
02/01/2018,1552438,560.10,DAV HOMES LTD,390262,"Health, Education, Care and Safeguarding",Adult Social Care,101,Third Party Payments,505,Private Contractors,5042,Revenue,22.RESIDENTIAL
02/01/2018,1552438,584.59,DAV HOMES LTD,390262,"Health, Education, Care and Safeguarding",Adult Social Care,101,Third Party Payments,505,Private Contractors,5042,Revenue,22.RESIDENTIAL
02/01/2018,1552438,584.59,DAV HOMES LTD,390262,"Health, Education, Care and Safeguarding",Adult Social Care,101,Third Party Payments,505,Private Contractors,5042,Revenue,22.RESIDENTIAL
02/01/2018,1552438,584.59,DAV HOMES LTD,390262,"Health, Education, Care and Safeguarding",Adult Social Care,101,Third Party Payments,505,Private Contractors,5042,Revenue,22.RESIDENTIAL
02/01/2018,1552438,584.59,DAV HOMES LTD,390262,"Health, Education, Care and Safeguarding",Adult Social Care,101,Third Party Payments,505,Private Contractors,5042,Revenue,22.RESIDENTIAL
02/01/2018,1552438,584.59,DAV HOMES LTD,390262,"Health, Education, Care and Safeguarding",Adult Social Care,101,Third Party Payments,505,Private Contractors,5042,Revenue,22.RESIDENTIAL
02/01/2018,1552438,584.59,DAV HOMES LTD,390262,"Health, Education, Care and Safeguarding",Adult Social Care,101,Third Party Payments,505,Private Contractors,5042,Revenue,22.RESIDENTIAL
02/01/2018,1552438,584.59,DAV HOMES LTD,390262,"Health, Education, Care and Safeguarding",Adult Social Care,101,Third Party Payments,505,Private Contractors,5042,Revenue,22.RESIDENTIAL
02/01/2018,1552438,584.59,DAV HOMES LTD,390262,"Health, Education, Care and Safeguarding",Adult Social Care,101,Third Party Payments,505,Private Contractors,5042,Revenue,22.RESIDENTIAL
02/01/2018,1552438,584.59,DAV HOMES LTD,390262,"Health, Education, Care and Safeguarding",Adult Social Care,101,Third Party Payments,505,Private Contractors,5042,Revenue,22.RESIDENTIAL
02/01/2018,1552438,705.10,DAV HOMES LTD,390262,"Health, Education, Care and Safeguarding",Adult Social Care,101,Third Party Payments,505,Other Establishments,5041,Revenue,22.RESIDENTIAL
02/01/2018,1552438,705.10,DAV HOMES LTD,390262,"Health, Education, Care and Safeguarding",Adult Social Care,101,Third Party Payments,505,Other Establishments,5041,Revenue,22.RESIDENTIAL
02/01/2018,1552438,705.10,DAV HOMES LTD,390262,"Health, Education, Care and Safeguarding",Public Health,112,Third Party Payments,505,Other Establishments,5041,Revenue,22.RESIDENTIAL
02/01/2018,1552438,723.69,DAV HOMES LTD,390262,"Health, Education, Care and Safeguarding",Adult Social Care,101,Third Party Payments,505,Other Establishments,5041,Revenue,22.RESIDENTIAL
02/01/2018,1552438,723.69,DAV HOMES LTD,390262,"Health, Education, Care and Safeguarding",Public Health,112,Third Party Payments,505,Other Establishments,5041,Revenue,22.RESIDENTIAL
02/01/2018,1552438,723.69,DAV HOMES LTD,390262,"Health, Education, Care and Safeguarding",Public Health,112,Third Party Payments,505,Other Establishments,5041,Revenue,22.RESIDENTIAL
02/01/2018,1552438,723.69,DAV HOMES LTD,390262,"Health, Education, Care and Safeguarding",Public Health,112,Third Party Payments,505,Other Establishments,5041,Revenue,22.RESIDENTIAL
02/01/2018,1552438,723.69,DAV HOMES LTD,390262,"Health, Education, Care and Safeguarding",Public Health,112,Third Party Payments,505,Other Establishments,5041,Revenue,22.RESIDENTIAL
02/01/2018,1552438,723.69,DAV HOMES LTD,390262,"Health, Education, Care and Safeguarding",Public Health,112,Third Party Payments,505,Other Establishments,5041,Revenue,22.RESIDENTIAL
02/01/2018,1552438,723.69,DAV HOMES LTD,390262,"Health, Education, Care and Safeguarding",Public Health,112,Third Party Payments,505,Other Establishments,5041,Revenue,22.RESIDENTIAL
02/01/2018,1552438,769.64,DAV HOMES LTD,390262,"Health, Education, Care and Safeguarding",Public Health,112,Third Party Payments,505,Other Establishments,5041,Revenue,22.RESIDENTIAL
02/01/2018,1552438,837.20,DAV HOMES LTD,390262,"Health, Education, Care and Safeguarding",Adult Social Care,101,Third Party Payments,505,Private Contractors,5042,Revenue,22.RESIDENTIAL
02/01/2018,1552438,837.20,DAV HOMES LTD,390262,"Health, Education, Care and Safeguarding",Adult Social Care,101,Third Party Payments,505,Private Contractors,5042,Revenue,22.RESIDENTIAL
02/01/2018,1552438,837.20,DAV HOMES LTD,390262,"Health, Education, Care and Safeguarding",Adult Social Care,101,Third Party Payments,505,Private Contractors,5042,Revenue,22.RESIDENTIAL
02/01/2018,1552438,930.30,DAV HOMES LTD,390262,"Health, Education, Care and Safeguarding",Adult Social Care,101,Third Party Payments,505,Other Establishments,5041,Revenue,22.RESIDENTIAL
02/01/2018,1552438,1022.25,DAV HOMES LTD,390262,"Health, Education, Care and Safeguarding",Adult Social Care,101,Third Party Payments,505,Other Establishments,5041,Revenue,22.RESIDENTIAL
02/01/2018,1552438,1022.25,DAV HOMES LTD,390262,"Health, Education, Care and Safeguarding",Adult Social Care,101,Third Party Payments,505,Other Establishments,5041,Revenue,22.RESIDENTIAL
02/01/2018,1552438,1279.92,DAV HOMES LTD,390262,"Health, Education, Care and Safeguarding",Adult Social Care,101,Third Party Payments,505,Other Establishments,5041,Revenue,22.RESIDENTIAL
02/01/2018,1552438,4158.30,DAV HOMES LTD,390262,"Health, Education, Care and Safeguarding",Adult Social Care,101,Third Party Payments,505,Other Establishments,5041,Revenue,22.RESIDENTIAL
02/01/2018,1552440,210.00,INSPIRED SUPPORT LIMITED,390108,"Health, Education, Care and Safeguarding",Adult Social Care,101,Third Party Payments,505,Other Establishments,5041,Revenue,22.SUPPORT SERVICES
02/01/2018,1552440,215.00,INSPIRED SUPPORT LIMITED,390108,"Health, Education, Care and Safeguarding",Adult Social Care,101,Third Party Payments,505,Other Establishments,5041,Revenue,22.SUPPORT SERVICES
02/01/2018,1552440,237.50,INSPIRED SUPPORT LIMITED,390108,"Health, Education, Care and Safeguarding",Adult Social Care,101,Third Party Payments,505,Other Establishments,5041,Revenue,22.SUPPORT SERVICES
02/01/2018,1552440,260.00,INSPIRED SUPPORT LIMITED,390108,"Health, Education, Care and Safeguarding",Adult Social Care,101,Third Party Payments,505,Other Establishments,5041,Revenue,22.SUPPORT SERVICES
02/01/2018,1552440,265.00,INSPIRED SUPPORT LIMITED,390108,"Health, Education, Care and Safeguarding",Adult Social Care,101,Third Party Payments,505,Other Establishments,5041,Revenue,22.SUPPORT SERVICES
02/01/2018,1552440,285.78,INSPIRED SUPPORT LIMITED,390108,"Health, Education, Care and Safeguarding",Adult Social Care,101,Third Party Payments,505,Other Establishments,5041,Revenue,22.SUPPORT SERVICES
02/01/2018,1552443,492.00,NEWCASTLE HOME CARE ASSOCIATES LTD,382474,"Health, Education, Care and Safeguarding",Adult Social Care,101,Third Party Payments,505,Private Contractors,5042,Revenue,22.HOMECARE
02/01/2018,1552444,-45.79,Redacted Personal Data,389870,"Health, Education, Care and Safeguarding",Adult Social Care,101,Income,509,Customer and Client Receipts,5064,Revenue,00.NON INFLUENCIBLE
02/01/2018,1552444,316.00,Redacted Personal Data,389870,"Health, Education, Care and Safeguarding",Adult Social Care,101,Third Party Payments,505,Other Establishments,5041,Revenue,00.NON INFLUENCIBLE
02/01/2018,1552445,507.64,CRAMLINGTON HOUSE LTD,389741,"Health, Education, Care and Safeguarding",Adult Social Care,101,Third Party Payments,505,Private Contractors,5042,Revenue,22.RESIDENTIAL
02/01/2018,1552445,507.64,CRAMLINGTON HOUSE LTD,389741,"Health, Education, Care and Safeguarding",Adult Social Care,101,Third Party Payments,505,Private Contractors,5042,Revenue,22.RESIDENTIAL
02/01/2018,1552445,507.64,CRAMLINGTON HOUSE LTD,389741,"Health, Education, Care and Safeguarding",Adult Social Care,101,Third Party Payments,505,Private Contractors,5042,Revenue,22.RESIDENTIAL
02/01/2018,1552445,520.05,CRAMLINGTON HOUSE LTD,389741,"Health, Education, Care and Safeguarding",Adult Social Care,101,Third Party Payments,505,Private Contractors,5042,Revenue,22.RESIDENTIAL
02/01/2018,1552445,520.05,CRAMLINGTON HOUSE LTD,389741,"Health, Education, Care and Safeguarding",Adult Social Care,101,Third Party Payments,505,Private Contractors,5042,Revenue,22.RESIDENTIAL
02/01/2018,1552445,520.05,CRAMLINGTON HOUSE LTD,389741,"Health, Education, Care and Safeguarding",Adult Social Care,101,Third Party Payments,505,Private Contractors,5042,Revenue,22.RESIDENTIAL
02/01/2018,1552445,520.05,CRAMLINGTON HOUSE LTD,389741,"Health, Education, Care and Safeguarding",Adult Social Care,101,Third Party Payments,505,Private Contractors,5042,Revenue,22.RESIDENTIAL
02/01/2018,1552445,520.05,CRAMLINGTON HOUSE LTD,389741,"Health, Education, Care and Safeguarding",Adult Social Care,101,Third Party Payments,505,Private Contractors,5042,Revenue,22.RESIDENTIAL
02/01/2018,1552445,520.05,CRAMLINGTON HOUSE LTD,389741,"Health, Education, Care and Safeguarding",Adult Social Care,101,Third Party Payments,505,Private Contractors,5042,Revenue,22.RESIDENTIAL
02/01/2018,1552445,520.05,CRAMLINGTON HOUSE LTD,389741,"Health, Education, Care and Safeguarding",Adult Social Care,101,Third Party Payments,505,Private Contractors,5042,Revenue,22.RESIDENTIAL
02/01/2018,1552445,520.05,CRAMLINGTON HOUSE LTD,389741,"Health, Education, Care and Safeguarding",Adult Social Care,101,Third Party Payments,505,Private Contractors,5042,Revenue,22.RESIDENTIAL
02/01/2018,1552445,520.05,CRAMLINGTON HOUSE LTD,389741,"Health, Education, Care and Safeguarding",Adult Social Care,101,Third Party Payments,505,Private Contractors,5042,Revenue,22.RESIDENTIAL
02/01/2018,1552445,520.05,CRAMLINGTON HOUSE LTD,389741,"Health, Education, Care and Safeguarding",Adult Social Care,101,Third Party Payments,505,Private Contractors,5042,Revenue,22.RESIDENTIAL
02/01/2018,1552445,520.05,CRAMLINGTON HOUSE LTD,389741,"Health, Education, Care and Safeguarding",Adult Social Care,101,Third Party Payments,505,Private Contractors,5042,Revenue,22.RESIDENTIAL
02/01/2018,1552445,520.05,CRAMLINGTON HOUSE LTD,389741,"Health, Education, Care and Safeguarding",Adult Social Care,101,Third Party Payments,505,Private Contractors,5042,Revenue,22.RESIDENTIAL
02/01/2018,1552445,520.05,CRAMLINGTON HOUSE LTD,389741,"Health, Education, Care and Safeguarding",Adult Social Care,101,Third Party Payments,505,Private Contractors,5042,Revenue,22.RESIDENTIAL
02/01/2018,1552445,520.05,CRAMLINGTON HOUSE LTD,389741,"Health, Education, Care and Safeguarding",Adult Social Care,101,Third Party Payments,505,Private Contractors,5042,Revenue,22.RESIDENTIAL
02/01/2018,1552445,523.74,CRAMLINGTON HOUSE LTD,389741,"Health, Education, Care and Safeguarding",Adult Social Care,101,Third Party Payments,505,Private Contractors,5042,Revenue,22.RESIDENTIAL
02/01/2018,1552445,538.64,CRAMLINGTON HOUSE LTD,389741,"Health, Education, Care and Safeguarding",Adult Social Care,101,Third Party Payments,505,Private Contractors,5042,Revenue,22.RESIDENTIAL
02/01/2018,1552445,538.64,CRAMLINGTON HOUSE LTD,389741,"Health, Education, Care and Safeguarding",Adult Social Care,101,Third Party Payments,505,Private Contractors,5042,Revenue,22.RESIDENTIAL
02/01/2018,1552445,538.64,CRAMLINGTON HOUSE LTD,389741,"Health, Education, Care and Safeguarding",Adult Social Care,101,Third Party Payments,505,Private Contractors,5042,Revenue,22.RESIDENTIAL
02/01/2018,1552445,538.64,CRAMLINGTON HOUSE LTD,389741,"Health, Education, Care and Safeguarding",Adult Social Care,101,Third Party Payments,505,Private Contractors,5042,Revenue,22.RESIDENTIAL
02/01/2018,1552445,538.64,CRAMLINGTON HOUSE LTD,389741,"Health, Education, Care and Safeguarding",Adult Social Care,101,Third Party Payments,505,Private Contractors,5042,Revenue,22.RESIDENTIAL
02/01/2018,1552445,538.64,CRAMLINGTON HOUSE LTD,389741,"Health, Education, Care and Safeguarding",Adult Social Care,101,Third Party Payments,505,Private Contractors,5042,Revenue,22.RESIDENTIAL
02/01/2018,1552450,-26.77,Redacted Personal Data,395486,"Health, Education, Care and Safeguarding",Adult Social Care,101,Capital,Capital,Capital,Capital,Revenue,NON INDIVIDUAL
02/01/2018,1552450,370.00,Redacted Personal Data,395486,"Health, Education, Care and Safeguarding",Adult Social Care,101,Third Party Payments,505,Other Establishments,5041,Revenue,NON INDIVIDUAL
02/01/2018,1552451,-19.24,Redacted Personal Data,395485,"Health, Education, Care and Safeguarding",Adult Social Care,101,Capital,Capital,Capital,Capital,Revenue,NON INDIVIDUAL
02/01/2018,1552451,343.68,Redacted Personal Data,395485,"Health, Education, Care and Safeguarding",Adult Social Care,101,Third Party Payments,505,Other Establishments,5041,Revenue,NON INDIVIDUAL
02/01/2018,1552452,1770.20,Redacted Personal Data,395484,"Health, Education, Care and Safeguarding",Adult Social Care,101,Third Party Payments,505,Other Establishments,5041,Revenue,NON INDIVIDUAL
02/01/2018,1552454,538.00,SPRING VALE COURT MANAGEMENT COMPANY LIMITED,389438,"Health, Education, Care and Safeguarding",Adult Social Care,101,Third Party Payments,505,Private Contractors,5042,Revenue,22.RESIDENTIAL
02/01/2018,1552455,270.00,LEARNING DISABILITIES FEDERATION,350895,"Health, Education, Care and Safeguarding",Adult Social Care,101,Third Party Payments,505,Other Establishments,5041,Revenue,22.SUPPORT SERVICES
02/01/2018,1552455,270.00,LEARNING DISABILITIES FEDERATION,350895,"Health, Education, Care and Safeguarding",Adult Social Care,101,Third Party Payments,505,Other Establishments,5041,Revenue,22.SUPPORT SERVICES
02/01/2018,1552455,377.91,LEARNING DISABILITIES FEDERATION,350895,"Health, Education, Care and Safeguarding",Adult Social Care,101,Third Party Payments,505,Other Establishments,5041,Revenue,22.SUPPORT SERVICES
02/01/2018,1552455,420.00,LEARNING DISABILITIES FEDERATION,350895,"Health, Education, Care and Safeguarding",Adult Social Care,101,Third Party Payments,505,Other Establishments,5041,Revenue,22.SUPPORT SERVICES
02/01/2018,1552455,462.70,LEARNING DISABILITIES FEDERATION,350895,"Health, Education, Care and Safeguarding",Adult Social Care,101,Third Party Payments,505,Other Establishments,5041,Revenue,22.SUPPORT SERVICES
02/01/2018,1552457,-13.95,Redacted Personal Data,389290,"Health, Education, Care and Safeguarding",Adult Social Care,101,Capital,Capital,Capital,Capital,Revenue,00.NON INFLUENCIBLE
02/01/2018,1552457,1362.55,Redacted Personal Data,389290,"Health, Education, Care and Safeguarding",Adult Social Care,101,Third Party Payments,505,Other Establishments,5041,Revenue,00.NON INFLUENCIBLE
02/01/2018,1552458,1523.33,ST ANNE'S COMMUNITY SERVICES,366247,"Health, Education, Care and Safeguarding",Adult Social Care,101,Third Party Payments,505,Private Contractors,5042,Revenue,22.DAY CARE SERVICES
02/01/2018,1552458,1523.33,ST ANNE'S COMMUNITY SERVICES,366247,"Health, Education, Care and Safeguarding",Adult Social Care,101,Third Party Payments,505,Private Contractors,5042,Revenue,22.DAY CARE SERVICES
02/01/2018,1552458,1523.33,ST ANNE'S COMMUNITY SERVICES,366247,"Health, Education, Care and Safeguarding",Adult Social Care,101,Third Party Payments,505,Private Contractors,5042,Revenue,22.DAY CARE SERVICES
02/01/2018,1552458,1734.40,ST ANNE'S COMMUNITY SERVICES,366247,"Health, Education, Care and Safeguarding",Adult Social Care,101,Third Party Payments,505,Private Contractors,5042,Revenue,22.DAY CARE SERVICES
02/01/2018,1552458,1817.80,ST ANNE'S COMMUNITY SERVICES,366247,"Health, Education, Care and Safeguarding",Adult Social Care,101,Third Party Payments,505,Private Contractors,5042,Revenue,22.DAY CARE SERVICES
02/01/2018,1552458,1946.00,ST ANNE'S COMMUNITY SERVICES,366247,"Health, Education, Care and Safeguarding",Adult Social Care,101,Third Party Payments,505,Private Contractors,5042,Revenue,22.DAY CARE SERVICES
02/01/2018,1552460,368.90,Redacted Personal Data,389224,"Health, Education, Care and Safeguarding",Adult Social Care,101,Third Party Payments,505,Other Establishments,5041,Revenue,00.NON INFLUENCIBLE
02/01/2018,1552462,287.60,FIRST MOVE CARE LTD,341358,"Health, Education, Care and Safeguarding",Adult Social Care,101,Third Party Payments,505,Other Establishments,5041,Revenue,22.DAY CARE SERVICES
02/01/2018,1552462,352.28,FIRST MOVE CARE LTD,341358,"Health, Education, Care and Safeguarding",Adult Social Care,101,Third Party Payments,505,Other Establishments,5041,Revenue,22.DAY CARE SERVICES
02/01/2018,1552462,392.25,FIRST MOVE CARE LTD,341358,"Health, Education, Care and Safeguarding",Adult Social Care,101,Third Party Payments,505,Other Establishments,5041,Revenue,22.DAY CARE SERVICES
02/01/2018,1552462,402.54,FIRST MOVE CARE LTD,341358,"Health, Education, Care and Safeguarding",Adult Social Care,101,Third Party Payments,505,Other Establishments,5041,Revenue,22.DAY CARE SERVICES
02/01/2018,1552462,485.20,FIRST MOVE CARE LTD,341358,"Health, Education, Care and Safeguarding",Adult Social Care,101,Third Party Payments,505,Other Establishments,5041,Revenue,22.DAY CARE SERVICES
02/01/2018,1552463,524.00,HELEN MCARDLE CARE LTD,389131,"Health, Education, Care and Safeguarding",Adult Social Care,101,Third Party Payments,505,Private Contractors,5042,Revenue,22.RESIDENTIAL
02/01/2018,1552463,542.00,HELEN MCARDLE CARE LTD,389131,"Health, Education, Care and Safeguarding",Adult Social Care,101,Third Party Payments,505,Private Contractors,5042,Revenue,22.RESIDENTIAL
02/01/2018,1552465,295.12,Redacted Personal Data,329504,"Health, Education, Care and Safeguarding",Adult Social Care,101,Third Party Payments,505,Other Establishments,5041,Revenue,NON INDIVIDUAL
02/01/2018,1552467,-1137.57,FOUR SEASONS HEALTH CARE,371477,"Health, Education, Care and Safeguarding",Public Health,112,Third Party Payments,505,Other Establishments,5041,Revenue,22.RESIDENTIAL
02/01/2018,1552467,155.05,FOUR SEASONS HEALTH CARE,371477,"Health, Education, Care and Safeguarding",Adult Social Care,101,Third Party Payments,505,Other Establishments,5041,Revenue,22.RESIDENTIAL
02/01/2018,1552467,561.12,FOUR SEASONS HEALTH CARE,371477,"Health, Education, Care and Safeguarding",Adult Social Care,101,Third Party Payments,505,Private Contractors,5042,Revenue,22.RESIDENTIAL
02/01/2018,1552467,561.12,FOUR SEASONS HEALTH CARE,371477,"Health, Education, Care and Safeguarding",Adult Social Care,101,Third Party Payments,505,Private Contractors,5042,Revenue,22.RESIDENTIAL
02/01/2018,1552467,561.12,FOUR SEASONS HEALTH CARE,371477,"Health, Education, Care and Safeguarding",Adult Social Care,101,Third Party Payments,505,Private Contractors,5042,Revenue,22.RESIDENTIAL
02/01/2018,1552467,561.12,FOUR SEASONS HEALTH CARE,371477,"Health, Education, Care and Safeguarding",Adult Social Care,101,Third Party Payments,505,Private Contractors,5042,Revenue,22.RESIDENTIAL
02/01/2018,1552467,716.17,FOUR SEASONS HEALTH CARE,371477,"Health, Education, Care and Safeguarding",Public Health,112,Third Party Payments,505,Other Establishments,5041,Revenue,22.RESIDENTIAL
02/01/2018,1552468,268.00,NEW BEGINNINGS (N.E.) LTD,337005,"Health, Education, Care and Safeguarding",Adult Social Care,101,Third Party Payments,505,Private Contractors,5042,Revenue,22.RESIDENTIAL
02/01/2018,1552468,758.60,NEW BEGINNINGS (N.E.) LTD,337005,"Health, Education, Care and Safeguarding",Adult Social Care,101,Third Party Payments,505,Other Establishments,5041,Revenue,22.RESIDENTIAL
02/01/2018,1552468,758.60,NEW BEGINNINGS (N.E.) LTD,337005,"Health, Education, Care and Safeguarding",Adult Social Care,101,Third Party Payments,505,Other Establishments,5041,Revenue,22.RESIDENTIAL
02/01/2018,1552468,772.36,NEW BEGINNINGS (N.E.) LTD,337005,"Health, Education, Care and Safeguarding",Adult Social Care,101,Third Party Payments,505,Private Contractors,5042,Revenue,22.RESIDENTIAL
02/01/2018,1552468,859.10,NEW BEGINNINGS (N.E.) LTD,337005,"Health, Education, Care and Safeguarding",Adult Social Care,101,Third Party Payments,505,Private Contractors,5042,Revenue,22.RESIDENTIAL
02/01/2018,1552468,859.10,NEW BEGINNINGS (N.E.) LTD,337005,"Health, Education, Care and Safeguarding",Adult Social Care,101,Third Party Payments,505,Private Contractors,5042,Revenue,22.RESIDENTIAL
02/01/2018,1552468,895.95,NEW BEGINNINGS (N.E.) LTD,337005,"Health, Education, Care and Safeguarding",Adult Social Care,101,Third Party Payments,505,Private Contractors,5042,Revenue,22.RESIDENTIAL
02/01/2018,1552468,976.35,NEW BEGINNINGS (N.E.) LTD,337005,"Health, Education, Care and Safeguarding",Adult Social Care,101,Third Party Payments,505,Private Contractors,5042,Revenue,22.RESIDENTIAL
02/01/2018,1552468,1419.86,NEW BEGINNINGS (N.E.) LTD,337005,"Health, Education, Care and Safeguarding",Adult Social Care,101,Third Party Payments,505,Private Contractors,5042,Revenue,22.RESIDENTIAL
02/01/2018,1552468,1901.20,NEW BEGINNINGS (N.E.) LTD,337005,"Health, Education, Care and Safeguarding",Adult Social Care,101,Third Party Payments,505,Other Establishments,5041,Revenue,22.RESIDENTIAL
02/01/2018,1552468,1901.20,NEW BEGINNINGS (N.E.) LTD,337005,"Health, Education, Care and Safeguarding",Adult Social Care,101,Third Party Payments,505,Private Contractors,5042,Revenue,22.RESIDENTIAL
02/01/2018,1552468,2095.80,NEW BEGINNINGS (N.E.) LTD,337005,"Health, Education, Care and Safeguarding",Adult Social Care,101,Third Party Payments,505,Other Establishments,5041,Revenue,22.RESIDENTIAL
02/01/2018,1552468,2568.40,NEW BEGINNINGS (N.E.) LTD,337005,"Health, Education, Care and Safeguarding",Adult Social Care,101,Third Party Payments,505,Private Contractors,5042,Revenue,22.RESIDENTIAL
02/01/2018,1552468,3291.20,NEW BEGINNINGS (N.E.) LTD,337005,"Health, Education, Care and Safeguarding",Adult Social Care,101,Third Party Payments,505,Other Establishments,5041,Revenue,22.RESIDENTIAL
02/01/2018,1552468,4119.80,NEW BEGINNINGS (N.E.) LTD,337005,"Health, Education, Care and Safeguarding",Public Health,112,Third Party Payments,505,Private Contractors,5042,Revenue,22.RESIDENTIAL
02/01/2018,1552468,4236.40,NEW BEGINNINGS (N.E.) LTD,337005,"Health, Education, Care and Safeguarding",Adult Social Care,101,Third Party Payments,505,Private Contractors,5042,Revenue,22.RESIDENTIAL
02/01/2018,1552468,4236.40,NEW BEGINNINGS (N.E.) LTD,337005,"Health, Education, Care and Safeguarding",Adult Social Care,101,Third Party Payments,505,Private Contractors,5042,Revenue,22.RESIDENTIAL
02/01/2018,1552469,360.36,Redacted Personal Data,388984,"Health, Education, Care and Safeguarding",Adult Social Care,101,Third Party Payments,505,Other Establishments,5041,Revenue,00.NON INFLUENCIBLE
02/01/2018,1552470,301.20,Redacted Personal Data,388962,"Health, Education, Care and Safeguarding",Adult Social Care,101,Third Party Payments,505,Other Establishments,5041,Revenue,00.NON INFLUENCIBLE
02/01/2018,1552471,-56.01,Redacted Personal Data,388380,"Health, Education, Care and Safeguarding",Adult Social Care,101,Capital,Capital,Capital,Capital,Revenue,00.NON INFLUENCIBLE
02/01/2018,1552471,1473.76,Redacted Personal Data,388380,"Health, Education, Care and Safeguarding",Adult Social Care,101,Third Party Payments,505,Other Establishments,5041,Revenue,00.NON INFLUENCIBLE
02/01/2018,1552472,1599.00,VOYAGE LIMITED,387358,"Health, Education, Care and Safeguarding",Adult Social Care,101,Third Party Payments,505,Private Contractors,5042,Revenue,22.RESIDENTIAL
02/01/2018,1552473,393.00,ASPIRE HEALTHCARE,375113,"Health, Education, Care and Safeguarding",Adult Social Care,101,Third Party Payments,505,Private Contractors,5042,Revenue,22.RESIDENTIAL
02/01/2018,1552473,393.00,ASPIRE HEALTHCARE,375113,"Health, Education, Care and Safeguarding",Adult Social Care,101,Third Party Payments,505,Private Contractors,5042,Revenue,22.RESIDENTIAL
02/01/2018,1552473,401.15,ASPIRE HEALTHCARE,375113,"Health, Education, Care and Safeguarding",Adult Social Care,101,Third Party Payments,505,Private Contractors,5042,Revenue,22.RESIDENTIAL
02/01/2018,1552473,450.34,ASPIRE HEALTHCARE,375113,"Health, Education, Care and Safeguarding",Adult Social Care,101,Third Party Payments,505,Private Contractors,5042,Revenue,22.RESIDENTIAL
02/01/2018,1552473,465.15,ASPIRE HEALTHCARE,375113,"Health, Education, Care and Safeguarding",Adult Social Care,101,Third Party Payments,505,Private Contractors,5042,Revenue,22.RESIDENTIAL
02/01/2018,1552473,465.15,ASPIRE HEALTHCARE,375113,"Health, Education, Care and Safeguarding",Adult Social Care,101,Third Party Payments,505,Private Contractors,5042,Revenue,22.RESIDENTIAL
02/01/2018,1552473,465.15,ASPIRE HEALTHCARE,375113,"Health, Education, Care and Safeguarding",Adult Social Care,101,Third Party Payments,505,Private Contractors,5042,Revenue,22.RESIDENTIAL
02/01/2018,1552473,465.15,ASPIRE HEALTHCARE,375113,"Health, Education, Care and Safeguarding",Adult Social Care,101,Third Party Payments,505,Private Contractors,5042,Revenue,22.RESIDENTIAL
02/01/2018,1552473,465.15,ASPIRE HEALTHCARE,375113,"Health, Education, Care and Safeguarding",Adult Social Care,101,Third Party Payments,505,Private Contractors,5042,Revenue,22.RESIDENTIAL
02/01/2018,1552473,465.15,ASPIRE HEALTHCARE,375113,"Health, Education, Care and Safeguarding",Adult Social Care,101,Third Party Payments,505,Private Contractors,5042,Revenue,22.RESIDENTIAL
02/01/2018,1552473,465.15,ASPIRE HEALTHCARE,375113,"Health, Education, Care and Safeguarding",Adult Social Care,101,Third Party Payments,505,Private Contractors,5042,Revenue,22.RESIDENTIAL
02/01/2018,1552473,465.16,ASPIRE HEALTHCARE,375113,"Health, Education, Care and Safeguarding",Adult Social Care,101,Third Party Payments,505,Private Contractors,5042,Revenue,22.RESIDENTIAL
02/01/2018,1552473,465.16,ASPIRE HEALTHCARE,375113,"Health, Education, Care and Safeguarding",Adult Social Care,101,Third Party Payments,505,Private Contractors,5042,Revenue,22.RESIDENTIAL
02/01/2018,1552473,465.16,ASPIRE HEALTHCARE,375113,"Health, Education, Care and Safeguarding",Adult Social Care,101,Third Party Payments,505,Private Contractors,5042,Revenue,22.RESIDENTIAL
02/01/2018,1552473,465.16,ASPIRE HEALTHCARE,375113,"Health, Education, Care and Safeguarding",Adult Social Care,101,Third Party Payments,505,Private Contractors,5042,Revenue,22.RESIDENTIAL
02/01/2018,1552498,488.15,ROSEBERRY CARE CENTRES,387541,"Health, Education, Care and Safeguarding",Adult Social Care,101,Third Party Payments,505,Private Contractors,5042,Revenue,22.RESIDENTIAL
02/01/2018,1552498,488.15,ROSEBERRY CARE CENTRES,387541,"Health, Education, Care and Safeguarding",Adult Social Care,101,Third Party Payments,505,Private Contractors,5042,Revenue,22.RESIDENTIAL
02/01/2018,1552498,488.15,ROSEBERRY CARE CENTRES,387541,"Health, Education, Care and Safeguarding",Adult Social Care,101,Third Party Payments,505,Private Contractors,5042,Revenue,22.RESIDENTIAL
02/01/2018,1552498,488.15,ROSEBERRY CARE CENTRES,387541,"Health, Education, Care and Safeguarding",Adult Social Care,101,Third Party Payments,505,Private Contractors,5042,Revenue,22.RESIDENTIAL
02/01/2018,1552498,488.15,ROSEBERRY CARE CENTRES,387541,"Health, Education, Care and Safeguarding",Adult Social Care,101,Third Party Payments,505,Private Contractors,5042,Revenue,22.RESIDENTIAL
02/01/2018,1552498,488.15,ROSEBERRY CARE CENTRES,387541,"Health, Education, Care and Safeguarding",Adult Social Care,101,Third Party Payments,505,Private Contractors,5042,Revenue,22.RESIDENTIAL
02/01/2018,1552498,488.15,ROSEBERRY CARE CENTRES,387541,"Health, Education, Care and Safeguarding",Adult Social Care,101,Third Party Payments,505,Private Contractors,5042,Revenue,22.RESIDENTIAL
02/01/2018,1552498,508.70,ROSEBERRY CARE CENTRES,387541,"Health, Education, Care and Safeguarding",Adult Social Care,101,Third Party Payments,505,Private Contractors,5042,Revenue,22.RESIDENTIAL
02/01/2018,1552498,508.70,ROSEBERRY CARE CENTRES,387541,"Health, Education, Care and Safeguarding",Adult Social Care,101,Third Party Payments,505,Private Contractors,5042,Revenue,22.RESIDENTIAL
02/01/2018,1552498,508.70,ROSEBERRY CARE CENTRES,387541,"Health, Education, Care and Safeguarding",Adult Social Care,101,Third Party Payments,505,Private Contractors,5042,Revenue,22.RESIDENTIAL
02/01/2018,1552498,508.70,ROSEBERRY CARE CENTRES,387541,"Health, Education, Care and Safeguarding",Adult Social Care,101,Third Party Payments,505,Private Contractors,5042,Revenue,22.RESIDENTIAL
02/01/2018,1552498,508.70,ROSEBERRY CARE CENTRES,387541,"Health, Education, Care and Safeguarding",Adult Social Care,101,Third Party Payments,505,Private Contractors,5042,Revenue,22.RESIDENTIAL
02/01/2018,1552498,508.70,ROSEBERRY CARE CENTRES,387541,"Health, Education, Care and Safeguarding",Adult Social Care,101,Third Party Payments,505,Private Contractors,5042,Revenue,22.RESIDENTIAL
02/01/2018,1552498,508.70,ROSEBERRY CARE CENTRES,387541,"Health, Education, Care and Safeguarding",Adult Social Care,101,Third Party Payments,505,Private Contractors,5042,Revenue,22.RESIDENTIAL
02/01/2018,1552498,508.70,ROSEBERRY CARE CENTRES,387541,"Health, Education, Care and Safeguarding",Adult Social Care,101,Third Party Payments,505,Private Contractors,5042,Revenue,22.RESIDENTIAL
02/01/2018,1552498,2928.90,ROSEBERRY CARE CENTRES,387541,"Health, Education, Care and Safeguarding",Adult Social Care,101,Third Party Payments,505,Private Contractors,5042,Revenue,22.RESIDENTIAL
02/01/2018,1552499,-2693.20,COUNTRYWIDE CARE HOMES LIMITED,387540,"Health, Education, Care and Safeguarding",Adult Social Care,101,Third Party Payments,505,Private Contractors,5042,Revenue,22.RESIDENTIAL
02/01/2018,1552499,520.05,COUNTRYWIDE CARE HOMES LIMITED,387540,"Health, Education, Care and Safeguarding",Adult Social Care,101,Third Party Payments,505,Private Contractors,5042,Revenue,22.RESIDENTIAL
02/01/2018,1552499,520.05,COUNTRYWIDE CARE HOMES LIMITED,387540,"Health, Education, Care and Safeguarding",Adult Social Care,101,Third Party Payments,505,Private Contractors,5042,Revenue,22.RESIDENTIAL
02/01/2018,1552499,520.05,COUNTRYWIDE CARE HOMES LIMITED,387540,"Health, Education, Care and Safeguarding",Adult Social Care,101,Third Party Payments,505,Private Contractors,5042,Revenue,22.RESIDENTIAL
02/01/2018,1552473,465.16,ASPIRE HEALTHCARE,375113,"Health, Education, Care and Safeguarding",Adult Social Care,101,Third Party Payments,505,Private Contractors,5042,Revenue,22.RESIDENTIAL
02/01/2018,1552473,465.16,ASPIRE HEALTHCARE,375113,"Health, Education, Care and Safeguarding",Adult Social Care,101,Third Party Payments,505,Private Contractors,5042,Revenue,22.RESIDENTIAL
02/01/2018,1552473,465.16,ASPIRE HEALTHCARE,375113,"Health, Education, Care and Safeguarding",Adult Social Care,101,Third Party Payments,505,Private Contractors,5042,Revenue,22.RESIDENTIAL
02/01/2018,1552473,465.16,ASPIRE HEALTHCARE,375113,"Health, Education, Care and Safeguarding",Adult Social Care,101,Third Party Payments,505,Private Contractors,5042,Revenue,22.RESIDENTIAL
02/01/2018,1552473,491.30,ASPIRE HEALTHCARE,375113,"Health, Education, Care and Safeguarding",Adult Social Care,101,Third Party Payments,505,Private Contractors,5042,Revenue,22.RESIDENTIAL
02/01/2018,1552473,495.55,ASPIRE HEALTHCARE,375113,"Health, Education, Care and Safeguarding",Adult Social Care,101,Third Party Payments,505,Private Contractors,5042,Revenue,22.RESIDENTIAL
02/01/2018,1552473,495.55,ASPIRE HEALTHCARE,375113,"Health, Education, Care and Safeguarding",Adult Social Care,101,Third Party Payments,505,Private Contractors,5042,Revenue,22.RESIDENTIAL
02/01/2018,1552473,617.40,ASPIRE HEALTHCARE,375113,"Health, Education, Care and Safeguarding",Adult Social Care,101,Third Party Payments,505,Private Contractors,5042,Revenue,22.RESIDENTIAL
02/01/2018,1552473,617.40,ASPIRE HEALTHCARE,375113,"Health, Education, Care and Safeguarding",Adult Social Care,101,Third Party Payments,505,Private Contractors,5042,Revenue,22.RESIDENTIAL
02/01/2018,1552473,617.40,ASPIRE HEALTHCARE,375113,"Health, Education, Care and Safeguarding",Adult Social Care,101,Third Party Payments,505,Private Contractors,5042,Revenue,22.RESIDENTIAL
02/01/2018,1552473,727.28,ASPIRE HEALTHCARE,375113,"Health, Education, Care and Safeguarding",Adult Social Care,101,Third Party Payments,505,Private Contractors,5042,Revenue,22.RESIDENTIAL
02/01/2018,1552473,785.40,ASPIRE HEALTHCARE,375113,"Health, Education, Care and Safeguarding",Adult Social Care,101,Third Party Payments,505,Private Contractors,5042,Revenue,22.RESIDENTIAL
02/01/2018,1552473,867.20,ASPIRE HEALTHCARE,375113,"Health, Education, Care and Safeguarding",Adult Social Care,101,Third Party Payments,505,Private Contractors,5042,Revenue,22.RESIDENTIAL
02/01/2018,1552473,875.00,ASPIRE HEALTHCARE,375113,"Health, Education, Care and Safeguarding",Adult Social Care,101,Third Party Payments,505,Private Contractors,5042,Revenue,22.RESIDENTIAL
02/01/2018,1552473,1157.05,ASPIRE HEALTHCARE,375113,"Health, Education, Care and Safeguarding",Adult Social Care,101,Third Party Payments,505,Private Contractors,5042,Revenue,22.RESIDENTIAL
02/01/2018,1552473,1205.40,ASPIRE HEALTHCARE,375113,"Health, Education, Care and Safeguarding",Adult Social Care,101,Third Party Payments,505,Private Contractors,5042,Revenue,22.RESIDENTIAL
02/01/2018,1552473,1229.15,ASPIRE HEALTHCARE,375113,"Health, Education, Care and Safeguarding",Adult Social Care,101,Third Party Payments,505,Private Contractors,5042,Revenue,22.RESIDENTIAL
02/01/2018,1552473,1629.55,ASPIRE HEALTHCARE,375113,"Health, Education, Care and Safeguarding",Adult Social Care,101,Third Party Payments,505,Private Contractors,5042,Revenue,22.RESIDENTIAL
02/01/2018,1552473,1759.85,ASPIRE HEALTHCARE,375113,"Health, Education, Care and Safeguarding",Adult Social Care,101,Third Party Payments,505,Private Contractors,5042,Revenue,22.RESIDENTIAL
02/01/2018,1552473,1776.05,ASPIRE HEALTHCARE,375113,"Health, Education, Care and Safeguarding",Adult Social Care,101,Third Party Payments,505,Private Contractors,5042,Revenue,22.RESIDENTIAL
02/01/2018,1552473,1798.50,ASPIRE HEALTHCARE,375113,"Health, Education, Care and Safeguarding",Adult Social Care,101,Third Party Payments,505,Private Contractors,5042,Revenue,22.RESIDENTIAL
02/01/2018,1552473,1798.50,ASPIRE HEALTHCARE,375113,"Health, Education, Care and Safeguarding",Adult Social Care,101,Third Party Payments,505,Private Contractors,5042,Revenue,22.RESIDENTIAL
02/01/2018,1552473,1899.67,ASPIRE HEALTHCARE,375113,"Health, Education, Care and Safeguarding",Adult Social Care,101,Third Party Payments,505,Private Contractors,5042,Revenue,22.RESIDENTIAL
02/01/2018,1552473,1899.67,ASPIRE HEALTHCARE,375113,"Health, Education, Care and Safeguarding",Adult Social Care,101,Third Party Payments,505,Private Contractors,5042,Revenue,22.RESIDENTIAL
02/01/2018,1552476,554.55,DERWENT CARE HOME,388802,"Health, Education, Care and Safeguarding",Adult Social Care,101,Third Party Payments,505,Private Contractors,5042,Revenue,00.NON INFLUENCIBLE
02/01/2018,1552479,465.16,MELROSE HOUSE,388684,"Health, Education, Care and Safeguarding",Adult Social Care,101,Third Party Payments,505,Private Contractors,5042,Revenue,22.RESIDENTIAL
02/01/2018,1552479,465.16,MELROSE HOUSE,388684,"Health, Education, Care and Safeguarding",Adult Social Care,101,Third Party Payments,505,Private Contractors,5042,Revenue,22.RESIDENTIAL
02/01/2018,1552479,465.16,MELROSE HOUSE,388684,"Health, Education, Care and Safeguarding",Adult Social Care,101,Third Party Payments,505,Private Contractors,5042,Revenue,22.RESIDENTIAL
02/01/2018,1552479,465.16,MELROSE HOUSE,388684,"Health, Education, Care and Safeguarding",Adult Social Care,101,Third Party Payments,505,Private Contractors,5042,Revenue,22.RESIDENTIAL
02/01/2018,1552479,465.16,MELROSE HOUSE,388684,"Health, Education, Care and Safeguarding",Adult Social Care,101,Third Party Payments,505,Private Contractors,5042,Revenue,22.RESIDENTIAL
02/01/2018,1552479,465.16,MELROSE HOUSE,388684,"Health, Education, Care and Safeguarding",Adult Social Care,101,Third Party Payments,505,Private Contractors,5042,Revenue,22.RESIDENTIAL
02/01/2018,1552479,465.16,MELROSE HOUSE,388684,"Health, Education, Care and Safeguarding",Adult Social Care,101,Third Party Payments,505,Private Contractors,5042,Revenue,22.RESIDENTIAL
02/01/2018,1552479,465.16,MELROSE HOUSE,388684,"Health, Education, Care and Safeguarding",Adult Social Care,101,Third Party Payments,505,Private Contractors,5042,Revenue,22.RESIDENTIAL
02/01/2018,1552482,1084.40,Redacted Personal Data,388436,"Health, Education, Care and Safeguarding",Adult Social Care,101,Third Party Payments,505,Other Establishments,5041,Revenue,00.NON INFLUENCIBLE
02/01/2018,1552485,1896.65,HOMECAREDIRECT,380128,"Health, Education, Care and Safeguarding",Adult Social Care,101,Third Party Payments,505,Private Contractors,5042,Revenue,00.NON INFLUENCIBLE
02/01/2018,1552486,487.01,BUPA CARE HOMES,365785,"Health, Education, Care and Safeguarding",Adult Social Care,101,Third Party Payments,505,Private Contractors,5042,Revenue,22.RESIDENTIAL
02/01/2018,1552486,487.01,BUPA CARE HOMES,365785,"Health, Education, Care and Safeguarding",Adult Social Care,101,Third Party Payments,505,Private Contractors,5042,Revenue,22.RESIDENTIAL
02/01/2018,1552488,647.22,BLYTH STAR ENTERPRISES LTD,336602,"Health, Education, Care and Safeguarding",Adult Social Care,101,Third Party Payments,505,Other Establishments,5041,Revenue,22.DAY CARE SERVICES
02/01/2018,1552489,416.44,FLEXIBLE SUPPORT OPTIONS UK LIMITED,342478,"Health, Education, Care and Safeguarding",Adult Social Care,101,Third Party Payments,505,Other Establishments,5041,Revenue,22.SUPPORT SERVICES
02/01/2018,1552489,454.65,FLEXIBLE SUPPORT OPTIONS UK LIMITED,342478,"Health, Education, Care and Safeguarding",Adult Social Care,101,Third Party Payments,505,Other Establishments,5041,Revenue,22.SUPPORT SERVICES
02/01/2018,1552489,717.65,FLEXIBLE SUPPORT OPTIONS UK LIMITED,342478,"Health, Education, Care and Safeguarding",Adult Social Care,101,Third Party Payments,505,Private Contractors,5042,Revenue,22.SUPPORT SERVICES
02/01/2018,1552489,717.65,FLEXIBLE SUPPORT OPTIONS UK LIMITED,342478,"Health, Education, Care and Safeguarding",Adult Social Care,101,Third Party Payments,505,Private Contractors,5042,Revenue,22.SUPPORT SERVICES
02/01/2018,1552489,748.80,FLEXIBLE SUPPORT OPTIONS UK LIMITED,342478,"Health, Education, Care and Safeguarding",Adult Social Care,101,Third Party Payments,505,Private Contractors,5042,Revenue,22.SUPPORT SERVICES
02/01/2018,1552489,1901.20,FLEXIBLE SUPPORT OPTIONS UK LIMITED,342478,"Health, Education, Care and Safeguarding",Adult Social Care,101,Third Party Payments,505,Other Establishments,5041,Revenue,22.SUPPORT SERVICES
02/01/2018,1552489,2774.14,FLEXIBLE SUPPORT OPTIONS UK LIMITED,342478,"Health, Education, Care and Safeguarding",Adult Social Care,101,Third Party Payments,505,Private Contractors,5042,Revenue,22.SUPPORT SERVICES
02/01/2018,1552491,282.08,RICHMOND FELLOWSHIP LTD,018025,"Health, Education, Care and Safeguarding",Adult Social Care,101,Third Party Payments,505,Other Establishments,5041,Revenue,22.RESIDENTIAL
02/01/2018,1552491,821.15,RICHMOND FELLOWSHIP LTD,018025,"Health, Education, Care and Safeguarding",Adult Social Care,101,Third Party Payments,505,Private Contractors,5042,Revenue,22.RESIDENTIAL
02/01/2018,1552492,2442.30,NORTH EAST AUTISM SOCIETY,329004,"Health, Education, Care and Safeguarding",Adult Social Care,101,Third Party Payments,505,Private Contractors,5042,Revenue,22.SUPPORT SERVICES
02/01/2018,1552492,2846.15,NORTH EAST AUTISM SOCIETY,329004,"Health, Education, Care and Safeguarding",Adult Social Care,101,Third Party Payments,505,Private Contractors,5042,Revenue,22.SUPPORT SERVICES
02/01/2018,1552494,1571.92,Redacted Personal Data,386860,"Health, Education, Care and Safeguarding",Adult Social Care,101,Third Party Payments,505,Other Establishments,5041,Revenue,00.NON INFLUENCIBLE
02/01/2018,1552496,511.67,CARE HOMES UK LTD,387674,"Health, Education, Care and Safeguarding",Adult Social Care,101,Third Party Payments,505,Private Contractors,5042,Revenue,22.RESIDENTIAL
02/01/2018,1552496,511.67,CARE HOMES UK LTD,387674,"Health, Education, Care and Safeguarding",Adult Social Care,101,Third Party Payments,505,Private Contractors,5042,Revenue,22.RESIDENTIAL
02/01/2018,1552496,511.67,CARE HOMES UK LTD,387674,"Health, Education, Care and Safeguarding",Adult Social Care,101,Third Party Payments,505,Private Contractors,5042,Revenue,22.RESIDENTIAL
02/01/2018,1552497,155.05,ROSEBERRY CARE CENTRES,387542,"Health, Education, Care and Safeguarding",Adult Social Care,101,Third Party Payments,505,Other Establishments,5041,Revenue,22.RESIDENTIAL
02/01/2018,1552497,155.05,ROSEBERRY CARE CENTRES,387542,"Health, Education, Care and Safeguarding",Adult Social Care,101,Third Party Payments,505,Other Establishments,5041,Revenue,22.RESIDENTIAL
02/01/2018,1552497,155.05,ROSEBERRY CARE CENTRES,387542,"Health, Education, Care and Safeguarding",Adult Social Care,101,Third Party Payments,505,Other Establishments,5041,Revenue,22.RESIDENTIAL
02/01/2018,1552497,155.05,ROSEBERRY CARE CENTRES,387542,"Health, Education, Care and Safeguarding",Adult Social Care,101,Third Party Payments,505,Other Establishments,5041,Revenue,22.RESIDENTIAL
02/01/2018,1552497,155.05,ROSEBERRY CARE CENTRES,387542,"Health, Education, Care and Safeguarding",Adult Social Care,101,Third Party Payments,505,Other Establishments,5041,Revenue,22.RESIDENTIAL
02/01/2018,1552497,155.05,ROSEBERRY CARE CENTRES,387542,"Health, Education, Care and Safeguarding",Adult Social Care,101,Third Party Payments,505,Other Establishments,5041,Revenue,22.RESIDENTIAL
02/01/2018,1552497,155.05,ROSEBERRY CARE CENTRES,387542,"Health, Education, Care and Safeguarding",Adult Social Care,101,Third Party Payments,505,Other Establishments,5041,Revenue,22.RESIDENTIAL
02/01/2018,1552497,155.05,ROSEBERRY CARE CENTRES,387542,"Health, Education, Care and Safeguarding",Adult Social Care,101,Third Party Payments,505,Other Establishments,5041,Revenue,22.RESIDENTIAL
02/01/2018,1552497,155.05,ROSEBERRY CARE CENTRES,387542,"Health, Education, Care and Safeguarding",Adult Social Care,101,Third Party Payments,505,Other Establishments,5041,Revenue,22.RESIDENTIAL
02/01/2018,1552497,155.05,ROSEBERRY CARE CENTRES,387542,"Health, Education, Care and Safeguarding",Adult Social Care,101,Third Party Payments,505,Other Establishments,5041,Revenue,22.RESIDENTIAL
02/01/2018,1552497,457.36,ROSEBERRY CARE CENTRES,387542,"Health, Education, Care and Safeguarding",Adult Social Care,101,Third Party Payments,505,Private Contractors,5042,Revenue,22.RESIDENTIAL
02/01/2018,1552497,457.36,ROSEBERRY CARE CENTRES,387542,"Health, Education, Care and Safeguarding",Adult Social Care,101,Third Party Payments,505,Private Contractors,5042,Revenue,22.RESIDENTIAL
02/01/2018,1552497,457.36,ROSEBERRY CARE CENTRES,387542,"Health, Education, Care and Safeguarding",Adult Social Care,101,Third Party Payments,505,Private Contractors,5042,Revenue,22.RESIDENTIAL
02/01/2018,1552497,457.36,ROSEBERRY CARE CENTRES,387542,"Health, Education, Care and Safeguarding",Adult Social Care,101,Third Party Payments,505,Private Contractors,5042,Revenue,22.RESIDENTIAL
02/01/2018,1552497,457.36,ROSEBERRY CARE CENTRES,387542,"Health, Education, Care and Safeguarding",Adult Social Care,101,Third Party Payments,505,Private Contractors,5042,Revenue,22.RESIDENTIAL
02/01/2018,1552497,457.36,ROSEBERRY CARE CENTRES,387542,"Health, Education, Care and Safeguarding",Adult Social Care,101,Third Party Payments,505,Private Contractors,5042,Revenue,22.RESIDENTIAL
02/01/2018,1552497,457.36,ROSEBERRY CARE CENTRES,387542,"Health, Education, Care and Safeguarding",Adult Social Care,101,Third Party Payments,505,Private Contractors,5042,Revenue,22.RESIDENTIAL
02/01/2018,1552497,457.36,ROSEBERRY CARE CENTRES,387542,"Health, Education, Care and Safeguarding",Adult Social Care,101,Third Party Payments,505,Private Contractors,5042,Revenue,22.RESIDENTIAL
02/01/2018,1552497,457.36,ROSEBERRY CARE CENTRES,387542,"Health, Education, Care and Safeguarding",Adult Social Care,101,Third Party Payments,505,Private Contractors,5042,Revenue,22.RESIDENTIAL
02/01/2018,1552497,457.36,ROSEBERRY CARE CENTRES,387542,"Health, Education, Care and Safeguarding",Adult Social Care,101,Third Party Payments,505,Private Contractors,5042,Revenue,22.RESIDENTIAL
02/01/2018,1552497,457.36,ROSEBERRY CARE CENTRES,387542,"Health, Education, Care and Safeguarding",Adult Social Care,101,Third Party Payments,505,Private Contractors,5042,Revenue,22.RESIDENTIAL
02/01/2018,1552497,457.36,ROSEBERRY CARE CENTRES,387542,"Health, Education, Care and Safeguarding",Adult Social Care,101,Third Party Payments,505,Private Contractors,5042,Revenue,22.RESIDENTIAL
02/01/2018,1552497,457.36,ROSEBERRY CARE CENTRES,387542,"Health, Education, Care and Safeguarding",Adult Social Care,101,Third Party Payments,505,Private Contractors,5042,Revenue,22.RESIDENTIAL
02/01/2018,1552497,457.36,ROSEBERRY CARE CENTRES,387542,"Health, Education, Care and Safeguarding",Adult Social Care,101,Third Party Payments,505,Private Contractors,5042,Revenue,22.RESIDENTIAL
02/01/2018,1552497,457.36,ROSEBERRY CARE CENTRES,387542,"Health, Education, Care and Safeguarding",Adult Social Care,101,Third Party Payments,505,Private Contractors,5042,Revenue,22.RESIDENTIAL
02/01/2018,1552497,642.41,ROSEBERRY CARE CENTRES,387542,"Health, Education, Care and Safeguarding",Public Health,112,Third Party Payments,505,Other Establishments,5041,Revenue,22.RESIDENTIAL
02/01/2018,1552498,348.68,ROSEBERRY CARE CENTRES,387541,"Health, Education, Care and Safeguarding",Adult Social Care,101,Third Party Payments,505,Private Contractors,5042,Revenue,22.RESIDENTIAL
02/01/2018,1552499,520.05,COUNTRYWIDE CARE HOMES LIMITED,387540,"Health, Education, Care and Safeguarding",Adult Social Care,101,Third Party Payments,505,Private Contractors,5042,Revenue,22.RESIDENTIAL
02/01/2018,1552499,520.05,COUNTRYWIDE CARE HOMES LIMITED,387540,"Health, Education, Care and Safeguarding",Adult Social Care,101,Third Party Payments,505,Private Contractors,5042,Revenue,22.RESIDENTIAL
02/01/2018,1552499,520.05,COUNTRYWIDE CARE HOMES LIMITED,387540,"Health, Education, Care and Safeguarding",Adult Social Care,101,Third Party Payments,505,Private Contractors,5042,Revenue,22.RESIDENTIAL
02/01/2018,1552499,520.05,COUNTRYWIDE CARE HOMES LIMITED,387540,"Health, Education, Care and Safeguarding",Adult Social Care,101,Third Party Payments,505,Private Contractors,5042,Revenue,22.RESIDENTIAL
02/01/2018,1552499,520.05,COUNTRYWIDE CARE HOMES LIMITED,387540,"Health, Education, Care and Safeguarding",Adult Social Care,101,Third Party Payments,505,Private Contractors,5042,Revenue,22.RESIDENTIAL
02/01/2018,1552503,584.59,PRESTWICK CARE LTD,387214,"Health, Education, Care and Safeguarding",Adult Social Care,101,Third Party Payments,505,Private Contractors,5042,Revenue,22.RESIDENTIAL
02/01/2018,1552503,675.10,PRESTWICK CARE LTD,387214,"Health, Education, Care and Safeguarding",Public Health,112,Third Party Payments,505,Other Establishments,5041,Revenue,22.RESIDENTIAL
02/01/2018,1552503,705.10,PRESTWICK CARE LTD,387214,"Health, Education, Care and Safeguarding",Adult Social Care,101,Third Party Payments,505,Other Establishments,5041,Revenue,22.RESIDENTIAL
02/01/2018,1552503,705.10,PRESTWICK CARE LTD,387214,"Health, Education, Care and Safeguarding",Adult Social Care,101,Third Party Payments,505,Other Establishments,5041,Revenue,22.RESIDENTIAL
02/01/2018,1552503,705.10,PRESTWICK CARE LTD,387214,"Health, Education, Care and Safeguarding",Adult Social Care,101,Third Party Payments,505,Other Establishments,5041,Revenue,22.RESIDENTIAL
02/01/2018,1552503,705.10,PRESTWICK CARE LTD,387214,"Health, Education, Care and Safeguarding",Public Health,112,Third Party Payments,505,Other Establishments,5041,Revenue,22.RESIDENTIAL
02/01/2018,1552503,705.13,PRESTWICK CARE LTD,387214,"Health, Education, Care and Safeguarding",Public Health,112,Third Party Payments,505,Other Establishments,5041,Revenue,22.RESIDENTIAL
02/01/2018,1552503,723.69,PRESTWICK CARE LTD,387214,"Health, Education, Care and Safeguarding",Public Health,112,Third Party Payments,505,Other Establishments,5041,Revenue,22.RESIDENTIAL
02/01/2018,1552503,723.69,PRESTWICK CARE LTD,387214,"Health, Education, Care and Safeguarding",Public Health,112,Third Party Payments,505,Other Establishments,5041,Revenue,22.RESIDENTIAL
02/01/2018,1552503,723.69,PRESTWICK CARE LTD,387214,"Health, Education, Care and Safeguarding",Public Health,112,Third Party Payments,505,Other Establishments,5041,Revenue,22.RESIDENTIAL
02/01/2018,1552503,747.41,PRESTWICK CARE LTD,387214,"Health, Education, Care and Safeguarding",Public Health,112,Third Party Payments,505,Other Establishments,5041,Revenue,22.RESIDENTIAL
02/01/2018,1552503,747.41,PRESTWICK CARE LTD,387214,"Health, Education, Care and Safeguarding",Public Health,112,Third Party Payments,505,Other Establishments,5041,Revenue,22.RESIDENTIAL
02/01/2018,1552503,747.41,PRESTWICK CARE LTD,387214,"Health, Education, Care and Safeguarding",Public Health,112,Third Party Payments,505,Other Establishments,5041,Revenue,22.RESIDENTIAL
02/01/2018,1552503,769.64,PRESTWICK CARE LTD,387214,"Health, Education, Care and Safeguarding",Public Health,112,Third Party Payments,505,Other Establishments,5041,Revenue,22.RESIDENTIAL
02/01/2018,1552503,769.64,PRESTWICK CARE LTD,387214,"Health, Education, Care and Safeguarding",Public Health,112,Third Party Payments,505,Other Establishments,5041,Revenue,22.RESIDENTIAL
02/01/2018,1552503,3231.84,PRESTWICK CARE LTD,387214,"Health, Education, Care and Safeguarding",Adult Social Care,101,Third Party Payments,505,Private Contractors,5042,Revenue,22.RESIDENTIAL
02/01/2018,1552504,155.05,LADHAR GROUP CARE HOMES,377323,"Health, Education, Care and Safeguarding",Adult Social Care,101,Third Party Payments,505,Other Establishments,5041,Revenue,22.RESIDENTIAL
02/01/2018,1552504,155.05,LADHAR GROUP CARE HOMES,377323,"Health, Education, Care and Safeguarding",Adult Social Care,101,Third Party Payments,505,Other Establishments,5041,Revenue,22.RESIDENTIAL
02/01/2018,1552504,155.05,LADHAR GROUP CARE HOMES,377323,"Health, Education, Care and Safeguarding",Adult Social Care,101,Third Party Payments,505,Other Establishments,5041,Revenue,22.RESIDENTIAL
02/01/2018,1552504,155.05,LADHAR GROUP CARE HOMES,377323,"Health, Education, Care and Safeguarding",Adult Social Care,101,Third Party Payments,505,Other Establishments,5041,Revenue,22.RESIDENTIAL
02/01/2018,1552504,155.05,LADHAR GROUP CARE HOMES,377323,"Health, Education, Care and Safeguarding",Adult Social Care,101,Third Party Payments,505,Other Establishments,5041,Revenue,22.RESIDENTIAL
02/01/2018,1552504,155.05,LADHAR GROUP CARE HOMES,377323,"Health, Education, Care and Safeguarding",Adult Social Care,101,Third Party Payments,505,Other Establishments,5041,Revenue,22.RESIDENTIAL
02/01/2018,1552504,155.05,LADHAR GROUP CARE HOMES,377323,"Health, Education, Care and Safeguarding",Adult Social Care,101,Third Party Payments,505,Other Establishments,5041,Revenue,22.RESIDENTIAL
02/01/2018,1552504,155.05,LADHAR GROUP CARE HOMES,377323,"Health, Education, Care and Safeguarding",Adult Social Care,101,Third Party Payments,505,Other Establishments,5041,Revenue,22.RESIDENTIAL
02/01/2018,1552504,332.50,LADHAR GROUP CARE HOMES,377323,"Health, Education, Care and Safeguarding",Public Health,112,Third Party Payments,505,Other Establishments,5041,Revenue,22.RESIDENTIAL
02/01/2018,1552504,488.15,LADHAR GROUP CARE HOMES,377323,"Health, Education, Care and Safeguarding",Adult Social Care,101,Third Party Payments,505,Private Contractors,5042,Revenue,22.RESIDENTIAL
02/01/2018,1552504,488.15,LADHAR GROUP CARE HOMES,377323,"Health, Education, Care and Safeguarding",Adult Social Care,101,Third Party Payments,505,Private Contractors,5042,Revenue,22.RESIDENTIAL
02/01/2018,1552504,488.15,LADHAR GROUP CARE HOMES,377323,"Health, Education, Care and Safeguarding",Adult Social Care,101,Third Party Payments,505,Private Contractors,5042,Revenue,22.RESIDENTIAL
02/01/2018,1552504,508.70,LADHAR GROUP CARE HOMES,377323,"Health, Education, Care and Safeguarding",Adult Social Care,101,Third Party Payments,505,Private Contractors,5042,Revenue,22.RESIDENTIAL
02/01/2018,1552504,508.70,LADHAR GROUP CARE HOMES,377323,"Health, Education, Care and Safeguarding",Adult Social Care,101,Third Party Payments,505,Private Contractors,5042,Revenue,22.RESIDENTIAL
02/01/2018,1552504,508.70,LADHAR GROUP CARE HOMES,377323,"Health, Education, Care and Safeguarding",Adult Social Care,101,Third Party Payments,505,Private Contractors,5042,Revenue,22.RESIDENTIAL
02/01/2018,1552504,508.70,LADHAR GROUP CARE HOMES,377323,"Health, Education, Care and Safeguarding",Adult Social Care,101,Third Party Payments,505,Private Contractors,5042,Revenue,22.RESIDENTIAL
